{"text_format":"1","workbook":"xlsx","n_sheets":3,"sheets":["Formular","Daten","Stammdaten"],"not_rendered":{"charts":0,"images":8,"macros":1,"external_links":0,"defined_names":24,"comments":1,"pivot_tables":0},"unopened":[],"bounds":{"document_bytes":16777216,"sheet_cells":100000,"rows_first":2000,"rows_last":500,"rows_between":2000,"halvings":0,"cell_chars":16384,"cell_head_chars":4096},"cells_cut":0,"cells_raw":0,"read":"whole","date_system":"1900"}

{"sheet":"Formular","index":0,"n_rows":22,"n_cols":18,"rows_kept":22,"cut":false,"hidden":false,"merged":[[97,0,97,1],[98,0,98,1],[99,0,99,1],[100,0,100,1],[82,0,82,1],[83,0,83,1],[84,0,84,1],[85,0,85,1],[87,0,87,1],[88,0,88,1],[89,0,89,1],[90,0,90,1],[92,0,92,1],[96,0,96,1],[69,0,69,1],[70,0,70,1],[72,0,72,1],[73,0,73,1],[74,0,74,1],[75,0,75,1],[77,0,77,1],[78,0,78,1],[79,0,79,1],[58,0,58,1],[59,0,59,1],[60,0,60,1],[62,0,62,1],[63,0,63,1],[64,0,64,1],[65,0,65,1],[67,0,67,1],[68,0,68,1],[66,0,66,1],[100,8,100,10],[101,8,101,10],[100,2,100,7],[100,12,100,13],[101,0,101,1],[101,2,101,7],[101,12,101,13],[22,0,22,1],[23,0,23,1],[24,0,24,1],[25,0,25,1],[27,0,27,1],[28,0,28,1],[29,0,29,1],[30,0,30,1],[32,0,32,1],[33,0,33,1],[34,0,34,1],[35,0,35,1],[37,0,37,1],[38,0,38,1],[39,0,39,1],[40,0,40,1],[42,0,42,1],[99,2,99,7],[99,12,99,13],[97,8,97,10],[11,17,31,17],[98,8,98,10],[99,8,99,10],[94,2,94,7],[94,12,94,13],[95,2,95,7],[95,12,95,13],[90,2,90,7],[90,12,90,13],[88,8,88,10],[89,8,89,10],[90,8,90,10],[88,2,88,7],[88,12,88,13],[89,2,89,7],[89,12,89,13],[87,2,87,7],[97,2,97,7],[97,12,97,13],[98,2,98,7],[98,12,98,13],[96,2,96,7],[93,2,93,7],[93,12,93,13],[91,8,91,10],[92,8,92,10],[93,8,93,10],[91,0,91,1],[91,2,91,7],[91,12,91,13],[92,2,92,7],[92,12,92,13],[96,12,96,13],[94,8,94,10],[95,8,95,10],[96,8,96,10],[93,0,93,1],[94,0,94,1],[95,0,95,1],[87,12,87,13],[85,8,85,10],[86,8,86,10],[87,8,87,10],[85,2,85,7],[85,12,85,13],[86,0,86,1],[86,2,86,7],[86,12,86,13],[84,2,84,7],[84,12,84,13],[82,8,82,10],[83,8,83,10],[84,8,84,10],[82,2,82,7],[82,12,82,13],[83,2,83,7],[83,12,83,13],[81,0,81,1],[81,2,81,7],[81,12,81,13],[79,8,79,10],[80,8,80,10],[81,8,81,10],[79,2,79,7],[79,12,79,13],[80,2,80,7],[80,12,80,13],[80,0,80,1],[78,2,78,7],[78,12,78,13],[76,8,76,10],[77,8,77,10],[78,8,78,10],[76,0,76,1],[76,2,76,7],[76,12,76,13],[77,2,77,7],[77,12,77,13],[75,2,75,7],[75,12,75,13],[73,8,73,10],[74,8,74,10],[75,8,75,10],[73,2,73,7],[73,12,73,13],[74,2,74,7],[74,12,74,13],[72,2,72,7],[72,12,72,13],[70,8,70,10],[71,8,71,10],[72,8,72,10],[70,2,70,7],[70,12,70,13],[71,0,71,1],[71,2,71,7],[71,12,71,13],[69,2,69,7],[69,12,69,13],[67,8,67,10],[68,8,68,10],[69,8,69,10],[67,2,67,7],[67,12,67,13],[68,2,68,7],[68,12,68,13],[66,2,66,7],[66,12,66,13],[64,8,64,10],[65,8,65,10],[66,8,66,10],[64,2,64,7],[64,12,64,13],[65,2,65,7],[65,12,65,13],[63,2,63,7],[63,12,63,13],[61,8,61,10],[62,8,62,10],[63,8,63,10],[61,0,61,1],[61,2,61,7],[61,12,61,13],[62,2,62,7],[62,12,62,13],[60,2,60,7],[60,12,60,13],[58,8,58,10],[59,8,59,10],[60,8,60,10],[58,2,58,7],[58,12,58,13],[59,2,59,7],[59,12,59,13],[56,0,56,1],[56,2,56,7],[56,12,56,13],[57,2,57,7],[57,12,57,13],[56,8,56,10],[57,8,57,10],[53,2,53,7],[53,12,53,13],[54,12,54,13],[55,2,55,7],[55,12,55,13],[55,8,55,10],[53,8,53,10],[54,8,54,10],[54,2,54,7],[53,0,53,1],[54,0,54,1],[55,0,55,1],[57,0,57,1],[52,12,52,13],[22,8,22,10],[10,2,10,4],[11,7,11,9],[11,3,11,4],[12,1,12,4],[16,5,16,12],[17,5,17,12],[15,4,15,12],[20,3,20,6],[20,8,20,15],[31,12,31,13],[30,8,30,10],[31,8,31,10],[27,12,27,13],[28,2,28,7],[28,12,28,13],[29,2,29,7],[43,0,43,1],[44,0,44,1],[45,0,45,1],[47,0,47,1],[48,0,48,1],[49,0,49,1],[5,2,5,5],[6,2,6,5],[2,0,4,0],[4,6,4,7],[22,2,22,7],[19,3,19,15],[12,5,12,6],[3,13,3,15],[26,12,26,13],[9,6,9,13],[7,2,7,9],[25,14,25,15],[26,14,26,15],[0,0,0,15],[11,10,11,12],[2,1,2,5],[3,1,3,5],[4,1,4,5],[6,9,6,12],[11,5,11,6],[3,6,3,7],[25,12,25,13],[19,0,19,1],[25,2,25,7],[24,2,24,7],[24,8,24,10],[24,12,24,13],[22,12,22,13],[22,14,22,15],[23,14,23,15],[24,14,24,15],[23,2,23,7],[23,8,23,10],[23,12,23,13],[14,0,14,15],[9,2,9,3],[8,0,8,15],[29,12,29,13],[33,2,33,7],[33,12,33,13],[32,8,32,10],[33,8,33,10],[30,2,30,7],[30,12,30,13],[31,0,31,1],[31,2,31,7],[32,12,32,13],[34,2,34,7],[34,12,34,13],[35,2,35,7],[38,2,38,7],[38,12,38,13],[39,2,39,7],[39,12,39,13],[38,8,38,10],[39,8,39,10],[41,12,41,13],[41,8,41,10],[40,8,40,10],[44,12,44,13],[45,2,45,7],[35,12,35,13],[35,8,35,10],[36,8,36,10],[37,8,37,10],[43,12,43,13],[36,12,36,13],[37,2,37,7],[37,12,37,13],[40,12,40,13],[47,12,47,13],[44,2,44,7],[45,12,45,13],[42,2,42,7],[42,12,42,13],[43,2,43,7],[51,0,51,1],[49,2,49,7],[48,12,48,13],[46,0,46,1],[46,2,46,7],[46,12,46,13],[47,8,47,10],[48,8,48,10],[49,8,49,10],[50,8,50,10],[51,8,51,10],[45,8,45,10],[49,12,49,13],[50,2,50,7],[50,12,50,13],[51,2,51,7],[51,12,51,13],[50,0,50,1],[52,8,52,10],[48,2,48,7],[26,8,26,10],[25,8,25,10],[28,8,28,10],[29,8,29,10],[27,2,27,7],[27,8,27,10],[26,0,26,1],[26,2,26,7],[46,8,46,10],[40,2,40,7],[36,0,36,1],[36,2,36,7],[32,2,32,7],[42,8,42,10],[43,8,43,10],[44,8,44,10],[47,2,47,7],[34,8,34,10],[52,2,52,7],[52,0,52,1],[41,0,41,1],[41,2,41,7],[27,14,27,15],[28,14,28,15],[29,14,29,15],[30,14,30,15],[31,14,31,15],[32,14,32,15],[33,14,33,15],[34,14,34,15],[35,14,35,15],[36,14,36,15],[37,14,37,15],[38,14,38,15],[39,14,39,15],[40,14,40,15],[41,14,41,15],[42,14,42,15],[58,14,58,15],[59,14,59,15],[60,14,60,15],[43,14,43,15],[44,14,44,15],[45,14,45,15],[46,14,46,15],[47,14,47,15],[48,14,48,15],[49,14,49,15],[52,14,52,15],[53,14,53,15],[54,14,54,15],[55,14,55,15],[56,14,56,15],[57,14,57,15],[50,14,50,15],[51,14,51,15],[61,14,61,15],[62,14,62,15],[63,14,63,15],[64,14,64,15],[65,14,65,15],[66,14,66,15],[68,14,68,15],[69,14,69,15],[67,14,67,15],[100,14,100,15],[101,14,101,15],[93,14,93,15],[75,14,75,15],[76,14,76,15],[77,14,77,15],[80,14,80,15],[81,14,81,15],[82,14,82,15],[88,14,88,15],[89,14,89,15],[90,14,90,15],[91,14,91,15],[92,14,92,15],[83,14,83,15],[84,14,84,15],[85,14,85,15],[78,14,78,15],[97,14,97,15],[98,14,98,15],[99,14,99,15],[94,14,94,15],[95,14,95,15],[96,14,96,15],[79,14,79,15],[86,14,86,15],[87,14,87,15],[70,14,70,15],[71,14,71,15],[72,14,72,15],[73,14,73,15],[74,14,74,15]]}
["Hessischer Kegler- u. Bowling-Verband e.V.  Sektion Bowling",null,null,null,null,null,null,null,null,null,null,null,null,null,null,null,null,"Die grauen Felder sind auszufüllen"]
["Meldebogen HM 2022 - 2023",null,null,null,null,null,null,null,"Seniorinnen, Senioren Team"]
["Leitung:",{"$f":"VLOOKUP(I2,event,3,FALSE)","v":"Luci Wolf"},null,null,null,null,"Datum",null,"Ort",null,null,"Startzeiten:",null,null,null,null,null,"Achtung: "]
[null,{"$f":"VLOOKUP(I2,event,5,FALSE)","v":"Eugen-Roth-Str. 9"},null,null,null,null,{"$f":"VLOOKUP(I2,event,15,FALSE)","v":"2023-01-14"},null,{"$f":"VLOOKUP(I2,event,13,FALSE)","v":"Wiesbaden"},null,null,{"$f":"IF(ISERROR(VLOOKUP(I2,event,17,FALSE)),\"\",VLOOKUP(I2,event,17,FALSE))","v":"09:00:00"},{"$f":"IF(ISERROR(VLOOKUP(I2,event,18,FALSE)),\"\",VLOOKUP(I2,event,18,FALSE))","v":"13:30:00"},{"$f":"IF(ISERROR(VLOOKUP(I2,event,19,FALSE)),\"\",VLOOKUP(I2,event,19,FALSE))","v":" "},null,null,null,"Die Junioren spielen zusammen mit den Aktiven (Damen/Herren) mit gemeinsamer Wertung und"]
[null,{"$f":"VLOOKUP(I2,event,4,FALSE)","v":"63110 Rodgau"},null,null,null,null,{"$f":"VLOOKUP(I2,event,16,FALSE)","v":"2023-01-15"},null,{"$f":"VLOOKUP(I2,event,14,FALSE)","v":"Eschersheim"},null,null,"Aus Ausschreibung entnehmen",null,null,null,null,null,"werden zusätzlich auch gesondert gewertet."]
[null,"Tel",{"$f":"VLOOKUP(I2,event,6,FALSE)","v":"0177 / 3947622"},null,null,null,"Startplätze pro Start",null,null,{"$f":"VLOOKUP(I2,event,12,FALSE)","v":22}]
[null,"Fax",{"$f":"VLOOKUP(I2,event,7,FALSE)","v":0},null,null,null,"Meldeschluss:",null,null,{"$f":"VLOOKUP(I2,event,9,FALSE)","v":"2022-12-31"},null,null,null,null,null,null,null,"Wenn Spieler noch nicht bekannt"]
[null,"E-Mail",{"$f":"VLOOKUP(I2,event,8,FALSE)","v":"sektionsseniorenwart-bowling@hkbv-ev.de"},null,null,null,null,null,null,null,null,null,null,null,null,null,null,"Edv-Nr = 0 "]
["Bitte den vollständig ausgefüllten Meldebogen als xls an die Leitung senden  (Adresse obenstehend);\nin die Betreffzeile der E-Mail ist als erstes die Clubnummer einzutragen, anschließend Clubname und Wettbewerb.",null,null,null,null,null,null,null,null,null,null,null,null,null,null,null,null,"Name = Unbekannt"]
["Verein / Club:",null,null,null,null,null,null,null,null,null,null,null,null,null,null,null,null,"Eingeben"]
[]
["Wir melden:",null,null,"Starts á ",null,{"$f":"VLOOKUP(I2,event,10,FALSE)","v":54},null,"Gesamtbetrag von ",null,null,{"$f":"F12*C12","v":0},null,null,null,null,null,null,"Bei Eingabe einer EDV-Nr in Spalte 1 ab Zeile 23 \nund drücken der Taste Enter werden die dazu gehörigen Spielerdaten eingesetzt.\n\nLinkes Auswahlfeld: Es kann mit der EDV-Nr gesucht werden. Die dazu gehörigen Spielerdaten werden angezeigt und nach drücken der Taste Enter nach dem letzten Datensatz eingefügt.\n\nRechtes Auswahlfeld: Es kann mit dem Nachnamen gesucht werden. Die dazu gehörigen Spielerdaten werden angezeigt und nach Drücken der Taste Enter  nach dem letzten Datensatz eingefügt.\n\nIm Bereich der Spielerdaten werden keine Formeln mehr verwand. \n\nWenn nach Eingabe der EDV Nr, keine Daten angezeigt werden, dann bitte die Daten manuell eintragen.\nMit dem Kontrollkasten \"Nur Club anzeigen\" wird zwischen 'alle Spieler' oder nur Club umgeschaltet.\n\nIn dem letzten Feld der Tabelle 8rechts) kann mit Hilfe der Pfeiltaste die Startzeit ausgewählt werden. \n\n\n"]
[null,"Bei Zahlung vor Ort",null,null,null,{"$f":"VLOOKUP(I2,event,11,FALSE)","v":60}]
[]
["Bitte den Gesamtbetrag für jede Disziplin gesondert 2 - 4 Wochen vor der Veranstaltung unter Angabe des genauen Verwendungszwecks (Vereinsnummer, Disziplin, Anzahl der Meldungen) überweisen an:"]
[null,null,null,null,{"$f":"VLOOKUP(I2,event,29,FALSE)","v":"HKBV e.V. - Sektion Bowling   Sparkasse Dieburg"}]
[null,null,null,null,"IBAN: ",{"$f":"VLOOKUP(I2,event,27,FALSE)","v":"DE 28 5085 2651 0136 0071 84"}]
[null,null,null,null,"BIC:    ",{"$f":"VLOOKUP(I2,event,28,FALSE)","v":"HELADEF1DIE"}]
[]
["Gemeldet von:"]
["Kontktdaten:",null,"Tel.:",null,null,null,null,"e Mail:"]
["EDV Nr suchen",null,null,null,null,"Namen suchen"]

{"sheet":"Daten","index":1,"n_rows":80,"n_cols":29,"rows_kept":80,"cut":false,"hidden":true,"merged":[]}
[null,"Anz Team",null,null,null,null,null,null,null,null,null,null,null,null,null,null,"Startzeiten Vorlauf",null,null,null,null,"Startzeiten ab 2 Runde"]
["Event",null,"Leitung","ort","Strasse","Tel","Fax","E-Mail","meldschluß","startgebühr","vor ort","prostart","spielort1","spielort2","Von","Bis","start1","start2","start3","start4","start5","start6","start7","start8","start9",null,"Iban","Bic","Bank"]
["Trio Damen und Herren","3","Edgar Müller","63457 Hanau","Wolfstr. 10 ","0170 / 8013807",null,"sektionssportwart-bowling@hkbv-ev.de",{"$f":"O3-14","v":"2022-11-19"},54,60,14,"Wetzlar","Hanau","2022-12-03",{"$f":"O3+1","v":"2022-12-04"},"09:00:00","12:30:00","(16:00 bei Bedarf)",null,null,null,null,null,null,null,"DE 28 5085 2651 0136 0071 84","HELADEF1DIE","HKBV e.V. - Sektion Bowling   Sparkasse Dieburg"]
["Mixed Doppel","2","Edgar Müller","63457 Hanau","Wolfstr. 10 ","0170 / 8013807",null,"sektionssportwart-bowling@hkbv-ev.de",{"$f":"O4-14","v":"2022-10-01"},36,40,18,"Linden","Kelsterbach","2022-10-15","2022-10-16","09:00:00","12:30:00","(16:00 bei Bedarf)",null,null,null,null,null,null,null,"DE 28 5085 2651 0136 0071 84","HELADEF1DIE","HKBV e.V. - Sektion Bowling   Sparkasse Dieburg"]
["Seniorinnen, Senioren Team","3","Luci Wolf","63110 Rodgau","Eugen-Roth-Str. 9","0177 / 3947622",null,"sektionsseniorenwart-bowling@hkbv-ev.de","2022-12-31",54,60,22,"Wiesbaden","Eschersheim","2023-01-14","2023-01-15","09:00:00","13:30:00"," ",null,null,null,null,null,null,null,"DE 28 5085 2651 0136 0071 84","HELADEF1DIE","HKBV e.V. - Sektion Bowling   Sparkasse Dieburg"]
["Junioren Einzel","1","Edgar Müller","63457 Hanau","Wolfstr. 10 ","0170 / 8013807",null,"sektionssportwart-bowling@hkbv-ev.de","2023-01-21",18,20,32,"Mühlheim","Langen","2023-02-04","2023-02-05","09:00:00","12:30:00","16:00:00",null,null,null,null,null,null,null,"DE 28 5085 2651 0136 0071 84","HELADEF1DIE","HKBV e.V. - Sektion Bowling   Sparkasse Dieburg"]
["Einzel Damen und Herren","1","Edgar Müller","63457 Hanau","Wolfstr. 10 ","0170 / 8013807",null,"sektionssportwart-bowling@hkbv-ev.de","2023-01-21",18,20,36,"Mühlheim","Langen","2023-02-04","2023-02-05","09:00:00","12:30:00","16:00:00",null,null,null,null,null,null,null,"DE 28 5085 2651 0136 0071 84","HELADEF1DIE","HKBV e.V. - Sektion Bowling   Sparkasse Dieburg"]
["Jugend Einzel",1,"Gabi Brandes","60529 Frankfurt","Völklingerweg 23","0162 / 9640749",null,"sektionsjugendwart-bowling@hkbv-ev.de",null,20,22,null,null,null,null,null,"13:00:00","16:00:00"," ",null,null,null,null,null,null,null,"DE 28 5085 2651 0136 0071 84","HELADEF1DIE","HKBV e.V. - Sektion Bowling   Sparkasse Dieburg"]
["Seniorinnen, Senioren und Versehrte Einzel","1","Luci Wolf","63110 Rodgau","Eugen-Roth-Str. 9","0177 / 3947622",null,"sektionsseniorenwart-bowling@hkbv-ev.de","2023-02-18",18,20,44,"Wiesbaden","Eschersheim","2023-03-04","2023-03-05","09:00:00","12:30:00","(16:00 bei Bedarf)",null,null,null,null,null,null,null,"DE 28 5085 2651 0136 0071 84","HELADEF1DIE","HKBV e.V. - Sektion Bowling   Sparkasse Dieburg"]
["Damen und Herren Doppel","2","Edgar Müller","63457 Hanau","Wolfstr. 10 ","0170 / 8013807",null,"sektionssportwart-bowling@hkbv-ev.de","2023-03-11",36,40,22,"Wiesbaden","Linden","2023-03-25","2023-03-26","09:00:00","12:30:00","16:00:00",null,null,null,null,null,null,null,"DE 28 5085 2651 0136 0071 84","HELADEF1DIE","HKBV e.V. - Sektion Bowling   Sparkasse Dieburg"]
[]
[]
[]
[]
[]
[]
[]
[]
[]
[]
[]
[]
[]
[null,null,null,null,null,null,null,null,null," "]
[]
[]
["Club"]
[null,null,"leer",null,null,null,null,null,null,null,null,null,"was"]
[{"$f":"B29&\" \"&D29","v":"8003 BC Darmstadt"},8003,"1. BSV Darmstadt 1973","BC Darmstadt",null,null,null,null,null,null,null,null,"was"]
["8004 BSV Dieburg",8004,"1. BSV Dieburg e.V. 1992","BSV Dieburg",null,null,null,null,null,null,null,null,"was"]
["8005 BC Eberstadt",8005,"1. BSV Eberstadt","BC Eberstadt",null,null,null,null,null,null,null,null,"was"]
["8007 BC 2000 Aschaffenburg",8007,"1. BV Aschaffenburg e.V.","BC 2000 Aschaffenburg",null,null,null,null,null,null,null,null,"was"]
["8009 ABV Frankfurt",8009,"ABV Frankfurt","ABV Frankfurt",null,null,null,null,null,null,null,null,"was"]
["8010 BC Bad Hersfeld",8010,"BC Bad Hersfeld","BC Bad Hersfeld"]
["8011 Cosmos Wiesbaden",8011,"BC Cosmos Wiesbaden","Cosmos Wiesbaden"]
["8019 BSV Oberrad",8019,"BSV 1990 Oberrad","BSV Oberrad"]
["8024 Finale Kassel",8024,"BSV Kassel","Finale Kassel"]
["8025 BC Langen 83",8025,"BSV Langen 83","BC Langen 83"]
["8026 BC Nord West Ffm",8026,"BSV Nord West Frankfurt","BC Nord West Ffm"]
["8027 BV 1987 Frankfurt",8027,"BV 1987 Frankfurt","BV 1987 Frankfurt"]
["8028 BV 77 Frankfurt",8028,"BV 77 Frankfurt","BV 77 Frankfurt"]
["8030 Phönix Frankfurt",8030,"BV 95 Phönix Frankfurt e.V.","Phönix Frankfurt"]
["8031 BC Blau-Gelb Frankfurt",8031,"BV Blau-Gelb Frankfurt e.V.","BC Blau-Gelb Frankfurt"]
["8032 I-Bahn SC 34 Ffm",8032,"BV City Frankfurt","I-Bahn SC 34 Ffm"]
["8033 SBV",8033,"BV City Frankfurt","SBV"]
["8036 BV Frankfurt Süd",8036,"BV Frankfurt Süd","BV Frankfurt Süd"]
["8038 BC Höchst",8038,"BV Höchst e.V.","BC Höchst"]
["8039 BC Mühlheim",8039,"BV Mühlheim","BC Mühlheim"]
["8041 BC Devils",8041,"BV Oberstedtener Devils e.V.","BC Devils"]
["8044 BC Rebstock Ffm",8044,"BV Rebstock","BC Rebstock Ffm"]
["8045 BV Römer Frankfurt",8045,"BV Römer Frankfurt","BV Römer Frankfurt"]
["8047 FSV Frankfurt",8047,"FSV Frankfurt","FSV Frankfurt"]
["8048 FTG-BC Frankfurt",8048,"FTG 1847 Frankfurt","FTG-BC Frankfurt"]
["8050 BC 83 Kelsterbach",8050,"KBV Kelsterbach","BC 83 Kelsterbach"]
["8053 Mainhattan Bowlers Frankfurt",8053,"Mainhattan Bowlers Frankfurt","Mainhattan Bowlers Frankfurt"]
["8054 SW Friedberg",8054,"Schwarz Weiss Friedberg","SW Friedberg"]
["8069 BC Wiesbaden",8069,"BC Wiesbaden e.V.","BC Wiesbaden"]
["8072 Bowlingsportclub Bensheim 08 e.V",8072,"Bowlingsportclub Bensheim 08 e.V","Bowlingsportclub Bensheim 08 e.V"]
["8073 Citystrikers",8073,"BC Citystrikers","Citystrikers"]
["8076 BC Gießen",8076,"1. BSV Gießen","BC Gießen"]
["8077 BC 67 Hanau",8077,"BV Hanau","BC 67 Hanau"]
["8078 Condor Steinheim",8078,"BV Hanau","Condor Steinheim"]
["8079 TSV 1860 Hanau",8079,"BV Hanau","TSV 1860 Hanau"]
["8081 BC Fusion Langen e.V.",8081,"BC Fusion Langen e.V.","BC Fusion Langen e.V."]
["8082 BC 75 Fortuna",8082,"BV Hanau","BC 75 Fortuna"]
["8083 1. BV Kelsterbach",8083,"1. BV Kelsterbach e.V.","1. BV Kelsterbach"]
["8084 Queer-Striker",8084,"Frankfurter Volleyball Verein e.V.","Queer-Striker"]
["8085 Blau-Gelb Fulda Strikers",8085,"PSV BG Fulda 1934/61 e.V.","Blau-Gelb Fulda Strikers"]
["26079 BV Pinoy Frankfurt",26079,"BV Pinoy Frankfurt e.V.","BV Pinoy Frankfurt"]
[{"$f":"B70&\" \"&D70","v":"37399 BV 22 Kelsterbach e.V."},37399,"BV 22 Kelsterbach e.V.","BV 22 Kelsterbach e.V."]
[{"$f":"B71&\" \"&D71","v":"260792 BBV 2020 e. V."},260792,"Bensheimer Bowling Verein 2020 e.V.","BBV 2020 e. V."]
[]
[" "]
[" "]
[" "]
["8002 AAN Schwanheim",8002,"KBVS Schwanheim","AAN Schwanheim"]
[]
[]
[" "]
[" "]

{"sheet":"Stammdaten","index":2,"n_rows":704,"n_cols":23,"rows_kept":704,"cut":false,"hidden":true,"merged":[]}
["suchen","Pass-Nr.","EDV-Nr.","Nachname","Vorname","Alertskl.","Rangl.","Club","Verein","RL-Jahr","Jun",8735,"Club",null,"suchen","Pass-Nr.","EDV-Nr.","Nachname","Vorname","Alertskl.","Rangl.","Club","Verein"]
[{"$f":"D2&\" \"&C2","v":"Diehl 15731"},147260,15731,"Diehl","Karl","Herren",0,"BC Darmstadt","1. BSV Darmstadt 1973",22,null,null,null,null,"Diehl 15731",147260,15731,"Diehl","Karl","Herren",0,"BC Darmstadt","1. BSV Darmstadt 1973"]
[{"$f":"D3&\" \"&C3","v":"Dierks 33004"},106791,33004,"Dierks","Carsten","Sen A","D","BC Darmstadt","1. BSV Darmstadt 1973",23,null,null,null,null,"Dierks 33004",106791,33004,"Dierks","Carsten","Sen A","D","BC Darmstadt","1. BSV Darmstadt 1973"]
["Fischer 8318",146102,8318,"Fischer","Rainer","Sen B","B","BC Darmstadt","1. BSV Darmstadt 1973",23,"Damen",null,null,null,"Fischer 8318",146102,8318,"Fischer","Rainer","Sen B","B","BC Darmstadt","1. BSV Darmstadt 1973"]
["Flaig 8322",100489,8322,"Flaig","Achim","Sen B","","BC Darmstadt","1. BSV Darmstadt 1973",22,"Herren",null,null,null,"Flaig 8322",100489,8322,"Flaig","Achim","Sen B","","BC Darmstadt","1. BSV Darmstadt 1973"]
["Frost 33237",140148,33237,"Frost","Gerhard","Sen B","D","BC Darmstadt","1. BSV Darmstadt 1973",23,"Jug A",null,null,null,"Frost 33237",140148,33237,"Frost","Gerhard","Sen B","D","BC Darmstadt","1. BSV Darmstadt 1973"]
["Göckel 8405",151255,8405,"Göckel","Norbert","Sen B",null,"BC Darmstadt","1. BSV Darmstadt 1973",23,"Jug B",null,null,null,"Göckel 8405",151255,8405,"Göckel","Norbert","Sen B",null,"BC Darmstadt","1. BSV Darmstadt 1973"]
["Heine 10308",151417,10308,"Heine","Jörg","Sen A","D","BC Darmstadt","1. BSV Darmstadt 1973",23,"Jug C",null,null,null,"Heine 10308",151417,10308,"Heine","Jörg","Sen A","D","BC Darmstadt","1. BSV Darmstadt 1973"]
["Kohle 15845",153300,15845,"Kohle","Richard","Sen C","D","BC Darmstadt","1. BSV Darmstadt 1973",23,"Sen A",null,null,null,"Kohle 15845",153300,15845,"Kohle","Richard","Sen C","D","BC Darmstadt","1. BSV Darmstadt 1973"]
["Schmelz 15104",100493,15104,"Schmelz","Peter","Sen B","D","BC Darmstadt","1. BSV Darmstadt 1973",23,"Sen B",null,null,null,"Schmelz 15104",100493,15104,"Schmelz","Peter","Sen B","D","BC Darmstadt","1. BSV Darmstadt 1973"]
["Schmidt 15108",100492,15108,"Schmidt","Klaus","Sen B","D","BC Darmstadt","1. BSV Darmstadt 1973",22,"Sen C",null,null,null,"Schmidt 15108",100492,15108,"Schmidt","Klaus","Sen B","D","BC Darmstadt","1. BSV Darmstadt 1973"]
["Schnellbacher 15703",147259,15703,"Schnellbacher","Peter","Sen B","E","BC Darmstadt","1. BSV Darmstadt 1973",23,"Versehrte 1",null,null,null,"Schnellbacher 15703",147259,15703,"Schnellbacher","Peter","Sen B","E","BC Darmstadt","1. BSV Darmstadt 1973"]
["Schreiner 33121",132509,33121,"Schreiner","Markus","Herren","D","BC Darmstadt","1. BSV Darmstadt 1973",23,"Versehrte 2",null,null,null,"Schreiner 33121",132509,33121,"Schreiner","Markus","Herren","D","BC Darmstadt","1. BSV Darmstadt 1973"]
["Tezak 15269",100488,15269,"Tezak","Janko","Sen B","D","BC Darmstadt","1. BSV Darmstadt 1973",23,"Jun",null,null,null,"Tezak 15269",100488,15269,"Tezak","Janko","Sen B","D","BC Darmstadt","1. BSV Darmstadt 1973"]
["Tezak 15912",67337,15912,"Tezak","Franz","Sen C",null,"BC Darmstadt","1. BSV Darmstadt 1973",23,null,null,null,null,"Tezak 15912",67337,15912,"Tezak","Franz","Sen C",null,"BC Darmstadt","1. BSV Darmstadt 1973"]
["Wilson 15741",151415,15741,"Wilson","Joseph","Herren",0,"BC Darmstadt","1. BSV Darmstadt 1973",22,null,null,null,null,"Wilson 15741",151415,15741,"Wilson","Joseph","Herren",0,"BC Darmstadt","1. BSV Darmstadt 1973"]
["Ackermann 8002",154395,8002,"Ackermann","Jürgen","Sen A","C","BSV Dieburg","1. BSV Dieburg e.V. 1992",22,null,null,null,null,"Ackermann 8002",154395,8002,"Ackermann","Jürgen","Sen A","C","BSV Dieburg","1. BSV Dieburg e.V. 1992"]
["Bikowski 15816",151872,15816,"Bikowski","Manuel","Herren",0,"BSV Dieburg","1. BSV Dieburg e.V. 1992",23,null,null,null,null,"Bikowski 15816",151872,15816,"Bikowski","Manuel","Herren",0,"BSV Dieburg","1. BSV Dieburg e.V. 1992"]
["Da Costa Araujo 33230",140132,33230,"Da Costa Araujo","Carlos","Sen A","D","BSV Dieburg","1. BSV Dieburg e.V. 1992",23,null,null,null,null,"Da Costa Araujo 33230",140132,33230,"Da Costa Araujo","Carlos","Sen A","D","BSV Dieburg","1. BSV Dieburg e.V. 1992"]
["Diehl 33316",147378,33316,"Diehl","Marco","Herren","D","BSV Dieburg","1. BSV Dieburg e.V. 1992",23,null,null,null,null,"Diehl 33316",147378,33316,"Diehl","Marco","Herren","D","BSV Dieburg","1. BSV Dieburg e.V. 1992"]
["Dürr 33283",146149,33283,"Dürr","Mathias","Sen A","E","BSV Dieburg","1. BSV Dieburg e.V. 1992",23,null,null,null,null,"Dürr 33283",146149,33283,"Dürr","Mathias","Sen A","E","BSV Dieburg","1. BSV Dieburg e.V. 1992"]
["Goldammer 8957",153143,8957,"Goldammer","Christina","Damen","C","BSV Dieburg","1. BSV Dieburg e.V. 1992",22,null,null,null,null,"Goldammer 8957",153143,8957,"Goldammer","Christina","Damen","C","BSV Dieburg","1. BSV Dieburg e.V. 1992"]
["Herling 15698",null,15698,"Herling","Hagen","Sen A","F","BSV Dieburg","1. BSV Dieburg e.V. 1992",22,null,null,null,null,"Herling 15698",null,15698,"Herling","Hagen","Sen A","F","BSV Dieburg","1. BSV Dieburg e.V. 1992"]
["Löbig 33268",144468,33268,"Löbig","Patrick","Herren","","BSV Dieburg","1. BSV Dieburg e.V. 1992",22,null,null,null,null,"Löbig 33268",144468,33268,"Löbig","Patrick","Herren","","BSV Dieburg","1. BSV Dieburg e.V. 1992"]
["Müller 33167",135873,33167,"Müller","Alex","Herren","E","BSV Dieburg","1. BSV Dieburg e.V. 1992",22,null,null,null,null,"Müller 33167",135873,33167,"Müller","Alex","Herren","E","BSV Dieburg","1. BSV Dieburg e.V. 1992"]
["Müller-Steiner 33166",135872,33166,"Müller-Steiner","Ernst","Sen B","","BSV Dieburg","1. BSV Dieburg e.V. 1992",22,null,null,null,null,"Müller-Steiner 33166",135872,33166,"Müller-Steiner","Ernst","Sen B","","BSV Dieburg","1. BSV Dieburg e.V. 1992"]
["Popiol 8956",106852,8956,"Popiol","Bernd","Sen C","","BSV Dieburg","1. BSV Dieburg e.V. 1992",22,null,null,null,null,"Popiol 8956",106852,8956,"Popiol","Bernd","Sen C","","BSV Dieburg","1. BSV Dieburg e.V. 1992"]
["Rückert 15041",100839,15041,"Rückert","Markus","Sen A","","BSV Dieburg","1. BSV Dieburg e.V. 1992",22,null,null,null,null,"Rückert 15041",100839,15041,"Rückert","Markus","Sen A","","BSV Dieburg","1. BSV Dieburg e.V. 1992"]
["Ruhlmann 15045",100840,15045,"Ruhlmann","Thomas","Sen A","D","BSV Dieburg","1. BSV Dieburg e.V. 1992",22,null,null,null,null,"Ruhlmann 15045",100840,15045,"Ruhlmann","Thomas","Sen A","D","BSV Dieburg","1. BSV Dieburg e.V. 1992"]
["Spiegler 15209",100841,15209,"Spiegler","Bernd","Sen C","E","BSV Dieburg","1. BSV Dieburg e.V. 1992",23,null,null,null,null,"Spiegler 15209",100841,15209,"Spiegler","Bernd","Sen C","E","BSV Dieburg","1. BSV Dieburg e.V. 1992"]
["St. Clair 33312",147249,33312,"St. Clair","Sebastian","Herren","F","BSV Dieburg","1. BSV Dieburg e.V. 1992",22,null,null,null,null,"St. Clair 33312",147249,33312,"St. Clair","Sebastian","Herren","F","BSV Dieburg","1. BSV Dieburg e.V. 1992"]
["Stolz 15758",151873,15758,"Stolz","Torsten","Sen A",null,"BSV Dieburg","1. BSV Dieburg e.V. 1992",23,null,null,null,null,"Stolz 15758",151873,15758,"Stolz","Torsten","Sen A",null,"BSV Dieburg","1. BSV Dieburg e.V. 1992"]
["Stork 33267",144466,33267,"Stork","Volker","Sen A","C","BSV Dieburg","1. BSV Dieburg e.V. 1992",23,null,null,null,null,"Stork 33267",144466,33267,"Stork","Volker","Sen A","C","BSV Dieburg","1. BSV Dieburg e.V. 1992"]
["Vitasovic 15323",100842,15323,"Vitasovic","Kresimir","Sen A","B","BSV Dieburg","1. BSV Dieburg e.V. 1992",23,null,null,null,null,"Vitasovic 15323",100842,15323,"Vitasovic","Kresimir","Sen A","B","BSV Dieburg","1. BSV Dieburg e.V. 1992"]
["Becker 15686",147340,15686,"Becker","Holger","Sen A","D","BC Eberstadt","1. BSV Eberstadt",23,null,null,null,null,"Becker 15686",147340,15686,"Becker","Holger","Sen A","D","BC Eberstadt","1. BSV Eberstadt"]
["Brookes-Kiefer 8153",27842,8153,"Brookes-Kiefer","Elaine","Sen B","D","BC Eberstadt","1. BSV Eberstadt",23,null,null,null,null,"Brookes-Kiefer 8153",27842,8153,"Brookes-Kiefer","Elaine","Sen B","D","BC Eberstadt","1. BSV Eberstadt"]
["Franz 33123",132519,33123,"Franz","Eitel","Sen B","E","BC Eberstadt","1. BSV Eberstadt",22,null,null,null,null,"Franz 33123",132519,33123,"Franz","Eitel","Sen B","E","BC Eberstadt","1. BSV Eberstadt"]
["Gertenbach 15827",154396,15827,"Gertenbach","Sabine","Sen C","D","BC Eberstadt","1. BSV Eberstadt",23,null,null,null,null,"Gertenbach 15827",154396,15827,"Gertenbach","Sabine","Sen C","D","BC Eberstadt","1. BSV Eberstadt"]
["Heuckeroth 15868",154397,15868,"Heuckeroth","Ursula","Sen B","D","BC Eberstadt","1. BSV Eberstadt",23,null,null,null,null,"Heuckeroth 15868",154397,15868,"Heuckeroth","Ursula","Sen B","D","BC Eberstadt","1. BSV Eberstadt"]
["Kiefer 8639",147342,8639,"Kiefer","Michael","Sen B","C","BC Eberstadt","1. BSV Eberstadt",23,null,null,null,null,"Kiefer 8639",147342,8639,"Kiefer","Michael","Sen B","C","BC Eberstadt","1. BSV Eberstadt"]
["Kraft 8694",89151,8694,"Kraft","Edgar","Sen B",0,"BC Eberstadt","1. BSV Eberstadt",22,null,null,null,null,"Kraft 8694",89151,8694,"Kraft","Edgar","Sen B",0,"BC Eberstadt","1. BSV Eberstadt"]
["Schmidt 10331",146189,10331,"Schmidt","Markus","Herren","D","BC Eberstadt","1. BSV Eberstadt",23,null,null,null,null,"Schmidt 10331",146189,10331,"Schmidt","Markus","Herren","D","BC Eberstadt","1. BSV Eberstadt"]
["Schroth 33319",147390,33319,"Schroth","Manfred","Sen B","","BC Eberstadt","1. BSV Eberstadt",22,null,null,null,null,"Schroth 33319",147390,33319,"Schroth","Manfred","Sen B","","BC Eberstadt","1. BSV Eberstadt"]
["Schwermer 15173",145911,15173,"Schwermer","Thomas","Sen A","C","BC Eberstadt","1. BSV Eberstadt",23,null,null,null,null,"Schwermer 15173",145911,15173,"Schwermer","Thomas","Sen A","C","BC Eberstadt","1. BSV Eberstadt"]
["Seyfarth 10300",106738,10300,"Seyfarth","Robert","Herren","D","BC Eberstadt","1. BSV Eberstadt",22,null,null,null,null,"Seyfarth 10300",106738,10300,"Seyfarth","Robert","Herren","D","BC Eberstadt","1. BSV Eberstadt"]
["Stein 15230",147341,15230,"Stein","Angelika","Sen C","","BC Eberstadt","1. BSV Eberstadt",22,null,null,null,null,"Stein 15230",147341,15230,"Stein","Angelika","Sen C","","BC Eberstadt","1. BSV Eberstadt"]
["Trebes 15295",100149,15295,"Trebes","Thomas","Sen A","E","BC Eberstadt","1. BSV Eberstadt",22,null,null,null,null,"Trebes 15295",100149,15295,"Trebes","Thomas","Sen A","E","BC Eberstadt","1. BSV Eberstadt"]
["Bertsch 15890",67177,15890,"Bertsch","Hans-Joachim","Sen B","E","BC Gießen","1. BSV Gießen",23,null,null,null,null,"Bertsch 15890",67177,15890,"Bertsch","Hans-Joachim","Sen B","E","BC Gießen","1. BSV Gießen"]
["Beyer 15646",89296,15646,"Beyer","Petra","Sen B","D","BC Gießen","1. BSV Gießen",23,null,null,null,null,"Beyer 15646",89296,15646,"Beyer","Petra","Sen B","D","BC Gießen","1. BSV Gießen"]
["Biskoping 15704",149154,15704,"Biskoping","Robin","Sen A",0,"BC Gießen","1. BSV Gießen",23,null,null,null,null,"Biskoping 15704",149154,15704,"Biskoping","Robin","Sen A",0,"BC Gießen","1. BSV Gießen"]
["Braun 8140",67519,8140,"Braun","Hartmut","Sen B","E","BC Gießen","1. BSV Gießen",23,null,null,null,null,"Braun 8140",67519,8140,"Braun","Hartmut","Sen B","E","BC Gießen","1. BSV Gießen"]
["Brieden 33169",135885,33169,"Brieden","Michael","Herren","C","BC Gießen","1. BSV Gießen",23,null,null,null,null,"Brieden 33169",135885,33169,"Brieden","Michael","Herren","C","BC Gießen","1. BSV Gießen"]
["Daschmann 8209",88698,8209,"Daschmann","Helmut","Sen B",0,"BC Gießen","1. BSV Gießen",23,null,null,null,null,"Daschmann 8209",88698,8209,"Daschmann","Helmut","Sen B",0,"BC Gießen","1. BSV Gießen"]
["Geck 8374",106274,8374,"Geck","Rainer","Sen A","C","BC Gießen","1. BSV Gießen",23,null,null,null,null,"Geck 8374",106274,8374,"Geck","Rainer","Sen A","C","BC Gießen","1. BSV Gießen"]
["Geck 8689",144538,8689,"Geck","Petra","Sen B",null,"BC Gießen","1. BSV Gießen",23,null,null,null,null,"Geck 8689",144538,8689,"Geck","Petra","Sen B",null,"BC Gießen","1. BSV Gießen"]
["Geck 33106",132417,33106,"Geck","Maurice","Herren","D","BC Gießen","1. BSV Gießen",23,null,null,null,null,"Geck 33106",132417,33106,"Geck","Maurice","Herren","D","BC Gießen","1. BSV Gießen"]
["Georg 8385",152067,8385,"Georg","Sebastian","Herren","C","BC Gießen","1. BSV Gießen",23,null,null,null,null,"Georg 8385",152067,8385,"Georg","Sebastian","Herren","C","BC Gießen","1. BSV Gießen"]
["Gilbert 15644",146074,15644,"Gilbert","Bertram","Sen C","D","BC Gießen","1. BSV Gießen",23,null,null,null,null,"Gilbert 15644",146074,15644,"Gilbert","Bertram","Sen C","D","BC Gießen","1. BSV Gießen"]
["Güldner 8435",100431,8435,"Güldner","Sascha","Herren","B","BC Gießen","1. BSV Gießen",23,null,null,null,null,"Güldner 8435",100431,8435,"Güldner","Sascha","Herren","B","BC Gießen","1. BSV Gießen"]
["Guntermann 33342",152144,33342,"Guntermann","Mandy","Damen","E","BC Gießen","1. BSV Gießen",23,null,null,null,null,"Guntermann 33342",152144,33342,"Guntermann","Mandy","Damen","E","BC Gießen","1. BSV Gießen"]
["Handtusch 33238",142962,33238,"Handtusch","Kai","Jug A m","D","BC Gießen","1. BSV Gießen",23,null,null,null,null,"Handtusch 33238",142962,33238,"Handtusch","Kai","Jug A m","D","BC Gießen","1. BSV Gießen"]
["Henrich 8510",142979,8510,"Henrich","Florian","Herren",0,"BC Gießen","1. BSV Gießen",23,null,null,null,null,"Henrich 8510",142979,8510,"Henrich","Florian","Herren",0,"BC Gießen","1. BSV Gießen"]
["Henrich 8511",51303,8511,"Henrich","Heinz","Sen B","D","BC Gießen","1. BSV Gießen",23,null,null,null,null,"Henrich 8511",51303,8511,"Henrich","Heinz","Sen B","D","BC Gießen","1. BSV Gießen"]
["Kehr 6113",149153,6113,"Kehr","Marco","Sen A","B","BC Gießen","1. BSV Gießen",23,null,null,null,null,"Kehr 6113",149153,6113,"Kehr","Marco","Sen A","B","BC Gießen","1. BSV Gießen"]
["Klassen 33179",135918,33179,"Klassen","Lukas","Jun","D","BC Gießen","1. BSV Gießen",23,null,null,null,null,"Klassen 33179",135918,33179,"Klassen","Lukas","Jun","D","BC Gießen","1. BSV Gießen"]
["Klassen 33248",143010,33248,"Klassen","Eugen","Herren",null,"BC Gießen","1. BSV Gießen",23,null,null,null,null,"Klassen 33248",143010,33248,"Klassen","Eugen","Herren",null,"BC Gießen","1. BSV Gießen"]
[{"$f":"D67&\" \"&C67","v":"Kolb 33213"},140061,33213,"Kolb","Nadine","Damen","","BC Gießen","1. BSV Gießen",22,null,null,null,null,"Kolb 33213",140061,33213,"Kolb","Nadine","Damen","","BC Gießen","1. BSV Gießen"]
["Müller 33329",149135,33329,"Müller","Julian","Herren","D","BC Gießen","1. BSV Gießen",23,null,null,null,null,"Müller 33329",149135,33329,"Müller","Julian","Herren","D","BC Gießen","1. BSV Gießen"]
["Opper 8910",67520,8910,"Opper","Andreas","Sen A","B","BC Gießen","1. BSV Gießen",23,null,null,null,null,"Opper 8910",67520,8910,"Opper","Andreas","Sen A","B","BC Gießen","1. BSV Gießen"]
["Pest 8938",100673,8938,"Pest","Hagen","Sen A","B","BC Gießen","1. BSV Gießen",23,null,null,null,null,"Pest 8938",100673,8938,"Pest","Hagen","Sen A","B","BC Gießen","1. BSV Gießen"]
["Rempel 14189",153317,14189,"Rempel","Kai","Herren","B","BC Gießen","1. BSV Gießen",23,null,null,null,null,"Rempel 14189",153317,14189,"Rempel","Kai","Herren","B","BC Gießen","1. BSV Gießen"]
["Röhnisch 33346",153165,33346,"Röhnisch","Josefine","Damen","E","BC Gießen","1. BSV Gießen",23,null,null,null,null,"Röhnisch 33346",153165,33346,"Röhnisch","Josefine","Damen","E","BC Gießen","1. BSV Gießen"]
["Schnee 15126",106587,15126,"Schnee","Florian","Herren","B","BC Gießen","1. BSV Gießen",23,null,null,null,null,"Schnee 15126",106587,15126,"Schnee","Florian","Herren","B","BC Gießen","1. BSV Gießen"]
["Schneider 15133",67518,15133,"Schneider","Volker","Sen A",0,"BC Gießen","1. BSV Gießen",23,null,null,null,null,"Schneider 15133",67518,15133,"Schneider","Volker","Sen A",0,"BC Gießen","1. BSV Gießen"]
["Staab 15215",67272,15215,"Staab","Manfred","Sen B","B","BC Gießen","1. BSV Gießen",23,null,null,null,null,"Staab 15215",67272,15215,"Staab","Manfred","Sen B","B","BC Gießen","1. BSV Gießen"]
["Teuser 33035",106938,33035,"Teuser","Franziska","Damen","","BC Gießen","1. BSV Gießen",22,null,null,null,null,"Teuser 33035",106938,33035,"Teuser","Franziska","Damen","","BC Gießen","1. BSV Gießen"]
["Toegel-Bertsch 15289",106278,15289,"Toegel-Bertsch","Sieglinde","Sen B","E","BC Gießen","1. BSV Gießen",23,null,null,null,null,"Toegel-Bertsch 15289",106278,15289,"Toegel-Bertsch","Sieglinde","Sen B","E","BC Gießen","1. BSV Gießen"]
["Wiesner 15375",135864,15375,"Wiesner","Christoph","Herren",0,"BC Gießen","1. BSV Gießen",23,null,null,null,null,"Wiesner 15375",135864,15375,"Wiesner","Christoph","Herren",0,"BC Gießen","1. BSV Gießen"]
["Bernhardt 8090",145933,8090,"Bernhardt","Klaus","Sen A","D","BC 2000 Aschaffenburg","1. BV Aschaffenburg e.V.",23,null,null,null,null,"Bernhardt 8090",145933,8090,"Bernhardt","Klaus","Sen A","D","BC 2000 Aschaffenburg","1. BV Aschaffenburg e.V."]
["Bruckmann 33068",106999,33068,"Bruckmann","Heike","Sen A",0,"BC 2000 Aschaffenburg","1. BV Aschaffenburg e.V.",23,null,null,null,null,"Bruckmann 33068",106999,33068,"Bruckmann","Heike","Sen A",0,"BC 2000 Aschaffenburg","1. BV Aschaffenburg e.V."]
["Burgess 33013",140122,33013,"Burgess","David","Herren",0,"BC 2000 Aschaffenburg","1. BV Aschaffenburg e.V.",23,null,null,null,null,"Burgess 33013",140122,33013,"Burgess","David","Herren",0,"BC 2000 Aschaffenburg","1. BV Aschaffenburg e.V."]
["Bürkner 33259",144506,33259,"Bürkner","Andrea","Sen B","E","BC 2000 Aschaffenburg","1. BV Aschaffenburg e.V.",23,null,null,null,null,"Bürkner 33259",144506,33259,"Bürkner","Andrea","Sen B","E","BC 2000 Aschaffenburg","1. BV Aschaffenburg e.V."]
["Fritzjus 15762",147360,15762,"Fritzjus","Jasmin","Damen","B","BC 2000 Aschaffenburg","1. BV Aschaffenburg e.V.",23,null,null,null,null,"Fritzjus 15762",147360,15762,"Fritzjus","Jasmin","Damen","B","BC 2000 Aschaffenburg","1. BV Aschaffenburg e.V."]
["Frobenius 8356",67270,8356,"Frobenius","Sven","Sen A",0,"BC 2000 Aschaffenburg","1. BV Aschaffenburg e.V.",23,null,null,null,null,"Frobenius 8356",67270,8356,"Frobenius","Sven","Sen A",0,"BC 2000 Aschaffenburg","1. BV Aschaffenburg e.V."]
["Gröger 33271",144488,33271,"Gröger","Katrin","Sen A","E","BC 2000 Aschaffenburg","1. BV Aschaffenburg e.V.",23,null,null,null,null,"Gröger 33271",144488,33271,"Gröger","Katrin","Sen A","E","BC 2000 Aschaffenburg","1. BV Aschaffenburg e.V."]
["Heeg 8473",153217,8473,"Heeg","Renate","Sen A","B","BC 2000 Aschaffenburg","1. BV Aschaffenburg e.V.",23,null,null,null,null,"Heeg 8473",153217,8473,"Heeg","Renate","Sen A","B","BC 2000 Aschaffenburg","1. BV Aschaffenburg e.V."]
["Heeg 8474",89163,8474,"Heeg","Sonja","Damen","B","BC 2000 Aschaffenburg","1. BV Aschaffenburg e.V.",22,null,null,null,null,"Heeg 8474",89163,8474,"Heeg","Sonja","Damen","B","BC 2000 Aschaffenburg","1. BV Aschaffenburg e.V."]
["Heeg 15834",153216,15834,"Heeg","Heiko","Herren",0,"BC 2000 Aschaffenburg","1. BV Aschaffenburg e.V.",23,null,null,null,null,"Heeg 15834",153216,15834,"Heeg","Heiko","Herren",0,"BC 2000 Aschaffenburg","1. BV Aschaffenburg e.V."]
["Hehl 33339",149942,33339,"Hehl","Günter","Herren",0,"BC 2000 Aschaffenburg","1. BV Aschaffenburg e.V.",23,null,null,null,null,"Hehl 33339",149942,33339,"Hehl","Günter","Herren",0,"BC 2000 Aschaffenburg","1. BV Aschaffenburg e.V."]
["Heininger 33147",135806,33147,"Heininger","Julia","Damen",null,"BC 2000 Aschaffenburg","1. BV Aschaffenburg e.V.",23,null,null,null,null,"Heininger 33147",135806,33147,"Heininger","Julia","Damen",null,"BC 2000 Aschaffenburg","1. BV Aschaffenburg e.V."]
["Heinrich 33309",147229,33309,"Heinrich","Sascha","Jun","F","BC 2000 Aschaffenburg","1. BV Aschaffenburg e.V.",22,null,null,null,null,"Heinrich 33309",147229,33309,"Heinrich","Sascha","Jun","F","BC 2000 Aschaffenburg","1. BV Aschaffenburg e.V."]
["Hügin 33114",132472,33114,"Hügin","Carina","Damen","B","BC 2000 Aschaffenburg","1. BV Aschaffenburg e.V.",23,null,null,null,null,"Hügin 33114",132472,33114,"Hügin","Carina","Damen","B","BC 2000 Aschaffenburg","1. BV Aschaffenburg e.V."]
["Inglese 8583",689,8583,"Inglese","Sandro","Herren","B","BC 2000 Aschaffenburg","1. BV Aschaffenburg e.V.",22,null,null,null,null,"Inglese 8583",689,8583,"Inglese","Sandro","Herren","B","BC 2000 Aschaffenburg","1. BV Aschaffenburg e.V."]
["Kornett 10277",144523,10277,"Kornett","Kerstin","Sen A","C","BC 2000 Aschaffenburg","1. BV Aschaffenburg e.V.",23,null,null,null,null,"Kornett 10277",144523,10277,"Kornett","Kerstin","Sen A","C","BC 2000 Aschaffenburg","1. BV Aschaffenburg e.V."]
["Koths 33003",106784,33003,"Koths","Katrin","Sen A","D","BC 2000 Aschaffenburg","1. BV Aschaffenburg e.V.",23,null,null,null,null,"Koths 33003",106784,33003,"Koths","Katrin","Sen A","D","BC 2000 Aschaffenburg","1. BV Aschaffenburg e.V."]
["Krebs 15887",66901,15887,"Krebs","Thomas","Sen A","","BC 2000 Aschaffenburg","1. BV Aschaffenburg e.V.",22,null,null,null,null,"Krebs 15887",66901,15887,"Krebs","Thomas","Sen A","","BC 2000 Aschaffenburg","1. BV Aschaffenburg e.V."]
["Löffler 33012",106829,33012,"Löffler","Dieter","Sen A",null,"BC 2000 Aschaffenburg","1. BV Aschaffenburg e.V.",22,null,null,null,null,"Löffler 33012",106829,33012,"Löffler","Dieter","Sen A",null,"BC 2000 Aschaffenburg","1. BV Aschaffenburg e.V."]
["Manns 33307",147227,33307,"Manns","Madeleine","Damen","C","BC 2000 Aschaffenburg","1. BV Aschaffenburg e.V.",22,null,null,null,null,"Manns 33307",147227,33307,"Manns","Madeleine","Damen","C","BC 2000 Aschaffenburg","1. BV Aschaffenburg e.V."]
["Pöhner 8954",106576,8954,"Pöhner","Cornelia","Damen","D","BC 2000 Aschaffenburg","1. BV Aschaffenburg e.V.",23,null,null,null,null,"Pöhner 8954",106576,8954,"Pöhner","Cornelia","Damen","D","BC 2000 Aschaffenburg","1. BV Aschaffenburg e.V."]
["Reckemeier 15398",27905,15398,"Reckemeier","Michaela","Damen","C","BC 2000 Aschaffenburg","1. BV Aschaffenburg e.V.",23,null,null,null,null,"Reckemeier 15398",27905,15398,"Reckemeier","Michaela","Damen","C","BC 2000 Aschaffenburg","1. BV Aschaffenburg e.V."]
["Reuss 15011",67267,15011,"Reuss","Dominic","Herren",0,"BC 2000 Aschaffenburg","1. BV Aschaffenburg e.V.",23,null,null,null,null,"Reuss 15011",67267,15011,"Reuss","Dominic","Herren",0,"BC 2000 Aschaffenburg","1. BV Aschaffenburg e.V."]
["Saalmüller 33334",149851,33334,"Saalmüller","Petra","Damen","F","BC 2000 Aschaffenburg","1. BV Aschaffenburg e.V.",23,null,null,null,null,"Saalmüller 33334",149851,33334,"Saalmüller","Petra","Damen","F","BC 2000 Aschaffenburg","1. BV Aschaffenburg e.V."]
["Schiller 15087",88705,15087,"Schiller","Joachim","Sen A","D","BC 2000 Aschaffenburg","1. BV Aschaffenburg e.V.",23,null,null,null,null,"Schiller 15087",88705,15087,"Schiller","Joachim","Sen A","D","BC 2000 Aschaffenburg","1. BV Aschaffenburg e.V."]
["Trebes 33052",106972,33052,"Trebes","Kerstin","Damen","B","BC 2000 Aschaffenburg","1. BV Aschaffenburg e.V.",23,null,null,null,null,"Trebes 33052",106972,33052,"Trebes","Kerstin","Damen","B","BC 2000 Aschaffenburg","1. BV Aschaffenburg e.V."]
["Tumulka 33308",147228,33308,"Tumulka","Johanna","Damen",null,"BC 2000 Aschaffenburg","1. BV Aschaffenburg e.V.",22,null,null,null,null,"Tumulka 33308",147228,33308,"Tumulka","Johanna","Damen",null,"BC 2000 Aschaffenburg","1. BV Aschaffenburg e.V."]
["Bauer 15717",147256,15717,"Bauer","Hans Jürgen","Sen C",null,"1. BV Kelsterbach","1. BV Kelsterbach e.V.",23,null,null,null,null,"Bauer 15717",147256,15717,"Bauer","Hans Jürgen","Sen C",null,"1. BV Kelsterbach","1. BV Kelsterbach e.V."]
["Brandes 8138",151351,8138,"Brandes","Gabriele","Sen A",0,"1. BV Kelsterbach","1. BV Kelsterbach e.V.",23,null,null,null,null,"Brandes 8138",151351,8138,"Brandes","Gabriele","Sen A",0,"1. BV Kelsterbach","1. BV Kelsterbach e.V."]
["Caldwell 8179",100471,8179,"Caldwell","Thomas","Sen A","D","1. BV Kelsterbach","1. BV Kelsterbach e.V.",22,null,null,null,null,"Caldwell 8179",100471,8179,"Caldwell","Thomas","Sen A","D","1. BV Kelsterbach","1. BV Kelsterbach e.V."]
["Duplois-Laun 8264",66849,8264,"Duplois-Laun","Petra","Sen B","C","1. BV Kelsterbach","1. BV Kelsterbach e.V.",23,null,null,null,null,"Duplois-Laun 8264",66849,8264,"Duplois-Laun","Petra","Sen B","C","1. BV Kelsterbach","1. BV Kelsterbach e.V."]
["Frank 33170",135895,33170,"Frank","Johann-Peter","Sen C","E","1. BV Kelsterbach","1. BV Kelsterbach e.V.",23,null,null,null,null,"Frank 33170",135895,33170,"Frank","Johann-Peter","Sen C","E","1. BV Kelsterbach","1. BV Kelsterbach e.V."]
["Grein 8420",674,8420,"Grein","Michael","Sen B",0,"1. BV Kelsterbach","1. BV Kelsterbach e.V.",22,null,null,null,null,"Grein 8420",674,8420,"Grein","Michael","Sen B",0,"1. BV Kelsterbach","1. BV Kelsterbach e.V."]
["Jerke 33127",132529,33127,"Jerke","Jonathan","Jun","C","1. BV Kelsterbach","1. BV Kelsterbach e.V.",23,null,null,null,null,"Jerke 33127",132529,33127,"Jerke","Jonathan","Jun","C","1. BV Kelsterbach","1. BV Kelsterbach e.V."]
["Korb 33175",135907,33175,"Korb","Daniel","Herren",null,"1. BV Kelsterbach","1. BV Kelsterbach e.V.",23,null,null,null,null,"Korb 33175",135907,33175,"Korb","Daniel","Herren",null,"1. BV Kelsterbach","1. BV Kelsterbach e.V."]
["Laun 8735",146073,8735,"Laun","Werner","Sen C","C","1. BV Kelsterbach","1. BV Kelsterbach e.V.",23,null,null,null,null,"Laun 8735",146073,8735,"Laun","Werner","Sen C","C","1. BV Kelsterbach","1. BV Kelsterbach e.V."]
["Nolte 8895",66854,8895,"Nolte","Joachim","Sen A","C","1. BV Kelsterbach","1. BV Kelsterbach e.V.",23,null,null,null,null,"Nolte 8895",66854,8895,"Nolte","Joachim","Sen A","C","1. BV Kelsterbach","1. BV Kelsterbach e.V."]
["Reuter 15012",67610,15012,"Reuter","Agnes","Sen B","D","1. BV Kelsterbach","1. BV Kelsterbach e.V.",23,null,null,null,null,"Reuter 15012",67610,15012,"Reuter","Agnes","Sen B","D","1. BV Kelsterbach","1. BV Kelsterbach e.V."]
["Rühl 15043",66851,15043,"Rühl","Marion","Sen B","D","1. BV Kelsterbach","1. BV Kelsterbach e.V.",22,null,null,null,null,"Rühl 15043",66851,15043,"Rühl","Marion","Sen B","D","1. BV Kelsterbach","1. BV Kelsterbach e.V."]
["Sabo 15052",89132,15052,"Sabo","Ivan","Sen B","D","1. BV Kelsterbach","1. BV Kelsterbach e.V.",23,null,null,null,null,"Sabo 15052",89132,15052,"Sabo","Ivan","Sen B","D","1. BV Kelsterbach","1. BV Kelsterbach e.V."]
["Schenke 33097",107138,33097,"Schenke","Oliver","Herren",null,"1. BV Kelsterbach","1. BV Kelsterbach e.V.",23,null,null,null,null,"Schenke 33097",107138,33097,"Schenke","Oliver","Herren",null,"1. BV Kelsterbach","1. BV Kelsterbach e.V."]
["Schönhoff 15472",66857,15472,"Schönhoff","Andreas","Herren","A","1. BV Kelsterbach","1. BV Kelsterbach e.V.",23,null,null,null,null,"Schönhoff 15472",66857,15472,"Schönhoff","Andreas","Herren","A","1. BV Kelsterbach","1. BV Kelsterbach e.V."]
["Viel 15051",147255,15051,"Viel","Christine","Sen B","C","1. BV Kelsterbach","1. BV Kelsterbach e.V.",23,null,null,null,null,"Viel 15051",147255,15051,"Viel","Christine","Sen B","C","1. BV Kelsterbach","1. BV Kelsterbach e.V."]
["Viel 33318",147386,33318,"Viel","Winfried","Sen B",0,"1. BV Kelsterbach","1. BV Kelsterbach e.V.",23,null,null,null,null,"Viel 33318",147386,33318,"Viel","Winfried","Sen B",0,"1. BV Kelsterbach","1. BV Kelsterbach e.V."]
["Ackermann 8001",151316,8001,"Ackermann","Brigitte","Sen B","D","ABV Frankfurt","ABV Frankfurt",23,null,null,null,null,"Ackermann 8001",151316,8001,"Ackermann","Brigitte","Sen B","D","ABV Frankfurt","ABV Frankfurt"]
["Aufschläger 8029",146079,8029,"Aufschläger","Jochen","Sen A",null,"ABV Frankfurt","ABV Frankfurt",23,null,null,null,null,"Aufschläger 8029",146079,8029,"Aufschläger","Jochen","Sen A",null,"ABV Frankfurt","ABV Frankfurt"]
["Curti 8204",149056,8204,"Curti","Michael","Herren","A","ABV Frankfurt","ABV Frankfurt",23,null,null,null,null,"Curti 8204",149056,8204,"Curti","Michael","Herren","A","ABV Frankfurt","ABV Frankfurt"]
["Custodio-Simon 8205",106272,8205,"Custodio-Simon","Elena","Sen C","D","ABV Frankfurt","ABV Frankfurt",23,null,null,null,null,"Custodio-Simon 8205",106272,8205,"Custodio-Simon","Elena","Sen C","D","ABV Frankfurt","ABV Frankfurt"]
["Dähler 8208",151317,8208,"Dähler","Mark","Sen A","C","ABV Frankfurt","ABV Frankfurt",23,null,null,null,null,"Dähler 8208",151317,8208,"Dähler","Mark","Sen A","C","ABV Frankfurt","ABV Frankfurt"]
["Dietz 8922",106788,8922,"Dietz","Benjamin","Herren","A","ABV Frankfurt","ABV Frankfurt",22,null,null,null,null,"Dietz 8922",106788,8922,"Dietz","Benjamin","Herren","A","ABV Frankfurt","ABV Frankfurt"]
["Doczkal 22215",66961,22215,"Doczkal","Thomas","Herren","D","ABV Frankfurt","ABV Frankfurt",23,null,null,null,null,"Doczkal 22215",66961,22215,"Doczkal","Thomas","Herren","D","ABV Frankfurt","ABV Frankfurt"]
["Emmerich 8272",151322,8272,"Emmerich","Wolfgang","Sen C","D","ABV Frankfurt","ABV Frankfurt",23,null,null,null,null,"Emmerich 8272",151322,8272,"Emmerich","Wolfgang","Sen C","D","ABV Frankfurt","ABV Frankfurt"]
[{"$f":"D131&\" \"&C131","v":"Ewald 33343"},153088,33343,"Ewald","Patrick","Jug A m","E","ABV Frankfurt","ABV Frankfurt",23,null,null,null,null,"Ewald 33343",153088,33343,"Ewald","Patrick","Jug A m","E","ABV Frankfurt","ABV Frankfurt"]
["Graf 33188",135959,33188,"Graf","Herta","Sen B","D","ABV Frankfurt","ABV Frankfurt",23,null,null,null,null,"Graf 33188",135959,33188,"Graf","Herta","Sen B","D","ABV Frankfurt","ABV Frankfurt"]
["Hartmann 15531",null,15531,"Hartmann","Philipp","Herren","D","ABV Frankfurt","ABV Frankfurt",22,null,null,null,null,"Hartmann 15531",null,15531,"Hartmann","Philipp","Herren","D","ABV Frankfurt","ABV Frankfurt"]
["Hemmelmann 302",153221,302,"Hemmelmann","Dirk","Herren",0,"ABV Frankfurt","ABV Frankfurt",23,null,null,null,null,"Hemmelmann 302",153221,302,"Hemmelmann","Dirk","Herren",0,"ABV Frankfurt","ABV Frankfurt"]
["Herre 8521",151318,8521,"Herre","Manuela","Sen B","E","ABV Frankfurt","ABV Frankfurt",23,null,null,null,null,"Herre 8521",151318,8521,"Herre","Manuela","Sen B","E","ABV Frankfurt","ABV Frankfurt"]
["Hess 8529",151321,8529,"Hess","Tobias","Herren",0,"ABV Frankfurt","ABV Frankfurt",23,null,null,null,null,"Hess 8529",151321,8529,"Hess","Tobias","Herren",0,"ABV Frankfurt","ABV Frankfurt"]
["Hübner 15705",149057,15705,"Hübner","Dennis","Herren","A","ABV Frankfurt","ABV Frankfurt",23,null,null,null,null,"Hübner 15705",149057,15705,"Hübner","Dennis","Herren","A","ABV Frankfurt","ABV Frankfurt"]
["Jost 8608",153222,8608,"Jost","Manfred","Sen B","B","ABV Frankfurt","ABV Frankfurt",23,null,null,null,null,"Jost 8608",153222,8608,"Jost","Manfred","Sen B","B","ABV Frankfurt","ABV Frankfurt"]
["Koch 8671",149055,8671,"Koch","Robert","Sen A","D","ABV Frankfurt","ABV Frankfurt",23,null,null,null,null,"Koch 8671",149055,8671,"Koch","Robert","Sen A","D","ABV Frankfurt","ABV Frankfurt"]
["Laun 8734",66980,8734,"Laun","Stephanie","Damen","C","ABV Frankfurt","ABV Frankfurt",23,null,null,null,null,"Laun 8734",66980,8734,"Laun","Stephanie","Damen","C","ABV Frankfurt","ABV Frankfurt"]
["Lucke 8759",151319,8759,"Lucke","Joachim","Sen C","C","ABV Frankfurt","ABV Frankfurt",23,null,null,null,null,"Lucke 8759",151319,8759,"Lucke","Joachim","Sen C","C","ABV Frankfurt","ABV Frankfurt"]
["Lucke 8760",151320,8760,"Lucke","Marc","Sen A","C","ABV Frankfurt","ABV Frankfurt",23,null,null,null,null,"Lucke 8760",151320,8760,"Lucke","Marc","Sen A","C","ABV Frankfurt","ABV Frankfurt"]
["Meurer 8804",67445,8804,"Meurer","Marius","Herren","B","ABV Frankfurt","ABV Frankfurt",23,null,null,null,null,"Meurer 8804",67445,8804,"Meurer","Marius","Herren","B","ABV Frankfurt","ABV Frankfurt"]
["Pöckler 33187",135958,33187,"Pöckler","Maren-Janette","Damen",null,"ABV Frankfurt","ABV Frankfurt",23,null,null,null,null,"Pöckler 33187",135958,33187,"Pöckler","Maren-Janette","Damen",null,"ABV Frankfurt","ABV Frankfurt"]
["Rau 33217",140101,33217,"Rau","Oliver","Herren",null,"ABV Frankfurt","ABV Frankfurt",23,null,null,null,null,"Rau 33217",140101,33217,"Rau","Oliver","Herren",null,"ABV Frankfurt","ABV Frankfurt"]
["Zabelt-Eschert 15411",146181,15411,"Zabelt-Eschert","Rene","Herren","B","ABV Frankfurt","ABV Frankfurt",23,null,null,null,null,"Zabelt-Eschert 15411",146181,15411,"Zabelt-Eschert","Rene","Herren","B","ABV Frankfurt","ABV Frankfurt"]
["Callsen 8181",106539,8181,"Callsen","Thomas","Sen A","D","Citystrikers","BC Citystrikers",22,null,null,null,null,"Callsen 8181",106539,8181,"Callsen","Thomas","Sen A","D","Citystrikers","BC Citystrikers"]
["Hampel 33001",153328,33001,"Hampel","Peter","Sen B","E","Citystrikers","BC Citystrikers",22,null,null,null,null,"Hampel 33001",153328,33001,"Hampel","Peter","Sen B","E","Citystrikers","BC Citystrikers"]
["Krohn 33254",143037,33254,"Krohn","Andreas","Herren","D","Citystrikers","BC Citystrikers",22,null,null,null,null,"Krohn 33254",143037,33254,"Krohn","Andreas","Herren","D","Citystrikers","BC Citystrikers"]
["Mansel 33027",106914,33027,"Mansel","Klaus","Sen C",null,"Citystrikers","BC Citystrikers",23,null,null,null,null,"Mansel 33027",106914,33027,"Mansel","Klaus","Sen C",null,"Citystrikers","BC Citystrikers"]
["Meinhardt 371",153327,371,"Meinhardt","Olaf","Sen A","D","Citystrikers","BC Citystrikers",22,null,null,null,null,"Meinhardt 371",153327,371,"Meinhardt","Olaf","Sen A","D","Citystrikers","BC Citystrikers"]
["Paul 33165",135832,33165,"Paul","Anja","Sen A","C","Citystrikers","BC Citystrikers",23,null,null,null,null,"Paul 33165",135832,33165,"Paul","Anja","Sen A","C","Citystrikers","BC Citystrikers"]
["Rau 33338",149923,33338,"Rau","Harald","Sen B",0,"Citystrikers","BC Citystrikers",22,null,null,null,null,"Rau 33338",149923,33338,"Rau","Harald","Sen B",0,"Citystrikers","BC Citystrikers"]
["Scholdra 15136",106834,15136,"Scholdra","Peter","Sen A",0,"Citystrikers","BC Citystrikers",22,null,null,null,null,"Scholdra 15136",106834,15136,"Scholdra","Peter","Sen A",0,"Citystrikers","BC Citystrikers"]
["Schulz 15865",153326,15865,"Schulz","Michaela","Sen A","D","Citystrikers","BC Citystrikers",22,null,null,null,null,"Schulz 15865",153326,15865,"Schulz","Michaela","Sen A","D","Citystrikers","BC Citystrikers"]
["Siemon 33215",140087,33215,"Siemon","Anja","Sen A","E","Citystrikers","BC Citystrikers",23,null,null,null,null,"Siemon 33215",140087,33215,"Siemon","Anja","Sen A","E","Citystrikers","BC Citystrikers"]
["Spohr 15975",149922,15975,"Spohr","Philipp","Herren","C","Citystrikers","BC Citystrikers",22,null,null,null,null,"Spohr 15975",149922,15975,"Spohr","Philipp","Herren","C","Citystrikers","BC Citystrikers"]
["Stephan 33296",147214,33296,"Stephan","Daniel","Jun","D","Citystrikers","BC Citystrikers",22,null,null,null,null,"Stephan 33296",147214,33296,"Stephan","Daniel","Jun","D","Citystrikers","BC Citystrikers"]
["Widuckel 15849",51887,15849,"Widuckel","Renè","Herren",0,"Citystrikers","BC Citystrikers",22,null,null,null,null,"Widuckel 15849",51887,15849,"Widuckel","Renè","Herren",0,"Citystrikers","BC Citystrikers"]
["Becker-Daschmann 8072",88696,8072,"Becker-Daschmann","Dagmar","Sen A","D","Cosmos Wiesbaden","BC Cosmos Wiesbaden",22,null,null,null,null,"Becker-Daschmann 8072",88696,8072,"Becker-Daschmann","Dagmar","Sen A","D","Cosmos Wiesbaden","BC Cosmos Wiesbaden"]
["Hüllenhütter 10022",145926,10022,"Hüllenhütter","Claudia","Sen B","C","Cosmos Wiesbaden","BC Cosmos Wiesbaden",23,null,null,null,null,"Hüllenhütter 10022",145926,10022,"Hüllenhütter","Claudia","Sen B","C","Cosmos Wiesbaden","BC Cosmos Wiesbaden"]
["Long 8753",145925,8753,"Long","Diana","Sen A","C","Cosmos Wiesbaden","BC Cosmos Wiesbaden",23,null,null,null,null,"Long 8753",145925,8753,"Long","Diana","Sen A","C","Cosmos Wiesbaden","BC Cosmos Wiesbaden"]
["Meissner 8796",151328,8796,"Meissner","Alexandra","Damen","D","Cosmos Wiesbaden","BC Cosmos Wiesbaden",23,null,null,null,null,"Meissner 8796",151328,8796,"Meissner","Alexandra","Damen","D","Cosmos Wiesbaden","BC Cosmos Wiesbaden"]
["Möller 8832",151188,8832,"Möller","Beate","Sen B","E","Cosmos Wiesbaden","BC Cosmos Wiesbaden",22,null,null,null,null,"Möller 8832",151188,8832,"Möller","Beate","Sen B","E","Cosmos Wiesbaden","BC Cosmos Wiesbaden"]
["Müller 8845",153219,8845,"Müller","Claudia","Sen A",null,"Cosmos Wiesbaden","BC Cosmos Wiesbaden",23,null,null,null,null,"Müller 8845",153219,8845,"Müller","Claudia","Sen A",null,"Cosmos Wiesbaden","BC Cosmos Wiesbaden"]
["Müller 8853",153220,8853,"Müller","Jochen","Sen A",null,"Cosmos Wiesbaden","BC Cosmos Wiesbaden",23,null,null,null,null,"Müller 8853",153220,8853,"Müller","Jochen","Sen A",null,"Cosmos Wiesbaden","BC Cosmos Wiesbaden"]
["Rogat 15027",106555,15027,"Rogat","Curd","Sen B","C","Cosmos Wiesbaden","BC Cosmos Wiesbaden",23,null,null,null,null,"Rogat 15027",106555,15027,"Rogat","Curd","Sen B","C","Cosmos Wiesbaden","BC Cosmos Wiesbaden"]
["Steul 15240",705,15240,"Steul","Susan","Sen B","D","Cosmos Wiesbaden","BC Cosmos Wiesbaden",23,null,null,null,null,"Steul 15240",705,15240,"Steul","Susan","Sen B","D","Cosmos Wiesbaden","BC Cosmos Wiesbaden"]
["Baker 8039",153115,8039,"Baker","Richard","Sen A",0,"BC Wiesbaden","BC Wiesbaden e.V.",22,null,null,null,null,"Baker 8039",153115,8039,"Baker","Richard","Sen A",0,"BC Wiesbaden","BC Wiesbaden e.V."]
["Bohrmann 8125",106355,8125,"Bohrmann","Berthold","Sen B","D","BC Wiesbaden","BC Wiesbaden e.V.",22,null,null,null,null,"Bohrmann 8125",106355,8125,"Bohrmann","Berthold","Sen B","D","BC Wiesbaden","BC Wiesbaden e.V."]
["Bohrmann 8126",106356,8126,"Bohrmann","Tim","Herren","C","BC Wiesbaden","BC Wiesbaden e.V.",22,null,null,null,null,"Bohrmann 8126",106356,8126,"Bohrmann","Tim","Herren","C","BC Wiesbaden","BC Wiesbaden e.V."]
["Do 33304",147224,33304,"Do","Thanh Binh","Sen A","E","BC Wiesbaden","BC Wiesbaden e.V.",22,null,null,null,null,"Do 33304",147224,33304,"Do","Thanh Binh","Sen A","E","BC Wiesbaden","BC Wiesbaden e.V."]
["Elsenberger 8270",51830,8270,"Elsenberger","Horst","Sen B","B","BC Wiesbaden","BC Wiesbaden e.V.",22,null,null,null,null,"Elsenberger 8270",51830,8270,"Elsenberger","Horst","Sen B","B","BC Wiesbaden","BC Wiesbaden e.V."]
["Fischer 10419",144494,10419,"Fischer","Hendrik","Herren","B","BC Wiesbaden","BC Wiesbaden e.V.",22,null,null,null,null,"Fischer 10419",144494,10419,"Fischer","Hendrik","Herren","B","BC Wiesbaden","BC Wiesbaden e.V."]
["Fritz 33222",140114,33222,"Fritz","Michael","Sen A","D","BC Wiesbaden","BC Wiesbaden e.V.",22,null,null,null,null,"Fritz 33222",140114,33222,"Fritz","Michael","Sen A","D","BC Wiesbaden","BC Wiesbaden e.V."]
["Gurlt 10683",153124,10683,"Gurlt","Michael","Sen B",0,"BC Wiesbaden","BC Wiesbaden e.V.",22,null,null,null,null,"Gurlt 10683",153124,10683,"Gurlt","Michael","Sen B",0,"BC Wiesbaden","BC Wiesbaden e.V."]
["Heimann 33336",149915,33336,"Heimann","Daniela","Damen",0,"BC Wiesbaden","BC Wiesbaden e.V.",22,null,null,null,null,"Heimann 33336",149915,33336,"Heimann","Daniela","Damen",0,"BC Wiesbaden","BC Wiesbaden e.V."]
["Horn 33305",147225,33305,"Horn","Thomas","Sen A","C","BC Wiesbaden","BC Wiesbaden e.V.",22,null,null,null,null,"Horn 33305",147225,33305,"Horn","Thomas","Sen A","C","BC Wiesbaden","BC Wiesbaden e.V."]
["Hüllenhütter 33089",107088,33089,"Hüllenhütter","Peter","Sen B","D","BC Wiesbaden","BC Wiesbaden e.V.",22,null,null,null,null,"Hüllenhütter 33089",107088,33089,"Hüllenhütter","Peter","Sen B","D","BC Wiesbaden","BC Wiesbaden e.V."]
["Könner 8683",153286,8683,"Könner","Horst","Sen A","D","BC Wiesbaden","BC Wiesbaden e.V.",22,null,null,null,null,"Könner 8683",153286,8683,"Könner","Horst","Sen A","D","BC Wiesbaden","BC Wiesbaden e.V."]
["Maaß 26427",140119,26427,"Maaß","Christian","Herren",null,"BC Wiesbaden","BC Wiesbaden e.V.",22,null,null,null,null,"Maaß 26427",140119,26427,"Maaß","Christian","Herren",null,"BC Wiesbaden","BC Wiesbaden e.V."]
["Rabenseifner 15679",147292,15679,"Rabenseifner","René","Herren","","BC Wiesbaden","BC Wiesbaden e.V.",22,null,null,null,null,"Rabenseifner 15679",147292,15679,"Rabenseifner","René","Herren","","BC Wiesbaden","BC Wiesbaden e.V."]
["Schenker 33223",140115,33223,"Schenker","Raik","Sen A","D","BC Wiesbaden","BC Wiesbaden e.V.",22,null,null,null,null,"Schenker 33223",140115,33223,"Schenker","Raik","Sen A","D","BC Wiesbaden","BC Wiesbaden e.V."]
["Schmitt 33341",151280,33341,"Schmitt","Thomas","Herren",0,"BC Wiesbaden","BC Wiesbaden e.V.",22,null,null,null,null,"Schmitt 33341",151280,33341,"Schmitt","Thomas","Herren",0,"BC Wiesbaden","BC Wiesbaden e.V."]
["Tavares 22116",149997,22116,"Tavares","Sérgio","Herren",0,"BC Wiesbaden","BC Wiesbaden e.V.",22,null,null,null,null,"Tavares 22116",149997,22116,"Tavares","Sérgio","Herren",0,"BC Wiesbaden","BC Wiesbaden e.V."]
["Teisler 33272",144493,33272,"Teisler","Lutz","Herren","C","BC Wiesbaden","BC Wiesbaden e.V.",22,null,null,null,null,"Teisler 33272",144493,33272,"Teisler","Lutz","Herren","C","BC Wiesbaden","BC Wiesbaden e.V."]
["Tran 33300",147220,33300,"Tran","Khoi Nguyen","Jug B","E","BC Wiesbaden","BC Wiesbaden e.V.",22,null,null,null,null,"Tran 33300",147220,33300,"Tran","Khoi Nguyen","Jug B","E","BC Wiesbaden","BC Wiesbaden e.V."]
["Tran 33306",147226,33306,"Tran","Thi Nhung","Damen","","BC Wiesbaden","BC Wiesbaden e.V.",22,null,null,null,null,"Tran 33306",147226,33306,"Tran","Thi Nhung","Damen","","BC Wiesbaden","BC Wiesbaden e.V."]
["Vogt 15998",106765,15998,"Vogt","Michael","Sen A","D","BC Wiesbaden","BC Wiesbaden e.V.",22,null,null,null,null,"Vogt 15998",106765,15998,"Vogt","Michael","Sen A","D","BC Wiesbaden","BC Wiesbaden e.V."]
["Weidl 15349",147291,15349,"Weidl","Sebastian","Herren","","BC Wiesbaden","BC Wiesbaden e.V.",22,null,null,null,null,"Weidl 15349",147291,15349,"Weidl","Sebastian","Herren","","BC Wiesbaden","BC Wiesbaden e.V."]
["Deutsch 10653",144519,10653,"Deutsch","Jennifer","Damen","D","BBV 2020 e. V.","Bensheimer Bowling Verein 2020 e.V.",23,null,null,null,null,"Deutsch 10653",144519,10653,"Deutsch","Jennifer","Damen","D","BBV 2020 e. V.","Bensheimer Bowling Verein 2020 e.V."]
["Deutsch 33262",144518,33262,"Deutsch","Wolfgang","Sen B","E","BBV 2020 e. V.","Bensheimer Bowling Verein 2020 e.V.",23,null,null,null,null,"Deutsch 33262",144518,33262,"Deutsch","Wolfgang","Sen B","E","BBV 2020 e. V.","Bensheimer Bowling Verein 2020 e.V."]
["Hebenstreit 33063",106992,33063,"Hebenstreit","Christina","Damen","E","BBV 2020 e. V.","Bensheimer Bowling Verein 2020 e.V.",23,null,null,null,null,"Hebenstreit 33063",106992,33063,"Hebenstreit","Christina","Damen","E","BBV 2020 e. V.","Bensheimer Bowling Verein 2020 e.V."]
["Jäckel 33211",140059,33211,"Jäckel","Dennis","Herren","E","BBV 2020 e. V.","Bensheimer Bowling Verein 2020 e.V.",23,null,null,null,null,"Jäckel 33211",140059,33211,"Jäckel","Dennis","Herren","E","BBV 2020 e. V.","Bensheimer Bowling Verein 2020 e.V."]
[{"$f":"D195&\" \"&C195","v":"Kastner 33139"},132595,33139,"Kastner","Werner","Sen A","E","BBV 2020 e. V.","Bensheimer Bowling Verein 2020 e.V.",23,null,null,null,null,"Kastner 33139",132595,33139,"Kastner","Werner","Sen A","E","BBV 2020 e. V.","Bensheimer Bowling Verein 2020 e.V."]
["Krämer 33141",132593,33141,"Krämer","Stefan","Herren",0,"BBV 2020 e. V.","Bensheimer Bowling Verein 2020 e.V.",23,null,null,null,null,"Krämer 33141",132593,33141,"Krämer","Stefan","Herren",0,"BBV 2020 e. V.","Bensheimer Bowling Verein 2020 e.V."]
["Kuderna 15904",67240,15904,"Kuderna","Alexander","Herren","D","BBV 2020 e. V.","Bensheimer Bowling Verein 2020 e.V.",23,null,null,null,null,"Kuderna 15904",67240,15904,"Kuderna","Alexander","Herren","D","BBV 2020 e. V.","Bensheimer Bowling Verein 2020 e.V."]
["Leonhardt 15793",149951,15793,"Leonhardt","Yves","Sen A",null,"BBV 2020 e. V.","Bensheimer Bowling Verein 2020 e.V.",23,null,null,null,null,"Leonhardt 15793",149951,15793,"Leonhardt","Yves","Sen A",null,"BBV 2020 e. V.","Bensheimer Bowling Verein 2020 e.V."]
["Liebitz 33310",147236,33310,"Liebitz","Oliver","Herren",0,"BBV 2020 e. V.","Bensheimer Bowling Verein 2020 e.V.",23,null,null,null,null,"Liebitz 33310",147236,33310,"Liebitz","Oliver","Herren",0,"BBV 2020 e. V.","Bensheimer Bowling Verein 2020 e.V."]
["Mlotek 15954",100355,15954,"Mlotek","Marc","Herren","D","BBV 2020 e. V.","Bensheimer Bowling Verein 2020 e.V.",23,null,null,null,null,"Mlotek 15954",100355,15954,"Mlotek","Marc","Herren","D","BBV 2020 e. V.","Bensheimer Bowling Verein 2020 e.V."]
["Schuster 4377",146182,4377,"Schuster","Norbert","Sen A","C","BBV 2020 e. V.","Bensheimer Bowling Verein 2020 e.V.",23,null,null,null,null,"Schuster 4377",146182,4377,"Schuster","Norbert","Sen A","C","BBV 2020 e. V.","Bensheimer Bowling Verein 2020 e.V."]
["Stichling 218",146104,218,"Stichling","Christopher","Herren","D","BBV 2020 e. V.","Bensheimer Bowling Verein 2020 e.V.",23,null,null,null,null,"Stichling 218",146104,218,"Stichling","Christopher","Herren","D","BBV 2020 e. V.","Bensheimer Bowling Verein 2020 e.V."]
["Thatcher 15952",100357,15952,"Thatcher","Daniel","Herren",null,"BBV 2020 e. V.","Bensheimer Bowling Verein 2020 e.V.",23,null,null,null,null,"Thatcher 15952",100357,15952,"Thatcher","Daniel","Herren",null,"BBV 2020 e. V.","Bensheimer Bowling Verein 2020 e.V."]
["Listmann 15905",67249,15905,"Listmann","Thorsten","Herren",null,"Bowlingsportclub Bensheim 08 e.V","Bowlingsportclub Bensheim 08 e.V",23,null,null,null,null,"Listmann 15905",67249,15905,"Listmann","Thorsten","Herren",null,"Bowlingsportclub Bensheim 08 e.V","Bowlingsportclub Bensheim 08 e.V"]
["Oriakhel 33212",140060,33212,"Oriakhel","Fahim","Herren","E","Bowlingsportclub Bensheim 08 e.V","Bowlingsportclub Bensheim 08 e.V",23,null,null,null,null,"Oriakhel 33212",140060,33212,"Oriakhel","Fahim","Herren","E","Bowlingsportclub Bensheim 08 e.V","Bowlingsportclub Bensheim 08 e.V"]
["Reich 15837",153287,15837,"Reich","Michael","Sen A","D","Bowlingsportclub Bensheim 08 e.V","Bowlingsportclub Bensheim 08 e.V",23,null,null,null,null,"Reich 15837",153287,15837,"Reich","Michael","Sen A","D","Bowlingsportclub Bensheim 08 e.V","Bowlingsportclub Bensheim 08 e.V"]
["Reich 15899",67235,15899,"Reich","Peggy","Sen A",0,"Bowlingsportclub Bensheim 08 e.V","Bowlingsportclub Bensheim 08 e.V",22,null,null,null,null,"Reich 15899",67235,15899,"Reich","Peggy","Sen A",0,"Bowlingsportclub Bensheim 08 e.V","Bowlingsportclub Bensheim 08 e.V"]
["Westram 15873",153288,15873,"Westram","Boris","Herren","E","Bowlingsportclub Bensheim 08 e.V","Bowlingsportclub Bensheim 08 e.V",23,null,null,null,null,"Westram 15873",153288,15873,"Westram","Boris","Herren","E","Bowlingsportclub Bensheim 08 e.V","Bowlingsportclub Bensheim 08 e.V"]
["Wright 15795",149918,15795,"Wright","Claudia","Sen A","D","Bowlingsportclub Bensheim 08 e.V","Bowlingsportclub Bensheim 08 e.V",23,null,null,null,null,"Wright 15795",149918,15795,"Wright","Claudia","Sen A","D","Bowlingsportclub Bensheim 08 e.V","Bowlingsportclub Bensheim 08 e.V"]
["Wright 15796",149919,15796,"Wright","Mark","Sen A","D","Bowlingsportclub Bensheim 08 e.V","Bowlingsportclub Bensheim 08 e.V",23,null,null,null,null,"Wright 15796",149919,15796,"Wright","Mark","Sen A","D","Bowlingsportclub Bensheim 08 e.V","Bowlingsportclub Bensheim 08 e.V"]
["Bigall 8100",151340,8100,"Bigall","Marcel","Herren","B","BSV Oberrad","BSV 1990 Oberrad",23,null,null,null,null,"Bigall 8100",151340,8100,"Bigall","Marcel","Herren","B","BSV Oberrad","BSV 1990 Oberrad"]
["Bigall 8102",151341,8102,"Bigall","Volker","Sen A","C","BSV Oberrad","BSV 1990 Oberrad",23,null,null,null,null,"Bigall 8102",151341,8102,"Bigall","Volker","Sen A","C","BSV Oberrad","BSV 1990 Oberrad"]
["Reß 33216",140097,33216,"Reß","Gavino","Sen A","","BSV Oberrad","BSV 1990 Oberrad",22,null,null,null,null,"Reß 33216",140097,33216,"Reß","Gavino","Sen A","","BSV Oberrad","BSV 1990 Oberrad"]
["Scheuermann 15081",147330,15081,"Scheuermann","Ludwig","Sen B","D","BSV Oberrad","BSV 1990 Oberrad",23,null,null,null,null,"Scheuermann 15081",147330,15081,"Scheuermann","Ludwig","Sen B","D","BSV Oberrad","BSV 1990 Oberrad"]
["Scholz 15138",151342,15138,"Scholz","Erhard","Sen B",0,"BSV Oberrad","BSV 1990 Oberrad",23,null,null,null,null,"Scholz 15138",151342,15138,"Scholz","Erhard","Sen B",0,"BSV Oberrad","BSV 1990 Oberrad"]
["Stapf 15220",66960,15220,"Stapf","Thorsten","Herren","C","BSV Oberrad","BSV 1990 Oberrad",23,null,null,null,null,"Stapf 15220",66960,15220,"Stapf","Thorsten","Herren","C","BSV Oberrad","BSV 1990 Oberrad"]
["Verdecchia 15318",88625,15318,"Verdecchia","Robert","Sen C",null,"BSV Oberrad","BSV 1990 Oberrad",23,null,null,null,null,"Verdecchia 15318",88625,15318,"Verdecchia","Robert","Sen C",null,"BSV Oberrad","BSV 1990 Oberrad"]
["Willems 15380",151343,15380,"Willems","Jan","Herren",0,"BSV Oberrad","BSV 1990 Oberrad",23,null,null,null,null,"Willems 15380",151343,15380,"Willems","Jan","Herren",0,"BSV Oberrad","BSV 1990 Oberrad"]
["Agerbo 15933",67524,15933,"Agerbo","Jesper","Herren","A","Finale Kassel","BSV Kassel",23,null,null,null,null,"Agerbo 15933",67524,15933,"Agerbo","Jesper","Herren","A","Finale Kassel","BSV Kassel"]
["Aust 8032",67409,8032,"Aust","Karsten","Herren","A","Finale Kassel","BSV Kassel",23,null,null,null,null,"Aust 8032",67409,8032,"Aust","Karsten","Herren","A","Finale Kassel","BSV Kassel"]
["Beier 28797",104144,28797,"Beier","Tobias","Herren","B","Finale Kassel","BSV Kassel",23,null,null,null,null,"Beier 28797",104144,28797,"Beier","Tobias","Herren","B","Finale Kassel","BSV Kassel"]
["Bergmann 17397",148475,17397,"Bergmann","Mike","Jun","A","Finale Kassel","BSV Kassel",23,null,null,null,null,"Bergmann 17397",148475,17397,"Bergmann","Mike","Jun","A","Finale Kassel","BSV Kassel"]
["Büchler 33349",153230,33349,"Büchler","Heiko","Sen A","D","Finale Kassel","BSV Kassel",23,null,null,null,null,"Büchler 33349",153230,33349,"Büchler","Heiko","Sen A","D","Finale Kassel","BSV Kassel"]
["Canady 8183",107078,8183,"Canady","David","Herren",0,"Finale Kassel","BSV Kassel",23,null,null,null,null,"Canady 8183",107078,8183,"Canady","David","Herren",0,"Finale Kassel","BSV Kassel"]
["Collmann 8196",153281,8196,"Collmann","Dieter","Sen B","C","Finale Kassel","BSV Kassel",22,null,null,null,null,"Collmann 8196",153281,8196,"Collmann","Dieter","Sen B","C","Finale Kassel","BSV Kassel"]
["Heine 8485",100371,8485,"Heine","Frank","Sen A",null,"Finale Kassel","BSV Kassel",23,null,null,null,null,"Heine 8485",100371,8485,"Heine","Frank","Sen A",null,"Finale Kassel","BSV Kassel"]
["Heller 8499",145975,8499,"Heller","Roswitha","Sen C",0,"Finale Kassel","BSV Kassel",23,null,null,null,null,"Heller 8499",145975,8499,"Heller","Roswitha","Sen C",0,"Finale Kassel","BSV Kassel"]
["Henneberg 33137",132589,33137,"Henneberg","Nico","Herren","B","Finale Kassel","BSV Kassel",23,null,null,null,null,"Henneberg 33137",132589,33137,"Henneberg","Nico","Herren","B","Finale Kassel","BSV Kassel"]
["Hernitschek 16386",153282,16386,"Hernitschek","Andreas","Herren","A","Finale Kassel","BSV Kassel",23,null,null,null,null,"Hernitschek 16386",153282,16386,"Hernitschek","Andreas","Herren","A","Finale Kassel","BSV Kassel"]
["Hilgenberg 15602",149940,15602,"Hilgenberg","Björn","Herren","A","Finale Kassel","BSV Kassel",23,null,null,null,null,"Hilgenberg 15602",149940,15602,"Hilgenberg","Björn","Herren","A","Finale Kassel","BSV Kassel"]
["Hohl 10517",154502,10517,"Hohl","Tim","Jun",0,"Finale Kassel","BSV Kassel",23,null,null,null,null,"Hohl 10517",154502,10517,"Hohl","Tim","Jun",0,"Finale Kassel","BSV Kassel"]
["Horn 33164",135868,33164,"Horn","Fabien","Herren","C","Finale Kassel","BSV Kassel",23,null,null,null,null,"Horn 33164",135868,33164,"Horn","Fabien","Herren","C","Finale Kassel","BSV Kassel"]
["Hübner 8570",89170,8570,"Hübner","Rolf","Sen B","C","Finale Kassel","BSV Kassel",23,null,null,null,null,"Hübner 8570",89170,8570,"Hübner","Rolf","Sen B","C","Finale Kassel","BSV Kassel"]
["Jonasdofsky 26146",120229,26146,"Jonasdofsky","Mark","Herren","A","Finale Kassel","BSV Kassel",23,null,null,null,null,"Jonasdofsky 26146",120229,26146,"Jonasdofsky","Mark","Herren","A","Finale Kassel","BSV Kassel"]
["Kallup 8619",100433,8619,"Kallup","Werner","Sen C","C","Finale Kassel","BSV Kassel",23,null,null,null,null,"Kallup 8619",100433,8619,"Kallup","Werner","Sen C","C","Finale Kassel","BSV Kassel"]
["Kiel 33278",146120,33278,"Kiel","Manuela","Damen","E","Finale Kassel","BSV Kassel",23,null,null,null,null,"Kiel 33278",146120,33278,"Kiel","Manuela","Damen","E","Finale Kassel","BSV Kassel"]
["Konieczny 18802",146059,18802,"Konieczny","Bodo","Herren",null,"Finale Kassel","BSV Kassel",23,null,null,null,null,"Konieczny 18802",146059,18802,"Konieczny","Bodo","Herren",null,"Finale Kassel","BSV Kassel"]
["Lauck 10572",135941,10572,"Lauck","Manuel","Herren","","Finale Kassel","BSV Kassel",22,null,null,null,null,"Lauck 10572",135941,10572,"Lauck","Manuel","Herren","","Finale Kassel","BSV Kassel"]
["Mand 15876",153283,15876,"Mand","Lothar","Sen B","D","Finale Kassel","BSV Kassel",23,null,null,null,null,"Mand 15876",153283,15876,"Mand","Lothar","Sen B","D","Finale Kassel","BSV Kassel"]
["Mann 33351",152134,33351,"Mann","Christian","Herren","C","Finale Kassel","BSV Kassel",23,null,null,null,null,"Mann 33351",152134,33351,"Mann","Christian","Herren","C","Finale Kassel","BSV Kassel"]
["Moor 15613",144470,15613,"Moor","Paul","Herren","A","Finale Kassel","BSV Kassel",23,null,null,null,null,"Moor 15613",144470,15613,"Moor","Paul","Herren","A","Finale Kassel","BSV Kassel"]
["Morig 24826",109606,24826,"Morig","Oliver","Herren","A","Finale Kassel","BSV Kassel",23,null,null,null,null,"Morig 24826",109606,24826,"Morig","Oliver","Herren","A","Finale Kassel","BSV Kassel"]
["Müller 15972",100344,15972,"Müller","Tobias","Herren","D","Finale Kassel","BSV Kassel",22,null,null,null,null,"Müller 15972",100344,15972,"Müller","Tobias","Herren","D","Finale Kassel","BSV Kassel"]
["Özsoy 33149",135812,33149,"Özsoy","Volkan","Herren","C","Finale Kassel","BSV Kassel",23,null,null,null,null,"Özsoy 33149",135812,33149,"Özsoy","Volkan","Herren","C","Finale Kassel","BSV Kassel"]
["Raithel 15471",149941,15471,"Raithel","Frank","Sen B","D","Finale Kassel","BSV Kassel",23,null,null,null,null,"Raithel 15471",149941,15471,"Raithel","Frank","Sen B","D","Finale Kassel","BSV Kassel"]
["Spangenberg 33357",154447,33357,"Spangenberg","Christoph","Herren",null,"Finale Kassel","BSV Kassel",23,null,null,null,null,"Spangenberg 33357",154447,33357,"Spangenberg","Christoph","Herren",null,"Finale Kassel","BSV Kassel"]
["Teece 25587",79779,25587,"Teece","Richard","Herren",null,"Finale Kassel","BSV Kassel",23,null,null,null,null,"Teece 25587",79779,25587,"Teece","Richard","Herren",null,"Finale Kassel","BSV Kassel"]
["Vluggen 33360",154501,33360,"Vluggen","Vincent","Jun",0,"Finale Kassel","BSV Kassel",23,null,null,null,null,"Vluggen 33360",154501,33360,"Vluggen","Vincent","Jun",0,"Finale Kassel","BSV Kassel"]
["Weller 33350",153231,33350,"Weller","Wera","Damen","F","Finale Kassel","BSV Kassel",23,null,null,null,null,"Weller 33350",153231,33350,"Weller","Wera","Damen","F","Finale Kassel","BSV Kassel"]
["Winternheimer 26157",147305,26157,"Winternheimer","Pascal","Herren","A","Finale Kassel","BSV Kassel",23,null,null,null,null,"Winternheimer 26157",147305,26157,"Winternheimer","Pascal","Herren","A","Finale Kassel","BSV Kassel"]
["Wolff 33095",140146,33095,"Wolff","Svenja","Damen","D","Finale Kassel","BSV Kassel",23,null,null,null,null,"Wolff 33095",140146,33095,"Wolff","Svenja","Damen","D","Finale Kassel","BSV Kassel"]
["Coffey 33348",153207,33348,"Coffey","Christopher","Herren",0,"BC Langen 83","BSV Langen 83",22,null,null,null,null,"Coffey 33348",153207,33348,"Coffey","Christopher","Herren",0,"BC Langen 83","BSV Langen 83"]
["Devine 8228",106667,8228,"Devine","David","Sen B","E","BC Langen 83","BSV Langen 83",22,null,null,null,null,"Devine 8228",106667,8228,"Devine","David","Sen B","E","BC Langen 83","BSV Langen 83"]
["Dietrich 8243",106661,8243,"Dietrich","Dieter","Sen B","C","BC Langen 83","BSV Langen 83",22,null,null,null,null,"Dietrich 8243",106661,8243,"Dietrich","Dieter","Sen B","C","BC Langen 83","BSV Langen 83"]
["Fischer 8315",147381,8315,"Fischer","Peter","Sen A","C","BC Langen 83","BSV Langen 83",22,null,null,null,null,"Fischer 8315",147381,8315,"Fischer","Peter","Sen A","C","BC Langen 83","BSV Langen 83"]
["Heindl 8484",149112,8484,"Heindl","Manfred","Sen C","","BC Langen 83","BSV Langen 83",22,null,null,null,null,"Heindl 8484",149112,8484,"Heindl","Manfred","Sen C","","BC Langen 83","BSV Langen 83"]
["Kimbell 15792",51130,15792,"Kimbell","Michael","Herren","C","BC Langen 83","BSV Langen 83",22,null,null,null,null,"Kimbell 15792",51130,15792,"Kimbell","Michael","Herren","C","BC Langen 83","BSV Langen 83"]
["Kümpel 33221",140110,33221,"Kümpel","Christian","Herren","E","BC Langen 83","BSV Langen 83",22,null,null,null,null,"Kümpel 33221",140110,33221,"Kümpel","Christian","Herren","E","BC Langen 83","BSV Langen 83"]
[{"$f":"D259&\" \"&C259","v":"Neiczer 8875"},149111,8875,"Neiczer","Ladislaus","Sen B","C","BC Langen 83","BSV Langen 83",22,null,null,null,null,"Neiczer 8875",149111,8875,"Neiczer","Ladislaus","Sen B","C","BC Langen 83","BSV Langen 83"]
["Rabe 33220",140108,33220,"Rabe","Thomas","Herren","E","BC Langen 83","BSV Langen 83",22,null,null,null,null,"Rabe 33220",140108,33220,"Rabe","Thomas","Herren","E","BC Langen 83","BSV Langen 83"]
["Schäfer 15064",154365,15064,"Schäfer","Jürgen","Sen B","D","BC Langen 83","BSV Langen 83",22,null,null,null,null,"Schäfer 15064",154365,15064,"Schäfer","Jürgen","Sen B","D","BC Langen 83","BSV Langen 83"]
["Schley 15099",100462,15099,"Schley","Gisela","Sen B",0,"BC Langen 83","BSV Langen 83",22,null,null,null,null,"Schley 15099",100462,15099,"Schley","Gisela","Sen B",0,"BC Langen 83","BSV Langen 83"]
["Schley 15100",154364,15100,"Schley","Hans-Joachim","Sen B","C","BC Langen 83","BSV Langen 83",22,null,null,null,null,"Schley 15100",154364,15100,"Schley","Hans-Joachim","Sen B","C","BC Langen 83","BSV Langen 83"]
["Schuckart-Cramer 26526",144521,26526,"Schuckart-Cramer","Sascha","Herren","C","BC Langen 83","BSV Langen 83",22,null,null,null,null,"Schuckart-Cramer 26526",144521,26526,"Schuckart-Cramer","Sascha","Herren","C","BC Langen 83","BSV Langen 83"]
["Seipel 15184",100463,15184,"Seipel","Walter","Sen B","D","BC Langen 83","BSV Langen 83",22,null,null,null,null,"Seipel 15184",100463,15184,"Seipel","Walter","Sen B","D","BC Langen 83","BSV Langen 83"]
["Staudte 33042",106947,33042,"Staudte","Thomas","Sen A","D","BC Langen 83","BSV Langen 83",22,null,null,null,null,"Staudte 33042",106947,33042,"Staudte","Thomas","Sen A","D","BC Langen 83","BSV Langen 83"]
["Staudte 33050",106971,33050,"Staudte","Anita","Sen B","F","BC Langen 83","BSV Langen 83",22,null,null,null,null,"Staudte 33050",106971,33050,"Staudte","Anita","Sen B","F","BC Langen 83","BSV Langen 83"]
["Stelzer 15234",153093,15234,"Stelzer","Rudolf","Sen C",0,"BC Langen 83","BSV Langen 83",22,null,null,null,null,"Stelzer 15234",153093,15234,"Stelzer","Rudolf","Sen C",0,"BC Langen 83","BSV Langen 83"]
["Völker 15772",152143,15772,"Völker","Terry","Sen B","E","BC Langen 83","BSV Langen 83",22,null,null,null,null,"Völker 15772",152143,15772,"Völker","Terry","Sen B","E","BC Langen 83","BSV Langen 83"]
["Büttner 8175",106652,8175,"Büttner","Stefan","Sen B",0,"BC Nord West Ffm","BSV Nord West Frankfurt",22,null,null,null,null,"Büttner 8175",106652,8175,"Büttner","Stefan","Sen B",0,"BC Nord West Ffm","BSV Nord West Frankfurt"]
["Obst 8900",106651,8900,"Obst","Mike","Sen A","D","BC Nord West Ffm","BSV Nord West Frankfurt",22,null,null,null,null,"Obst 8900",106651,8900,"Obst","Mike","Sen A","D","BC Nord West Ffm","BSV Nord West Frankfurt"]
["Obst 8901",106650,8901,"Obst","Roland","Sen B","C","BC Nord West Ffm","BSV Nord West Frankfurt",22,null,null,null,null,"Obst 8901",106650,8901,"Obst","Roland","Sen B","C","BC Nord West Ffm","BSV Nord West Frankfurt"]
["Olbrich 8904",106653,8904,"Olbrich","Manfred","Sen A","C","BC Nord West Ffm","BSV Nord West Frankfurt",22,null,null,null,null,"Olbrich 8904",106653,8904,"Olbrich","Manfred","Sen A","C","BC Nord West Ffm","BSV Nord West Frankfurt"]
["Olbrich 15892",67428,15892,"Olbrich","Bernd","Sen A","C","BC Nord West Ffm","BSV Nord West Frankfurt",22,null,null,null,null,"Olbrich 15892",67428,15892,"Olbrich","Bernd","Sen A","C","BC Nord West Ffm","BSV Nord West Frankfurt"]
["Tippmann 15287",106649,15287,"Tippmann","Harry","Sen C","","BC Nord West Ffm","BSV Nord West Frankfurt",22,null,null,null,null,"Tippmann 15287",106649,15287,"Tippmann","Harry","Sen C","","BC Nord West Ffm","BSV Nord West Frankfurt"]
["Uhlig 15305",100689,15305,"Uhlig","Donald","Sen B","C","BC Nord West Ffm","BSV Nord West Frankfurt",22,null,null,null,null,"Uhlig 15305",100689,15305,"Uhlig","Donald","Sen B","C","BC Nord West Ffm","BSV Nord West Frankfurt"]
["Arold 15530",146094,15530,"Arold","Daniel","Herren","C","BV 1987 Frankfurt","BV 1987 Frankfurt",22,null,null,null,null,"Arold 15530",146094,15530,"Arold","Daniel","Herren","C","BV 1987 Frankfurt","BV 1987 Frankfurt"]
["Barth 8046",106332,8046,"Barth","Marcel","Sen A","B","BV 1987 Frankfurt","BV 1987 Frankfurt",22,null,null,null,null,"Barth 8046",106332,8046,"Barth","Marcel","Sen A","B","BV 1987 Frankfurt","BV 1987 Frankfurt"]
["Catibog 3288",130764,3288,"Catibog","Ernesto","Herren","C","BV 1987 Frankfurt","BV 1987 Frankfurt",22,null,null,null,null,"Catibog 3288",130764,3288,"Catibog","Ernesto","Herren","C","BV 1987 Frankfurt","BV 1987 Frankfurt"]
["Dengs 8220",106333,8220,"Dengs","Heinz","Sen B","","BV 1987 Frankfurt","BV 1987 Frankfurt",22,null,null,null,null,"Dengs 8220",106333,8220,"Dengs","Heinz","Sen B","","BV 1987 Frankfurt","BV 1987 Frankfurt"]
["Doffin 15675",27440,15675,"Doffin","Wolfgang","Sen B","D","BV 1987 Frankfurt","BV 1987 Frankfurt",22,null,null,null,null,"Doffin 15675",27440,15675,"Doffin","Wolfgang","Sen B","D","BV 1987 Frankfurt","BV 1987 Frankfurt"]
["Gebhardt 8371",144485,8371,"Gebhardt","Carsten","Herren","B","BV 1987 Frankfurt","BV 1987 Frankfurt",22,null,null,null,null,"Gebhardt 8371",144485,8371,"Gebhardt","Carsten","Herren","B","BV 1987 Frankfurt","BV 1987 Frankfurt"]
["Haase 15803",151893,15803,"Haase","Reiner","Sen B","C","BV 1987 Frankfurt","BV 1987 Frankfurt",22,null,null,null,null,"Haase 15803",151893,15803,"Haase","Reiner","Sen B","C","BV 1987 Frankfurt","BV 1987 Frankfurt"]
["Kärmer 15570",146095,15570,"Kärmer","Björn","Herren","C","BV 1987 Frankfurt","BV 1987 Frankfurt",22,null,null,null,null,"Kärmer 15570",146095,15570,"Kärmer","Björn","Herren","C","BV 1987 Frankfurt","BV 1987 Frankfurt"]
["Mader 8769",106335,8769,"Mader","Gabi","Sen A","D","BV 1987 Frankfurt","BV 1987 Frankfurt",22,null,null,null,null,"Mader 8769",106335,8769,"Mader","Gabi","Sen A","D","BV 1987 Frankfurt","BV 1987 Frankfurt"]
["Malow 15859",153299,15859,"Malow","Marco","Sen A","B","BV 1987 Frankfurt","BV 1987 Frankfurt",22,null,null,null,null,"Malow 15859",153299,15859,"Malow","Marco","Sen A","B","BV 1987 Frankfurt","BV 1987 Frankfurt"]
["Rahner 15674",27439,15674,"Rahner","Viktor","Sen A","D","BV 1987 Frankfurt","BV 1987 Frankfurt",22,null,null,null,null,"Rahner 15674",27439,15674,"Rahner","Viktor","Sen A","D","BV 1987 Frankfurt","BV 1987 Frankfurt"]
["Reinfelder 33294",147211,33294,"Reinfelder","Patrick","Herren","E","BV 1987 Frankfurt","BV 1987 Frankfurt",22,null,null,null,null,"Reinfelder 33294",147211,33294,"Reinfelder","Patrick","Herren","E","BV 1987 Frankfurt","BV 1987 Frankfurt"]
["Schinkario 15094",106337,15094,"Schinkario","Nicole","Damen",0,"BV 1987 Frankfurt","BV 1987 Frankfurt",22,null,null,null,null,"Schinkario 15094",106337,15094,"Schinkario","Nicole","Damen",0,"BV 1987 Frankfurt","BV 1987 Frankfurt"]
["Schröder 15577",151897,15577,"Schröder","Philip","Herren","D","BV 1987 Frankfurt","BV 1987 Frankfurt",22,null,null,null,null,"Schröder 15577",151897,15577,"Schröder","Philip","Herren","D","BV 1987 Frankfurt","BV 1987 Frankfurt"]
["Schubert 15151",106988,15151,"Schubert","Mike","Herren","","BV 1987 Frankfurt","BV 1987 Frankfurt",22,null,null,null,null,"Schubert 15151",106988,15151,"Schubert","Mike","Herren","","BV 1987 Frankfurt","BV 1987 Frankfurt"]
["Struth 15257",146093,15257,"Struth","Harald","Sen B",0,"BV 1987 Frankfurt","BV 1987 Frankfurt",22,null,null,null,null,"Struth 15257",146093,15257,"Struth","Harald","Sen B",0,"BV 1987 Frankfurt","BV 1987 Frankfurt"]
["Tardt 15264",146092,15264,"Tardt","Axel","Sen B",0,"BV 1987 Frankfurt","BV 1987 Frankfurt",22,null,null,null,null,"Tardt 15264",146092,15264,"Tardt","Axel","Sen B",0,"BV 1987 Frankfurt","BV 1987 Frankfurt"]
["Vogel 15324",99942,15324,"Vogel","Bernd","Sen B","","BV 1987 Frankfurt","BV 1987 Frankfurt",22,null,null,null,null,"Vogel 15324",99942,15324,"Vogel","Bernd","Sen B","","BV 1987 Frankfurt","BV 1987 Frankfurt"]
["Winter 10068",147246,10068,"Winter","Asko","Sen A","D","BV 1987 Frankfurt","BV 1987 Frankfurt",22,null,null,null,null,"Winter 10068",147246,10068,"Winter","Asko","Sen A","D","BV 1987 Frankfurt","BV 1987 Frankfurt"]
["Chalkidis 8190",145912,8190,"Chalkidis","Anastasios","Sen A",null,"BV 22 Kelsterbach e.V.","BV 22 Kelsterbach e.V.",23,null,null,null,null,"Chalkidis 8190",145912,8190,"Chalkidis","Anastasios","Sen A",null,"BV 22 Kelsterbach e.V.","BV 22 Kelsterbach e.V."]
["Clouser 15945",154467,15945,"Clouser","John","Sen A",0,"BV 22 Kelsterbach e.V.","BV 22 Kelsterbach e.V.",23,null,null,null,null,"Clouser 15945",154467,15945,"Clouser","John","Sen A",0,"BV 22 Kelsterbach e.V.","BV 22 Kelsterbach e.V."]
["Drabe 15709",149151,15709,"Drabe","Sven","Herren",0,"BV 22 Kelsterbach e.V.","BV 22 Kelsterbach e.V.",23,null,null,null,null,"Drabe 15709",149151,15709,"Drabe","Sven","Herren",0,"BV 22 Kelsterbach e.V.","BV 22 Kelsterbach e.V."]
["Gall 33358",154466,33358,"Gall","Fiona","Jug A w",0,"BV 22 Kelsterbach e.V.","BV 22 Kelsterbach e.V.",23,null,null,null,null,"Gall 33358",154466,33358,"Gall","Fiona","Jug A w",0,"BV 22 Kelsterbach e.V.","BV 22 Kelsterbach e.V."]
["Hochhaus 15885",154478,15885,"Hochhaus","Jonny","Sen A","D","BV 22 Kelsterbach e.V.","BV 22 Kelsterbach e.V.",23,null,null,null,null,"Hochhaus 15885",154478,15885,"Hochhaus","Jonny","Sen A","D","BV 22 Kelsterbach e.V.","BV 22 Kelsterbach e.V."]
["Hochhaus 15891",154479,15891,"Hochhaus","Jan","Herren","C","BV 22 Kelsterbach e.V.","BV 22 Kelsterbach e.V.",23,null,null,null,null,"Hochhaus 15891",154479,15891,"Hochhaus","Jan","Herren","C","BV 22 Kelsterbach e.V.","BV 22 Kelsterbach e.V."]
["Hochhaus 15937",67660,15937,"Hochhaus","Barbara","Sen A",0,"BV 22 Kelsterbach e.V.","BV 22 Kelsterbach e.V.",23,null,null,null,null,"Hochhaus 15937",67660,15937,"Hochhaus","Barbara","Sen A",0,"BV 22 Kelsterbach e.V.","BV 22 Kelsterbach e.V."]
["Höhn 33153",135822,33153,"Höhn","Sascha","Herren",0,"BV 22 Kelsterbach e.V.","BV 22 Kelsterbach e.V.",23,null,null,null,null,"Höhn 33153",135822,33153,"Höhn","Sascha","Herren",0,"BV 22 Kelsterbach e.V.","BV 22 Kelsterbach e.V."]
["Knobloch 10069",149152,10069,"Knobloch","Joerg","Herren",0,"BV 22 Kelsterbach e.V.","BV 22 Kelsterbach e.V.",23,null,null,null,null,"Knobloch 10069",149152,10069,"Knobloch","Joerg","Herren",0,"BV 22 Kelsterbach e.V.","BV 22 Kelsterbach e.V."]
["Machura 15782",151443,15782,"Machura","Sandra","Damen","D","BV 22 Kelsterbach e.V.","BV 22 Kelsterbach e.V.",23,null,null,null,null,"Machura 15782",151443,15782,"Machura","Sandra","Damen","D","BV 22 Kelsterbach e.V.","BV 22 Kelsterbach e.V."]
["Machura 15783",151442,15783,"Machura","Damian","Herren","C","BV 22 Kelsterbach e.V.","BV 22 Kelsterbach e.V.",23,null,null,null,null,"Machura 15783",151442,15783,"Machura","Damian","Herren","C","BV 22 Kelsterbach e.V.","BV 22 Kelsterbach e.V."]
["Serat 33291",147208,33291,"Serat","Sasilak","Jug A w","E","BV 22 Kelsterbach e.V.","BV 22 Kelsterbach e.V.",23,null,null,null,null,"Serat 33291",147208,33291,"Serat","Sasilak","Jug A w","E","BV 22 Kelsterbach e.V.","BV 22 Kelsterbach e.V."]
["Spendler 15208",153213,15208,"Spendler","Peggy","Sen A",0,"BV 22 Kelsterbach e.V.","BV 22 Kelsterbach e.V.",23,null,null,null,null,"Spendler 15208",153213,15208,"Spendler","Peggy","Sen A",0,"BV 22 Kelsterbach e.V.","BV 22 Kelsterbach e.V."]
["Beckel 8064",106604,8064,"Beckel","Martina","Sen B","A","BV 77 Frankfurt","BV 77 Frankfurt",23,null,null,null,null,"Beckel 8064",106604,8064,"Beckel","Martina","Sen B","A","BV 77 Frankfurt","BV 77 Frankfurt"]
["Belgar 8080",152069,8080,"Belgar","Rene","Herren","A","BV 77 Frankfurt","BV 77 Frankfurt",23,null,null,null,null,"Belgar 8080",152069,8080,"Belgar","Rene","Herren","A","BV 77 Frankfurt","BV 77 Frankfurt"]
["Blank 24604",55304,24604,"Blank","Kathrin","Damen","C","BV 77 Frankfurt","BV 77 Frankfurt",22,null,null,null,null,"Blank 24604",55304,24604,"Blank","Kathrin","Damen","C","BV 77 Frankfurt","BV 77 Frankfurt"]
["Bristot 8463",140106,8463,"Bristot","Andrea","Damen","","BV 77 Frankfurt","BV 77 Frankfurt",22,null,null,null,null,"Bristot 8463",140106,8463,"Bristot","Andrea","Damen","","BV 77 Frankfurt","BV 77 Frankfurt"]
["Castro 8188",12754,8188,"Castro","Ferdinand","Herren","A","BV 77 Frankfurt","BV 77 Frankfurt",23,null,null,null,null,"Castro 8188",12754,8188,"Castro","Ferdinand","Herren","A","BV 77 Frankfurt","BV 77 Frankfurt"]
["Dengler 26608",127631,26608,"Dengler","Sabine","Jun","C","BV 77 Frankfurt","BV 77 Frankfurt",23,null,null,null,null,"Dengler 26608",127631,26608,"Dengler","Sabine","Jun","C","BV 77 Frankfurt","BV 77 Frankfurt"]
["Dengs 33313",147353,33313,"Dengs","Kevin","Herren","C","BV 77 Frankfurt","BV 77 Frankfurt",23,null,null,null,null,"Dengs 33313",147353,33313,"Dengs","Kevin","Herren","C","BV 77 Frankfurt","BV 77 Frankfurt"]
["Dengs 33314",147352,33314,"Dengs","Marco","Herren","C","BV 77 Frankfurt","BV 77 Frankfurt",23,null,null,null,null,"Dengs 33314",147352,33314,"Dengs","Marco","Herren","C","BV 77 Frankfurt","BV 77 Frankfurt"]
["Filor 8399",147314,8399,"Filor","Alexandra","Damen","A","BV 77 Frankfurt","BV 77 Frankfurt",23,null,null,null,null,"Filor 8399",147314,8399,"Filor","Alexandra","Damen","A","BV 77 Frankfurt","BV 77 Frankfurt"]
["Fuertes 8359",106606,8359,"Fuertes","Alfonso","Sen C",0,"BV 77 Frankfurt","BV 77 Frankfurt",23,null,null,null,null,"Fuertes 8359",106606,8359,"Fuertes","Alfonso","Sen C",0,"BV 77 Frankfurt","BV 77 Frankfurt"]
["Fuertes 8360",107116,8360,"Fuertes","Daniel","Herren","A","BV 77 Frankfurt","BV 77 Frankfurt",23,null,null,null,null,"Fuertes 8360",107116,8360,"Fuertes","Daniel","Herren","A","BV 77 Frankfurt","BV 77 Frankfurt"]
["Göbel - Janka 8403",106573,8403,"Göbel - Janka","Michaela","Damen","A","BV 77 Frankfurt","BV 77 Frankfurt",23,null,null,null,null,"Göbel - Janka 8403",106573,8403,"Göbel - Janka","Michaela","Damen","A","BV 77 Frankfurt","BV 77 Frankfurt"]
["Henrich 8514",67314,8514,"Henrich","Sven","Herren","A","BV 77 Frankfurt","BV 77 Frankfurt",23,null,null,null,null,"Henrich 8514",67314,8514,"Henrich","Sven","Herren","A","BV 77 Frankfurt","BV 77 Frankfurt"]
["Janssen 10691",153193,10691,"Janssen","Jonathan","Herren","C","BV 77 Frankfurt","BV 77 Frankfurt",23,null,null,null,null,"Janssen 10691",153193,10691,"Janssen","Jonathan","Herren","C","BV 77 Frankfurt","BV 77 Frankfurt"]
[{"$f":"D323&\" \"&C323","v":"Krüger 10439"},132498,10439,"Krüger","Wilhelm","Herren","","BV 77 Frankfurt","BV 77 Frankfurt",22,null,null,null,null,"Krüger 10439",132498,10439,"Krüger","Wilhelm","Herren","","BV 77 Frankfurt","BV 77 Frankfurt"]
["Poller 8955",106607,8955,"Poller","Armin","Sen A","B","BV 77 Frankfurt","BV 77 Frankfurt",23,null,null,null,null,"Poller 8955",106607,8955,"Poller","Armin","Sen A","B","BV 77 Frankfurt","BV 77 Frankfurt"]
["Poller 15596",149145,15596,"Poller","Elke","Sen A",0,"BV 77 Frankfurt","BV 77 Frankfurt",23,null,null,null,null,"Poller 15596",149145,15596,"Poller","Elke","Sen A",0,"BV 77 Frankfurt","BV 77 Frankfurt"]
["Rogalla 33150",135816,33150,"Rogalla","Frank","Sen B","D","BV 77 Frankfurt","BV 77 Frankfurt",23,null,null,null,null,"Rogalla 33150",135816,33150,"Rogalla","Frank","Sen B","D","BV 77 Frankfurt","BV 77 Frankfurt"]
["Strauß 8045",135997,8045,"Strauß","Jeannine","Damen","A","BV 77 Frankfurt","BV 77 Frankfurt",23,null,null,null,null,"Strauß 8045",135997,8045,"Strauß","Jeannine","Damen","A","BV 77 Frankfurt","BV 77 Frankfurt"]
["Weibrich 26632",127769,26632,"Weibrich","Florentine","Jun","B","BV 77 Frankfurt","BV 77 Frankfurt",23,null,null,null,null,"Weibrich 26632",127769,26632,"Weibrich","Florentine","Jun","B","BV 77 Frankfurt","BV 77 Frankfurt"]
["Wiederhold 15766",39421,15766,"Wiederhold","Alexander","Herren","D","BV 77 Frankfurt","BV 77 Frankfurt",22,null,null,null,null,"Wiederhold 15766",39421,15766,"Wiederhold","Alexander","Herren","D","BV 77 Frankfurt","BV 77 Frankfurt"]
["Berk 23125",100322,23125,"Berk","Johannes","Sen B","B","Phönix Frankfurt","BV 95 Phönix Frankfurt e.V.",22,null,null,null,null,"Berk 23125",100322,23125,"Berk","Johannes","Sen B","B","Phönix Frankfurt","BV 95 Phönix Frankfurt e.V."]
["Crider 2220",127794,2220,"Crider","Marshal","Herren",0,"Phönix Frankfurt","BV 95 Phönix Frankfurt e.V.",22,null,null,null,null,"Crider 2220",127794,2220,"Crider","Marshal","Herren",0,"Phönix Frankfurt","BV 95 Phönix Frankfurt e.V."]
["Dietz 8245",144529,8245,"Dietz","Christian","Herren",0,"Phönix Frankfurt","BV 95 Phönix Frankfurt e.V.",22,null,null,null,null,"Dietz 8245",144529,8245,"Dietz","Christian","Herren",0,"Phönix Frankfurt","BV 95 Phönix Frankfurt e.V."]
["Flick 15804",151884,15804,"Flick","Peter Uwe","Sen A","","Phönix Frankfurt","BV 95 Phönix Frankfurt e.V.",22,null,null,null,null,"Flick 15804",151884,15804,"Flick","Peter Uwe","Sen A","","Phönix Frankfurt","BV 95 Phönix Frankfurt e.V."]
["Friedrichs 22176",145765,22176,"Friedrichs","Tim","Herren","A","Phönix Frankfurt","BV 95 Phönix Frankfurt e.V.",22,null,null,null,null,"Friedrichs 22176",145765,22176,"Friedrichs","Tim","Herren","A","Phönix Frankfurt","BV 95 Phönix Frankfurt e.V."]
["Gallo 33092",107121,33092,"Gallo","Adrian","Jun","C","Phönix Frankfurt","BV 95 Phönix Frankfurt e.V.",22,null,null,null,null,"Gallo 33092",107121,33092,"Gallo","Adrian","Jun","C","Phönix Frankfurt","BV 95 Phönix Frankfurt e.V."]
["Herbig 10243",147218,10243,"Herbig","Frank","Sen A",0,"Phönix Frankfurt","BV 95 Phönix Frankfurt e.V.",22,null,null,null,null,"Herbig 10243",147218,10243,"Herbig","Frank","Sen A",0,"Phönix Frankfurt","BV 95 Phönix Frankfurt e.V."]
["Hill 26683",154307,26683,"Hill","Casey","Herren","B","Phönix Frankfurt","BV 95 Phönix Frankfurt e.V.",22,null,null,null,null,"Hill 26683",154307,26683,"Hill","Casey","Herren","B","Phönix Frankfurt","BV 95 Phönix Frankfurt e.V."]
["Modenbach 8825",67609,8825,"Modenbach","Christian","Sen B","B","Phönix Frankfurt","BV 95 Phönix Frankfurt e.V.",22,null,null,null,null,"Modenbach 8825",67609,8825,"Modenbach","Christian","Sen B","B","Phönix Frankfurt","BV 95 Phönix Frankfurt e.V."]
["Neß 15653",104103,15653,"Neß","Daniel","Herren","C","Phönix Frankfurt","BV 95 Phönix Frankfurt e.V.",22,null,null,null,null,"Neß 15653",104103,15653,"Neß","Daniel","Herren","C","Phönix Frankfurt","BV 95 Phönix Frankfurt e.V."]
["Ray Love II 14165",105121,14165,"Ray Love II","Gloster","Herren","A","Phönix Frankfurt","BV 95 Phönix Frankfurt e.V.",22,null,null,null,null,"Ray Love II 14165",105121,14165,"Ray Love II","Gloster","Herren","A","Phönix Frankfurt","BV 95 Phönix Frankfurt e.V."]
["Rohn 33036",106939,33036,"Rohn","Jörg","Herren","C","Phönix Frankfurt","BV 95 Phönix Frankfurt e.V.",22,null,null,null,null,"Rohn 33036",106939,33036,"Rohn","Jörg","Herren","C","Phönix Frankfurt","BV 95 Phönix Frankfurt e.V."]
["Schubert 15992",135928,15992,"Schubert","Nick","Jun","D","Phönix Frankfurt","BV 95 Phönix Frankfurt e.V.",22,null,null,null,null,"Schubert 15992",135928,15992,"Schubert","Nick","Jun","D","Phönix Frankfurt","BV 95 Phönix Frankfurt e.V."]
["Smith 14718",153145,14718,"Smith","Tony","Sen A",0,"Phönix Frankfurt","BV 95 Phönix Frankfurt e.V.",22,null,null,null,null,"Smith 14718",153145,14718,"Smith","Tony","Sen A",0,"Phönix Frankfurt","BV 95 Phönix Frankfurt e.V."]
["Spelten 33258",151174,33258,"Spelten","Christopher","Jun","E","Phönix Frankfurt","BV 95 Phönix Frankfurt e.V.",22,null,null,null,null,"Spelten 33258",151174,33258,"Spelten","Christopher","Jun","E","Phönix Frankfurt","BV 95 Phönix Frankfurt e.V."]
["Winter 14091",149141,14091,"Winter","Florian","Herren","C","Phönix Frankfurt","BV 95 Phönix Frankfurt e.V.",22,null,null,null,null,"Winter 14091",149141,14091,"Winter","Florian","Herren","C","Phönix Frankfurt","BV 95 Phönix Frankfurt e.V."]
["Appel 8024",67606,8024,"Appel","Rolf","Sen B","B","BC Blau-Gelb Frankfurt","BV Blau-Gelb Frankfurt e.V.",23,null,null,null,null,"Appel 8024",67606,8024,"Appel","Rolf","Sen B","B","BC Blau-Gelb Frankfurt","BV Blau-Gelb Frankfurt e.V."]
["Auth 8035",89408,8035,"Auth","Ralf","Sen A",null,"BC Blau-Gelb Frankfurt","BV Blau-Gelb Frankfurt e.V.",23,null,null,null,null,"Auth 8035",89408,8035,"Auth","Ralf","Sen A",null,"BC Blau-Gelb Frankfurt","BV Blau-Gelb Frankfurt e.V."]
["Bauer 15991",106704,15991,"Bauer","Dominik","Herren","D","BC Blau-Gelb Frankfurt","BV Blau-Gelb Frankfurt e.V.",23,null,null,null,null,"Bauer 15991",106704,15991,"Bauer","Dominik","Herren","D","BC Blau-Gelb Frankfurt","BV Blau-Gelb Frankfurt e.V."]
["Baumann 12869",140074,12869,"Baumann","Norbert","Sen C","C","BC Blau-Gelb Frankfurt","BV Blau-Gelb Frankfurt e.V.",23,null,null,null,null,"Baumann 12869",140074,12869,"Baumann","Norbert","Sen C","C","BC Blau-Gelb Frankfurt","BV Blau-Gelb Frankfurt e.V."]
["Below 21199",149939,21199,"Below","Christoph","Herren","C","BC Blau-Gelb Frankfurt","BV Blau-Gelb Frankfurt e.V.",23,null,null,null,null,"Below 21199",149939,21199,"Below","Christoph","Herren","C","BC Blau-Gelb Frankfurt","BV Blau-Gelb Frankfurt e.V."]
["Bienert 8095",145977,8095,"Bienert","Petra","Sen B",0,"BC Blau-Gelb Frankfurt","BV Blau-Gelb Frankfurt e.V.",23,null,null,null,null,"Bienert 8095",145977,8095,"Bienert","Petra","Sen B",0,"BC Blau-Gelb Frankfurt","BV Blau-Gelb Frankfurt e.V."]
["Dinkel-Klaeden 10576",147298,10576,"Dinkel-Klaeden","Brigitte","Sen B","C","BC Blau-Gelb Frankfurt","BV Blau-Gelb Frankfurt e.V.",23,null,null,null,null,"Dinkel-Klaeden 10576",147298,10576,"Dinkel-Klaeden","Brigitte","Sen B","C","BC Blau-Gelb Frankfurt","BV Blau-Gelb Frankfurt e.V."]
["Firmbach 8307",145978,8307,"Firmbach","Volker","Sen C",null,"BC Blau-Gelb Frankfurt","BV Blau-Gelb Frankfurt e.V.",23,null,null,null,null,"Firmbach 8307",145978,8307,"Firmbach","Volker","Sen C",null,"BC Blau-Gelb Frankfurt","BV Blau-Gelb Frankfurt e.V."]
["Geretshauser 8388",67607,8388,"Geretshauser","Kurt","Sen B","D","BC Blau-Gelb Frankfurt","BV Blau-Gelb Frankfurt e.V.",23,null,null,null,null,"Geretshauser 8388",67607,8388,"Geretshauser","Kurt","Sen B","D","BC Blau-Gelb Frankfurt","BV Blau-Gelb Frankfurt e.V."]
["Gladigau 13056",52081,13056,"Gladigau","Philipp","Herren","A","BC Blau-Gelb Frankfurt","BV Blau-Gelb Frankfurt e.V.",23,null,null,null,null,"Gladigau 13056",52081,13056,"Gladigau","Philipp","Herren","A","BC Blau-Gelb Frankfurt","BV Blau-Gelb Frankfurt e.V."]
["Hakin 15813",153306,15813,"Hakin","Fabio","Herren","B","BC Blau-Gelb Frankfurt","BV Blau-Gelb Frankfurt e.V.",23,null,null,null,null,"Hakin 15813",153306,15813,"Hakin","Fabio","Herren","B","BC Blau-Gelb Frankfurt","BV Blau-Gelb Frankfurt e.V."]
["Hensel 8515",146119,8515,"Hensel","Bernd","Sen B",0,"BC Blau-Gelb Frankfurt","BV Blau-Gelb Frankfurt e.V.",23,null,null,null,null,"Hensel 8515",146119,8515,"Hensel","Bernd","Sen B",0,"BC Blau-Gelb Frankfurt","BV Blau-Gelb Frankfurt e.V."]
["Hüllenhütter 8571",106556,8571,"Hüllenhütter","Wolfgang","Sen B","D","BC Blau-Gelb Frankfurt","BV Blau-Gelb Frankfurt e.V.",23,null,null,null,null,"Hüllenhütter 8571",106556,8571,"Hüllenhütter","Wolfgang","Sen B","D","BC Blau-Gelb Frankfurt","BV Blau-Gelb Frankfurt e.V."]
["Jackwerth 8584",145979,8584,"Jackwerth","Klaus","Sen B","D","BC Blau-Gelb Frankfurt","BV Blau-Gelb Frankfurt e.V.",23,null,null,null,null,"Jackwerth 8584",145979,8584,"Jackwerth","Klaus","Sen B","D","BC Blau-Gelb Frankfurt","BV Blau-Gelb Frankfurt e.V."]
["Knischewski 8663",145980,8663,"Knischewski","Petra","Sen B","C","BC Blau-Gelb Frankfurt","BV Blau-Gelb Frankfurt e.V.",22,null,null,null,null,"Knischewski 8663",145980,8663,"Knischewski","Petra","Sen B","C","BC Blau-Gelb Frankfurt","BV Blau-Gelb Frankfurt e.V."]
["König 8682",145981,8682,"König","Uta","Sen A","A","BC Blau-Gelb Frankfurt","BV Blau-Gelb Frankfurt e.V.",23,null,null,null,null,"König 8682",145981,8682,"König","Uta","Sen A","A","BC Blau-Gelb Frankfurt","BV Blau-Gelb Frankfurt e.V."]
["Lamprecht 15918",106886,15918,"Lamprecht","Angelika","Sen B","C","BC Blau-Gelb Frankfurt","BV Blau-Gelb Frankfurt e.V.",23,null,null,null,null,"Lamprecht 15918",106886,15918,"Lamprecht","Angelika","Sen B","C","BC Blau-Gelb Frankfurt","BV Blau-Gelb Frankfurt e.V."]
["Mader 8771",145982,8771,"Mader","Sven","Herren","A","BC Blau-Gelb Frankfurt","BV Blau-Gelb Frankfurt e.V.",23,null,null,null,null,"Mader 8771",145982,8771,"Mader","Sven","Herren","A","BC Blau-Gelb Frankfurt","BV Blau-Gelb Frankfurt e.V."]
["Malow 15127",144469,15127,"Malow","Christine","Damen","B","BC Blau-Gelb Frankfurt","BV Blau-Gelb Frankfurt e.V.",23,null,null,null,null,"Malow 15127",144469,15127,"Malow","Christine","Damen","B","BC Blau-Gelb Frankfurt","BV Blau-Gelb Frankfurt e.V."]
["Müller 8860",51494,8860,"Müller","Susi","Sen A","D","BC Blau-Gelb Frankfurt","BV Blau-Gelb Frankfurt e.V.",22,null,null,null,null,"Müller 8860",51494,8860,"Müller","Susi","Sen A","D","BC Blau-Gelb Frankfurt","BV Blau-Gelb Frankfurt e.V."]
["Muth 8867",145983,8867,"Muth","Michael","Sen A","D","BC Blau-Gelb Frankfurt","BV Blau-Gelb Frankfurt e.V.",23,null,null,null,null,"Muth 8867",145983,8867,"Muth","Michael","Sen A","D","BC Blau-Gelb Frankfurt","BV Blau-Gelb Frankfurt e.V."]
["Naujoks 8870",151324,8870,"Naujoks","Angela","Sen B","B","BC Blau-Gelb Frankfurt","BV Blau-Gelb Frankfurt e.V.",23,null,null,null,null,"Naujoks 8870",151324,8870,"Naujoks","Angela","Sen B","B","BC Blau-Gelb Frankfurt","BV Blau-Gelb Frankfurt e.V."]
["Naumann 8873",145985,8873,"Naumann","Edith","Sen B","E","BC Blau-Gelb Frankfurt","BV Blau-Gelb Frankfurt e.V.",23,null,null,null,null,"Naumann 8873",145985,8873,"Naumann","Edith","Sen B","E","BC Blau-Gelb Frankfurt","BV Blau-Gelb Frankfurt e.V."]
["Naumann 8874",145984,8874,"Naumann","Hans-Jürgen","Sen B","B","BC Blau-Gelb Frankfurt","BV Blau-Gelb Frankfurt e.V.",23,null,null,null,null,"Naumann 8874",145984,8874,"Naumann","Hans-Jürgen","Sen B","B","BC Blau-Gelb Frankfurt","BV Blau-Gelb Frankfurt e.V."]
["Neubauer 33051",106973,33051,"Neubauer","Eva","Sen B","F","BC Blau-Gelb Frankfurt","BV Blau-Gelb Frankfurt e.V.",23,null,null,null,null,"Neubauer 33051",106973,33051,"Neubauer","Eva","Sen B","F","BC Blau-Gelb Frankfurt","BV Blau-Gelb Frankfurt e.V."]
["Norz 8896",145986,8896,"Norz","Norbert","Sen B","E","BC Blau-Gelb Frankfurt","BV Blau-Gelb Frankfurt e.V.",23,null,null,null,null,"Norz 8896",145986,8896,"Norz","Norbert","Sen B","E","BC Blau-Gelb Frankfurt","BV Blau-Gelb Frankfurt e.V."]
["Pohl 15769",151325,15769,"Pohl","Kanittha","Damen","B","BC Blau-Gelb Frankfurt","BV Blau-Gelb Frankfurt e.V.",23,null,null,null,null,"Pohl 15769",151325,15769,"Pohl","Kanittha","Damen","B","BC Blau-Gelb Frankfurt","BV Blau-Gelb Frankfurt e.V."]
["Reitze 15005",145987,15005,"Reitze","Klaus","Sen B","A","BC Blau-Gelb Frankfurt","BV Blau-Gelb Frankfurt e.V.",23,null,null,null,null,"Reitze 15005",145987,15005,"Reitze","Klaus","Sen B","A","BC Blau-Gelb Frankfurt","BV Blau-Gelb Frankfurt e.V."]
["Rifinius 15543",146003,15543,"Rifinius","Irina","Damen",0,"BC Blau-Gelb Frankfurt","BV Blau-Gelb Frankfurt e.V.",23,null,null,null,null,"Rifinius 15543",146003,15543,"Rifinius","Irina","Damen",0,"BC Blau-Gelb Frankfurt","BV Blau-Gelb Frankfurt e.V."]
["Robison 15020",145988,15020,"Robison","Dale","Sen B",0,"BC Blau-Gelb Frankfurt","BV Blau-Gelb Frankfurt e.V.",23,null,null,null,null,"Robison 15020",145988,15020,"Robison","Dale","Sen B",0,"BC Blau-Gelb Frankfurt","BV Blau-Gelb Frankfurt e.V."]
["Roloff 15925",67459,15925,"Roloff","Patrick","Herren","D","BC Blau-Gelb Frankfurt","BV Blau-Gelb Frankfurt e.V.",23,null,null,null,null,"Roloff 15925",67459,15925,"Roloff","Patrick","Herren","D","BC Blau-Gelb Frankfurt","BV Blau-Gelb Frankfurt e.V."]
["Roy 15040",145989,15040,"Roy","Christopher","Herren",0,"BC Blau-Gelb Frankfurt","BV Blau-Gelb Frankfurt e.V.",23,null,null,null,null,"Roy 15040",145989,15040,"Roy","Christopher","Herren",0,"BC Blau-Gelb Frankfurt","BV Blau-Gelb Frankfurt e.V."]
["Saechtig 10167",142976,10167,"Saechtig","Frederic","Herren","D","BC Blau-Gelb Frankfurt","BV Blau-Gelb Frankfurt e.V.",23,null,null,null,null,"Saechtig 10167",142976,10167,"Saechtig","Frederic","Herren","D","BC Blau-Gelb Frankfurt","BV Blau-Gelb Frankfurt e.V."]
["Schmidt 15112",145990,15112,"Schmidt","Petra","Sen A","B","BC Blau-Gelb Frankfurt","BV Blau-Gelb Frankfurt e.V.",23,null,null,null,null,"Schmidt 15112",145990,15112,"Schmidt","Petra","Sen A","B","BC Blau-Gelb Frankfurt","BV Blau-Gelb Frankfurt e.V."]
["Sherman 15190",145994,15190,"Sherman","Edward","Sen B",0,"BC Blau-Gelb Frankfurt","BV Blau-Gelb Frankfurt e.V.",23,null,null,null,null,"Sherman 15190",145994,15190,"Sherman","Edward","Sen B",0,"BC Blau-Gelb Frankfurt","BV Blau-Gelb Frankfurt e.V."]
["Siebert 33055",106891,33055,"Siebert","Björn","Sen A","E","BC Blau-Gelb Frankfurt","BV Blau-Gelb Frankfurt e.V.",23,null,null,null,null,"Siebert 33055",106891,33055,"Siebert","Björn","Sen A","E","BC Blau-Gelb Frankfurt","BV Blau-Gelb Frankfurt e.V."]
["Steul 15239",145995,15239,"Steul","Karl-Heinz","Sen C",0,"BC Blau-Gelb Frankfurt","BV Blau-Gelb Frankfurt e.V.",23,null,null,null,null,"Steul 15239",145995,15239,"Steul","Karl-Heinz","Sen C",0,"BC Blau-Gelb Frankfurt","BV Blau-Gelb Frankfurt e.V."]
["Trebes 15294",100148,15294,"Trebes","Stefan","Sen A","D","BC Blau-Gelb Frankfurt","BV Blau-Gelb Frankfurt e.V.",23,null,null,null,null,"Trebes 15294",100148,15294,"Trebes","Stefan","Sen A","D","BC Blau-Gelb Frankfurt","BV Blau-Gelb Frankfurt e.V."]
["Weidling 15350",88626,15350,"Weidling","Wolfgang","Sen C",0,"BC Blau-Gelb Frankfurt","BV Blau-Gelb Frankfurt e.V.",22,null,null,null,null,"Weidling 15350",88626,15350,"Weidling","Wolfgang","Sen C",0,"BC Blau-Gelb Frankfurt","BV Blau-Gelb Frankfurt e.V."]
["Weis 15356",132562,15356,"Weis","Björn","Herren","A","BC Blau-Gelb Frankfurt","BV Blau-Gelb Frankfurt e.V.",23,null,null,null,null,"Weis 15356",132562,15356,"Weis","Björn","Herren","A","BC Blau-Gelb Frankfurt","BV Blau-Gelb Frankfurt e.V."]
["Weitzel 8785",151326,8785,"Weitzel","Cornelia","Damen","B","BC Blau-Gelb Frankfurt","BV Blau-Gelb Frankfurt e.V.",22,null,null,null,null,"Weitzel 8785",151326,8785,"Weitzel","Cornelia","Damen","B","BC Blau-Gelb Frankfurt","BV Blau-Gelb Frankfurt e.V."]
[{"$f":"D387&\" \"&C387","v":"Wolf 15392"},145997,15392,"Wolf","Lucia","Sen B",0,"BC Blau-Gelb Frankfurt","BV Blau-Gelb Frankfurt e.V.",23,null,null,null,null,"Wolf 15392",145997,15392,"Wolf","Lucia","Sen B",0,"BC Blau-Gelb Frankfurt","BV Blau-Gelb Frankfurt e.V."]
["Yowell 15408",145998,15408,"Yowell","Vernon","Sen C","D","BC Blau-Gelb Frankfurt","BV Blau-Gelb Frankfurt e.V.",23,null,null,null,null,"Yowell 15408",145998,15408,"Yowell","Vernon","Sen C","D","BC Blau-Gelb Frankfurt","BV Blau-Gelb Frankfurt e.V."]
["Blickhan 8111",147329,8111,"Blickhan","Richard","Sen B",0,"BV Frankfurt Süd","BV Frankfurt Süd",23,null,null,null,null,"Blickhan 8111",147329,8111,"Blickhan","Richard","Sen B",0,"BV Frankfurt Süd","BV Frankfurt Süd"]
["Gutzwiller 33163",135861,33163,"Gutzwiller","Stephan","Sen A",0,"BV Frankfurt Süd","BV Frankfurt Süd",23,null,null,null,null,"Gutzwiller 33163",135861,33163,"Gutzwiller","Stephan","Sen A",0,"BV Frankfurt Süd","BV Frankfurt Süd"]
["Morche 8744",976,8744,"Morche","Andrea","Sen A",0,"BV Frankfurt Süd","BV Frankfurt Süd",23,null,null,null,null,"Morche 8744",976,8744,"Morche","Andrea","Sen A",0,"BV Frankfurt Süd","BV Frankfurt Süd"]
["Morche 8839",67740,8839,"Morche","Jochen","Sen B","D","BV Frankfurt Süd","BV Frankfurt Süd",22,null,null,null,null,"Morche 8839",67740,8839,"Morche","Jochen","Sen B","D","BV Frankfurt Süd","BV Frankfurt Süd"]
["Regenfuss 8990",145954,8990,"Regenfuss","Norbert","Sen C",0,"BV Frankfurt Süd","BV Frankfurt Süd",23,null,null,null,null,"Regenfuss 8990",145954,8990,"Regenfuss","Norbert","Sen C",0,"BV Frankfurt Süd","BV Frankfurt Süd"]
["Scharnowski 15070",67741,15070,"Scharnowski","Waldemar","Herren","C","BV Frankfurt Süd","BV Frankfurt Süd",23,null,null,null,null,"Scharnowski 15070",67741,15070,"Scharnowski","Waldemar","Herren","C","BV Frankfurt Süd","BV Frankfurt Süd"]
["Vogelrieder 33049",106969,33049,"Vogelrieder","Josef","Sen C",0,"BV Frankfurt Süd","BV Frankfurt Süd",23,null,null,null,null,"Vogelrieder 33049",106969,33049,"Vogelrieder","Josef","Sen C",0,"BV Frankfurt Süd","BV Frankfurt Süd"]
["Altunok 33002",106785,33002,"Altunok","Ümit","Herren","E","BC 67 Hanau","BV Hanau",23,null,null,null,null,"Altunok 33002",106785,33002,"Altunok","Ümit","Herren","E","BC 67 Hanau","BV Hanau"]
["Baro 10029",104782,10029,"Baro","Dirk","Sen A","D","BC 67 Hanau","BV Hanau",23,null,null,null,null,"Baro 10029",104782,10029,"Baro","Dirk","Sen A","D","BC 67 Hanau","BV Hanau"]
["Fernandez 8297",67191,8297,"Fernandez","Andres","Sen C","C","BC 67 Hanau","BV Hanau",23,null,null,null,null,"Fernandez 8297",67191,8297,"Fernandez","Andres","Sen C","C","BC 67 Hanau","BV Hanau"]
["Gehrmann 26507",84857,26507,"Gehrmann","René","Herren",null,"BC 67 Hanau","BV Hanau",23,null,null,null,null,"Gehrmann 26507",84857,26507,"Gehrmann","René","Herren",null,"BC 67 Hanau","BV Hanau"]
["Härtl 15555",145920,15555,"Härtl","Rudolf","Sen B","D","BC 67 Hanau","BV Hanau",23,null,null,null,null,"Härtl 15555",145920,15555,"Härtl","Rudolf","Sen B","D","BC 67 Hanau","BV Hanau"]
["Harzer 33273",144496,33273,"Harzer","Christopher","Herren",null,"BC 67 Hanau","BV Hanau",23,null,null,null,null,"Harzer 33273",144496,33273,"Harzer","Christopher","Herren",null,"BC 67 Hanau","BV Hanau"]
["Hein 15520",79845,15520,"Hein","Karsten","Herren",null,"BC 67 Hanau","BV Hanau",23,null,null,null,null,"Hein 15520",79845,15520,"Hein","Karsten","Herren",null,"BC 67 Hanau","BV Hanau"]
["Heldner 8493",89108,8493,"Heldner","Bruno","Sen B","C","BC 67 Hanau","BV Hanau",23,null,null,null,null,"Heldner 8493",89108,8493,"Heldner","Bruno","Sen B","C","BC 67 Hanau","BV Hanau"]
["Knöchel 33274",144497,33274,"Knöchel","Frank","Sen B","D","BC 67 Hanau","BV Hanau",23,null,null,null,null,"Knöchel 33274",144497,33274,"Knöchel","Frank","Sen B","D","BC 67 Hanau","BV Hanau"]
["Konway 8684",89110,8684,"Konway","Karl","Sen A",0,"BC 67 Hanau","BV Hanau",22,null,null,null,null,"Konway 8684",89110,8684,"Konway","Karl","Sen A",0,"BC 67 Hanau","BV Hanau"]
["Müller 8849",89111,8849,"Müller","Edgar","Sen B","D","BC 67 Hanau","BV Hanau",23,null,null,null,null,"Müller 8849",89111,8849,"Müller","Edgar","Sen B","D","BC 67 Hanau","BV Hanau"]
["Peluso 8929",151179,8929,"Peluso","Alessandro","Herren",0,"BC 67 Hanau","BV Hanau",22,null,null,null,null,"Peluso 8929",151179,8929,"Peluso","Alessandro","Herren",0,"BC 67 Hanau","BV Hanau"]
["Rousselange 15825",153226,15825,"Rousselange","Florian","Herren","B","BC 67 Hanau","BV Hanau",23,null,null,null,null,"Rousselange 15825",153226,15825,"Rousselange","Florian","Herren","B","BC 67 Hanau","BV Hanau"]
["Scheibe 10178",152139,10178,"Scheibe","Thomas","Sen A","B","BC 67 Hanau","BV Hanau",23,null,null,null,null,"Scheibe 10178",152139,10178,"Scheibe","Thomas","Sen A","B","BC 67 Hanau","BV Hanau"]
["Vorwerg 10067",146199,10067,"Vorwerg","Michael","Sen A",null,"BC 67 Hanau","BV Hanau",23,null,null,null,null,"Vorwerg 10067",146199,10067,"Vorwerg","Michael","Sen A",null,"BC 67 Hanau","BV Hanau"]
["Zabel 15410",146200,15410,"Zabel","Manfred","Sen B","A","BC 67 Hanau","BV Hanau",23,null,null,null,null,"Zabel 15410",146200,15410,"Zabel","Manfred","Sen B","A","BC 67 Hanau","BV Hanau"]
["Bayer 8055",151439,8055,"Bayer","Harry","Sen B",0,"BC 75 Fortuna","BV Hanau",23,null,null,null,null,"Bayer 8055",151439,8055,"Bayer","Harry","Sen B",0,"BC 75 Fortuna","BV Hanau"]
["Bayer 8057",145922,8057,"Bayer","Peter","Sen B","C","BC 75 Fortuna","BV Hanau",23,null,null,null,null,"Bayer 8057",145922,8057,"Bayer","Peter","Sen B","C","BC 75 Fortuna","BV Hanau"]
["Brückner 8156",132415,8156,"Brückner","Achim","Sen B",0,"BC 75 Fortuna","BV Hanau",23,null,null,null,null,"Brückner 8156",132415,8156,"Brückner","Achim","Sen B",0,"BC 75 Fortuna","BV Hanau"]
["Färber 8283",100739,8283,"Färber","Klaus","Sen C","C","BC 75 Fortuna","BV Hanau",23,null,null,null,null,"Färber 8283",100739,8283,"Färber","Klaus","Sen C","C","BC 75 Fortuna","BV Hanau"]
["Gruchot 10369",107041,10369,"Gruchot","Dennis","Herren",0,"BC 75 Fortuna","BV Hanau",23,null,null,null,null,"Gruchot 10369",107041,10369,"Gruchot","Dennis","Herren",0,"BC 75 Fortuna","BV Hanau"]
["Klein 33168",135883,33168,"Klein","Horst","Sen B",0,"BC 75 Fortuna","BV Hanau",23,null,null,null,null,"Klein 33168",135883,33168,"Klein","Horst","Sen B",0,"BC 75 Fortuna","BV Hanau"]
["Marquardt 33359",154500,33359,"Marquardt","Julien","Jug A m",0,"BC 75 Fortuna","BV Hanau",23,null,null,null,null,"Marquardt 33359",154500,33359,"Marquardt","Julien","Jug A m",0,"BC 75 Fortuna","BV Hanau"]
["Marquardt 33327",149070,33327,"Marquardt","Jens","Herren",null,"BC 75 Fortuna","BV Hanau",23,null,null,null,null,"Marquardt 33327",149070,33327,"Marquardt","Jens","Herren",null,"BC 75 Fortuna","BV Hanau"]
["Naujoks 8871",147327,8871,"Naujoks","Christoph","Herren","B","BC 75 Fortuna","BV Hanau",23,null,null,null,null,"Naujoks 8871",147327,8871,"Naujoks","Christoph","Herren","B","BC 75 Fortuna","BV Hanau"]
["Naujoks 8872",147326,8872,"Naujoks","Jürgen","Sen B","C","BC 75 Fortuna","BV Hanau",23,null,null,null,null,"Naujoks 8872",147326,8872,"Naujoks","Jürgen","Sen B","C","BC 75 Fortuna","BV Hanau"]
["Neumann 8885",147324,8885,"Neumann","Heike","Sen A",null,"BC 75 Fortuna","BV Hanau",23,null,null,null,null,"Neumann 8885",147324,8885,"Neumann","Heike","Sen A",null,"BC 75 Fortuna","BV Hanau"]
["Schendel 15074",100740,15074,"Schendel","Jörg","Sen A","C","BC 75 Fortuna","BV Hanau",23,null,null,null,null,"Schendel 15074",100740,15074,"Schendel","Jörg","Sen A","C","BC 75 Fortuna","BV Hanau"]
["Schmidt 15111",147306,15111,"Schmidt","Peter","Sen B","","BC 75 Fortuna","BV Hanau",22,null,null,null,null,"Schmidt 15111",147306,15111,"Schmidt","Peter","Sen B","","BC 75 Fortuna","BV Hanau"]
["Serowy 15189",100738,15189,"Serowy","Gerd","Sen B",null,"BC 75 Fortuna","BV Hanau",23,null,null,null,null,"Serowy 15189",100738,15189,"Serowy","Gerd","Sen B",null,"BC 75 Fortuna","BV Hanau"]
["Syla 10409",135978,10409,"Syla","Tania","Damen",0,"BC 75 Fortuna","BV Hanau",23,null,null,null,null,"Syla 10409",135978,10409,"Syla","Tania","Damen",0,"BC 75 Fortuna","BV Hanau"]
["Bauer 8051",107012,8051,"Bauer","Jürgen","Sen B","B","Condor Steinheim","BV Hanau",23,null,null,null,null,"Bauer 8051",107012,8051,"Bauer","Jürgen","Sen B","B","Condor Steinheim","BV Hanau"]
["Bayer 8056",89118,8056,"Bayer","Julia","Damen","","Condor Steinheim","BV Hanau",22,null,null,null,null,"Bayer 8056",89118,8056,"Bayer","Julia","Damen","","Condor Steinheim","BV Hanau"]
["Bayer 8058",89119,8058,"Bayer","Thomas","Sen A","","Condor Steinheim","BV Hanau",22,null,null,null,null,"Bayer 8058",89119,8058,"Bayer","Thomas","Sen A","","Condor Steinheim","BV Hanau"]
["Bretthauer 8147",135896,8147,"Bretthauer","Ralf","Sen B","C","Condor Steinheim","BV Hanau",23,null,null,null,null,"Bretthauer 8147",135896,8147,"Bretthauer","Ralf","Sen B","C","Condor Steinheim","BV Hanau"]
["Buhl 8166",89122,8166,"Buhl","Georg","Sen C","D","Condor Steinheim","BV Hanau",23,null,null,null,null,"Buhl 8166",89122,8166,"Buhl","Georg","Sen C","D","Condor Steinheim","BV Hanau"]
["Buhl 8167",89121,8167,"Buhl","Martin","Herren","B","Condor Steinheim","BV Hanau",23,null,null,null,null,"Buhl 8167",89121,8167,"Buhl","Martin","Herren","B","Condor Steinheim","BV Hanau"]
["Friedrich 8348",151397,8348,"Friedrich","Heike","Sen A",null,"Condor Steinheim","BV Hanau",23,null,null,null,null,"Friedrich 8348",151397,8348,"Friedrich","Heike","Sen A",null,"Condor Steinheim","BV Hanau"]
["Friedrich 8349",153223,8349,"Friedrich","Michael","Sen B","D","Condor Steinheim","BV Hanau",23,null,null,null,null,"Friedrich 8349",153223,8349,"Friedrich","Michael","Sen B","D","Condor Steinheim","BV Hanau"]
["Glock 33264",144528,33264,"Glock","Daniel","Herren","A","Condor Steinheim","BV Hanau",22,null,null,null,null,"Glock 33264",144528,33264,"Glock","Daniel","Herren","A","Condor Steinheim","BV Hanau"]
["Göb 8398",89117,8398,"Göb","Patrick","Herren","B","Condor Steinheim","BV Hanau",23,null,null,null,null,"Göb 8398",89117,8398,"Göb","Patrick","Herren","B","Condor Steinheim","BV Hanau"]
["Grünheid 33098",107146,33098,"Grünheid","Malte","Herren","D","Condor Steinheim","BV Hanau",23,null,null,null,null,"Grünheid 33098",107146,33098,"Grünheid","Malte","Herren","D","Condor Steinheim","BV Hanau"]
["Grünheid 33148",135807,33148,"Grünheid","Uwe","Sen C",null,"Condor Steinheim","BV Hanau",23,null,null,null,null,"Grünheid 33148",135807,33148,"Grünheid","Uwe","Sen C",null,"Condor Steinheim","BV Hanau"]
["Kleppig 8661",89123,8661,"Kleppig","Constanze","Sen A",0,"Condor Steinheim","BV Hanau",22,null,null,null,null,"Kleppig 8661",89123,8661,"Kleppig","Constanze","Sen A",0,"Condor Steinheim","BV Hanau"]
["Pauli 8927",109627,8927,"Pauli","Sven","Herren","B","Condor Steinheim","BV Hanau",23,null,null,null,null,"Pauli 8927",109627,8927,"Pauli","Sven","Herren","B","Condor Steinheim","BV Hanau"]
["Schlappa 15097",89127,15097,"Schlappa","Norbert","Sen B",null,"Condor Steinheim","BV Hanau",23,null,null,null,null,"Schlappa 15097",89127,15097,"Schlappa","Norbert","Sen B",null,"Condor Steinheim","BV Hanau"]
["Schlappa 15098",89126,15098,"Schlappa","Wolfgang","Herren",0,"Condor Steinheim","BV Hanau",23,null,null,null,null,"Schlappa 15098",89126,15098,"Schlappa","Wolfgang","Herren",0,"Condor Steinheim","BV Hanau"]
["Sommer 15203",89130,15203,"Sommer","Walter","Sen B","C","Condor Steinheim","BV Hanau",22,null,null,null,null,"Sommer 15203",89130,15203,"Sommer","Walter","Sen B","C","Condor Steinheim","BV Hanau"]
["Beumer 15569",107073,15569,"Beumer","Christoph","Sen A",null,"TSV 1860 Hanau","BV Hanau",23,null,null,null,null,"Beumer 15569",107073,15569,"Beumer","Christoph","Sen A",null,"TSV 1860 Hanau","BV Hanau"]
["Braun 10560",146198,10560,"Braun","Cornelia","Sen A","D","TSV 1860 Hanau","BV Hanau",23,null,null,null,null,"Braun 10560",146198,10560,"Braun","Cornelia","Sen A","D","TSV 1860 Hanau","BV Hanau"]
["Brückner 33290",146196,33290,"Brückner","Benedikt","Herren",null,"TSV 1860 Hanau","BV Hanau",23,null,null,null,null,"Brückner 33290",146196,33290,"Brückner","Benedikt","Herren",null,"TSV 1860 Hanau","BV Hanau"]
["Celerino 33298",147240,33298,"Celerino","Antonio","Sen B","D","TSV 1860 Hanau","BV Hanau",23,null,null,null,null,"Celerino 33298",147240,33298,"Celerino","Antonio","Sen B","D","TSV 1860 Hanau","BV Hanau"]
["Freund 8345",147239,8345,"Freund","Matthias","Sen A","D","TSV 1860 Hanau","BV Hanau",23,null,null,null,null,"Freund 8345",147239,8345,"Freund","Matthias","Sen A","D","TSV 1860 Hanau","BV Hanau"]
["Große 15541",149223,15541,"Große","Christina","Damen","E","TSV 1860 Hanau","BV Hanau",23,null,null,null,null,"Große 15541",149223,15541,"Große","Christina","Damen","E","TSV 1860 Hanau","BV Hanau"]
["Heck-Seipel 8471",100029,8471,"Heck-Seipel","Lydia","Sen C",0,"TSV 1860 Hanau","BV Hanau",23,null,null,null,null,"Heck-Seipel 8471",100029,8471,"Heck-Seipel","Lydia","Sen C",0,"TSV 1860 Hanau","BV Hanau"]
[{"$f":"D451&\" \"&C451","v":"Heilmann 8480"},89091,8480,"Heilmann","Harry","Sen B",null,"TSV 1860 Hanau","BV Hanau",23,null,null,null,null,"Heilmann 8480",89091,8480,"Heilmann","Harry","Sen B",null,"TSV 1860 Hanau","BV Hanau"]
["Heilmann 8481",89092,8481,"Heilmann","Inge","Sen B","D","TSV 1860 Hanau","BV Hanau",23,null,null,null,null,"Heilmann 8481",89092,8481,"Heilmann","Inge","Sen B","D","TSV 1860 Hanau","BV Hanau"]
["Herbert 15861",153224,15861,"Herbert","Peter","Sen A","","TSV 1860 Hanau","BV Hanau",22,null,null,null,null,"Herbert 15861",153224,15861,"Herbert","Peter","Sen A","","TSV 1860 Hanau","BV Hanau"]
["Jokisch 8606",145921,8606,"Jokisch","Matthias","Sen A","C","TSV 1860 Hanau","BV Hanau",23,null,null,null,null,"Jokisch 8606",145921,8606,"Jokisch","Matthias","Sen A","C","TSV 1860 Hanau","BV Hanau"]
["Kitzinger 33340",151173,33340,"Kitzinger","Leonard","Jun","D","TSV 1860 Hanau","BV Hanau",23,null,null,null,null,"Kitzinger 33340",151173,33340,"Kitzinger","Leonard","Jun","D","TSV 1860 Hanau","BV Hanau"]
["Klier 8662",89094,8662,"Klier","Reinhard","Sen B","C","TSV 1860 Hanau","BV Hanau",23,null,null,null,null,"Klier 8662",89094,8662,"Klier","Reinhard","Sen B","C","TSV 1860 Hanau","BV Hanau"]
["Körber 18938",151399,18938,"Körber","Martina","Sen A","D","TSV 1860 Hanau","BV Hanau",23,null,null,null,null,"Körber 18938",151399,18938,"Körber","Martina","Sen A","D","TSV 1860 Hanau","BV Hanau"]
["Kraus 8697",89095,8697,"Kraus","Monika","Sen B","D","TSV 1860 Hanau","BV Hanau",23,null,null,null,null,"Kraus 8697",89095,8697,"Kraus","Monika","Sen B","D","TSV 1860 Hanau","BV Hanau"]
["Krug 33037",106940,33037,"Krug","Reiner","Herren","C","TSV 1860 Hanau","BV Hanau",22,null,null,null,null,"Krug 33037",106940,33037,"Krug","Reiner","Herren","C","TSV 1860 Hanau","BV Hanau"]
["Krüger 15461",89098,15461,"Krüger","Petra","Sen A","D","TSV 1860 Hanau","BV Hanau",23,null,null,null,null,"Krüger 15461",89098,15461,"Krüger","Petra","Sen A","D","TSV 1860 Hanau","BV Hanau"]
["Krüger 15462",89097,15462,"Krüger","Michael","Sen B","D","TSV 1860 Hanau","BV Hanau",23,null,null,null,null,"Krüger 15462",89097,15462,"Krüger","Michael","Sen B","D","TSV 1860 Hanau","BV Hanau"]
["Krüger 15497",100472,15497,"Krüger","Carmen","Sen A","D","TSV 1860 Hanau","BV Hanau",23,null,null,null,null,"Krüger 15497",100472,15497,"Krüger","Carmen","Sen A","D","TSV 1860 Hanau","BV Hanau"]
["Krüger 15499",100473,15499,"Krüger","Michael","Sen A","D","TSV 1860 Hanau","BV Hanau",23,null,null,null,null,"Krüger 15499",100473,15499,"Krüger","Michael","Sen A","D","TSV 1860 Hanau","BV Hanau"]
["Kuchenbrod 8808",153081,8808,"Kuchenbrod","Frank","Sen B",0,"TSV 1860 Hanau","BV Hanau",23,null,null,null,null,"Kuchenbrod 8808",153081,8808,"Kuchenbrod","Frank","Sen B",0,"TSV 1860 Hanau","BV Hanau"]
["Kuchenbrod 8810",153082,8810,"Kuchenbrod","Gabriele","Sen B",null,"TSV 1860 Hanau","BV Hanau",23,null,null,null,null,"Kuchenbrod 8810",153082,8810,"Kuchenbrod","Gabriele","Sen B",null,"TSV 1860 Hanau","BV Hanau"]
["Kügler 33080",132582,33080,"Kügler","Claudia Stephanie","Damen","","TSV 1860 Hanau","BV Hanau",22,null,null,null,null,"Kügler 33080",132582,33080,"Kügler","Claudia Stephanie","Damen","","TSV 1860 Hanau","BV Hanau"]
["Lassiter 8729",153225,8729,"Lassiter","Yasemin","Damen","B","TSV 1860 Hanau","BV Hanau",23,null,null,null,null,"Lassiter 8729",153225,8729,"Lassiter","Yasemin","Damen","B","TSV 1860 Hanau","BV Hanau"]
["Mautz 8790",88703,8790,"Mautz","Robert","Sen B","D","TSV 1860 Hanau","BV Hanau",23,null,null,null,null,"Mautz 8790",88703,8790,"Mautz","Robert","Sen B","D","TSV 1860 Hanau","BV Hanau"]
["Mayer 33109",132419,33109,"Mayer","Ursula","Sen B","D","TSV 1860 Hanau","BV Hanau",23,null,null,null,null,"Mayer 33109",132419,33109,"Mayer","Ursula","Sen B","D","TSV 1860 Hanau","BV Hanau"]
["Morbe 8836",89099,8836,"Morbe","Manfred","Sen C",null,"TSV 1860 Hanau","BV Hanau",23,null,null,null,null,"Morbe 8836",89099,8836,"Morbe","Manfred","Sen C",null,"TSV 1860 Hanau","BV Hanau"]
["Morbe 8838",89100,8838,"Morbe","Sieglinde","Sen B","D","TSV 1860 Hanau","BV Hanau",23,null,null,null,null,"Morbe 8838",89100,8838,"Morbe","Sieglinde","Sen B","D","TSV 1860 Hanau","BV Hanau"]
["Morbe 10181",142955,10181,"Morbe","Wolfgang","Sen C","D","TSV 1860 Hanau","BV Hanau",23,null,null,null,null,"Morbe 10181",142955,10181,"Morbe","Wolfgang","Sen C","D","TSV 1860 Hanau","BV Hanau"]
["Morbe-Koch 8837",144526,8837,"Morbe-Koch","Sandra","Damen","E","TSV 1860 Hanau","BV Hanau",23,null,null,null,null,"Morbe-Koch 8837",144526,8837,"Morbe-Koch","Sandra","Damen","E","TSV 1860 Hanau","BV Hanau"]
["Myers 33321",147393,33321,"Myers","Stefan","Herren","","TSV 1860 Hanau","BV Hanau",22,null,null,null,null,"Myers 33321",147393,33321,"Myers","Stefan","Herren","","TSV 1860 Hanau","BV Hanau"]
["Nickusch 8889",89101,8889,"Nickusch","Michael","Sen B","E","TSV 1860 Hanau","BV Hanau",23,null,null,null,null,"Nickusch 8889",89101,8889,"Nickusch","Michael","Sen B","E","TSV 1860 Hanau","BV Hanau"]
["Omer 33113",132467,33113,"Omer","Holger","Sen A","E","TSV 1860 Hanau","BV Hanau",23,null,null,null,null,"Omer 33113",132467,33113,"Omer","Holger","Sen A","E","TSV 1860 Hanau","BV Hanau"]
["Ries 33071",107000,33071,"Ries","Tobias","Herren","C","TSV 1860 Hanau","BV Hanau",23,null,null,null,null,"Ries 33071",107000,33071,"Ries","Tobias","Herren","C","TSV 1860 Hanau","BV Hanau"]
["Scheuermann 15083",147323,15083,"Scheuermann","Sybille","Sen A","D","TSV 1860 Hanau","BV Hanau",22,null,null,null,null,"Scheuermann 15083",147323,15083,"Scheuermann","Sybille","Sen A","D","TSV 1860 Hanau","BV Hanau"]
["Siebel 10239",146197,10239,"Siebel","Heidi","Sen B",null,"TSV 1860 Hanau","BV Hanau",23,null,null,null,null,"Siebel 10239",146197,10239,"Siebel","Heidi","Sen B",null,"TSV 1860 Hanau","BV Hanau"]
["Smith 33104",132414,33104,"Smith","Wyatt","Herren",0,"TSV 1860 Hanau","BV Hanau",22,null,null,null,null,"Smith 33104",132414,33104,"Smith","Wyatt","Herren",0,"TSV 1860 Hanau","BV Hanau"]
["Stephan 15238",89114,15238,"Stephan","Peter","Sen B","B","TSV 1860 Hanau","BV Hanau",23,null,null,null,null,"Stephan 15238",89114,15238,"Stephan","Peter","Sen B","B","TSV 1860 Hanau","BV Hanau"]
["Stephan 15842",149149,15842,"Stephan","Timm","Herren","A","TSV 1860 Hanau","BV Hanau",23,null,null,null,null,"Stephan 15842",149149,15842,"Stephan","Timm","Herren","A","TSV 1860 Hanau","BV Hanau"]
["Theis-Franke 15669",147325,15669,"Theis-Franke","Jörg","Sen B","D","TSV 1860 Hanau","BV Hanau",23,null,null,null,null,"Theis-Franke 15669",147325,15669,"Theis-Franke","Jörg","Sen B","D","TSV 1860 Hanau","BV Hanau"]
["Wenzel 15365",89106,15365,"Wenzel","Uwe","Sen A","C","TSV 1860 Hanau","BV Hanau",23,null,null,null,null,"Wenzel 15365",89106,15365,"Wenzel","Uwe","Sen A","C","TSV 1860 Hanau","BV Hanau"]
["Fischer 15578",145936,15578,"Fischer","Oliver","Herren","B","BC Höchst","BV Höchst e.V.",22,null,null,null,null,"Fischer 15578",145936,15578,"Fischer","Oliver","Herren","B","BC Höchst","BV Höchst e.V."]
["Flassig 8323",66979,8323,"Flassig","Roland","Sen B","B","BC Höchst","BV Höchst e.V.",22,null,null,null,null,"Flassig 8323",66979,8323,"Flassig","Roland","Sen B","B","BC Höchst","BV Höchst e.V."]
["Köhler 8674",67602,8674,"Köhler","Andreas","Sen A","E","BC Höchst","BV Höchst e.V.",22,null,null,null,null,"Köhler 8674",67602,8674,"Köhler","Andreas","Sen A","E","BC Höchst","BV Höchst e.V."]
["Müller 8861",135851,8861,"Müller","Thomas","Sen A","D","BC Höchst","BV Höchst e.V.",22,null,null,null,null,"Müller 8861",135851,8861,"Müller","Thomas","Sen A","D","BC Höchst","BV Höchst e.V."]
["Schulz 15579",149935,15579,"Schulz","Christian","Herren","D","BC Höchst","BV Höchst e.V.",22,null,null,null,null,"Schulz 15579",149935,15579,"Schulz","Christian","Herren","D","BC Höchst","BV Höchst e.V."]
["Schwarz 15170",151426,15170,"Schwarz","Wolfgang","Sen B","D","BC Höchst","BV Höchst e.V.",22,null,null,null,null,"Schwarz 15170",151426,15170,"Schwarz","Wolfgang","Sen B","D","BC Höchst","BV Höchst e.V."]
["Siedentopf 15193",67605,15193,"Siedentopf","Peter","Sen C","D","BC Höchst","BV Höchst e.V.",22,null,null,null,null,"Siedentopf 15193",67605,15193,"Siedentopf","Peter","Sen C","D","BC Höchst","BV Höchst e.V."]
["Bartossek 15714",147320,15714,"Bartossek","Peter","Sen A",0,"BC Mühlheim","BV Mühlheim",22,null,null,null,null,"Bartossek 15714",147320,15714,"Bartossek","Peter","Sen A",0,"BC Mühlheim","BV Mühlheim"]
["Berz 15725",147322,15725,"Berz","Wolfgang","Sen B","E","BC Mühlheim","BV Mühlheim",22,null,null,null,null,"Berz 15725",147322,15725,"Berz","Wolfgang","Sen B","E","BC Mühlheim","BV Mühlheim"]
["Holzwarth 15877",153215,15877,"Holzwarth","Christian","Herren","D","BC Mühlheim","BV Mühlheim",22,null,null,null,null,"Holzwarth 15877",153215,15877,"Holzwarth","Christian","Herren","D","BC Mühlheim","BV Mühlheim"]
["Rothenhäuser 15038",100751,15038,"Rothenhäuser","Bernd","Sen A","D","BC Mühlheim","BV Mühlheim",22,null,null,null,null,"Rothenhäuser 15038",100751,15038,"Rothenhäuser","Bernd","Sen A","D","BC Mühlheim","BV Mühlheim"]
["Rothenhäuser 15039",100752,15039,"Rothenhäuser","Werner","Sen A","E","BC Mühlheim","BV Mühlheim",22,null,null,null,null,"Rothenhäuser 15039",100752,15039,"Rothenhäuser","Werner","Sen A","E","BC Mühlheim","BV Mühlheim"]
["Spreng 33009",106797,33009,"Spreng","Markus","Sen A",0,"BC Mühlheim","BV Mühlheim",22,null,null,null,null,"Spreng 33009",106797,33009,"Spreng","Markus","Sen A",0,"BC Mühlheim","BV Mühlheim"]
["Spreng 33010",106798,33010,"Spreng","Dominic","Jun","","BC Mühlheim","BV Mühlheim",22,null,null,null,null,"Spreng 33010",106798,33010,"Spreng","Dominic","Jun","","BC Mühlheim","BV Mühlheim"]
["Glück 15989",106699,15989,"Glück","Andreas","Herren","D","BC Devils","BV Oberstedtener Devils e.V.",22,null,null,null,null,"Glück 15989",106699,15989,"Glück","Andreas","Herren","D","BC Devils","BV Oberstedtener Devils e.V."]
["Höck 15518",40057,15518,"Höck","Michael","Sen A",0,"BC Devils","BV Oberstedtener Devils e.V.",22,null,null,null,null,"Höck 15518",40057,15518,"Höck","Michael","Sen A",0,"BC Devils","BV Oberstedtener Devils e.V."]
["Lambracht 8717",145916,8717,"Lambracht","Waltraud","Sen B","E","BC Devils","BV Oberstedtener Devils e.V.",22,null,null,null,null,"Lambracht 8717",145916,8717,"Lambracht","Waltraud","Sen B","E","BC Devils","BV Oberstedtener Devils e.V."]
["Lang 8719",145915,8719,"Lang","Christel","Sen A",0,"BC Devils","BV Oberstedtener Devils e.V.",22,null,null,null,null,"Lang 8719",145915,8719,"Lang","Christel","Sen A",0,"BC Devils","BV Oberstedtener Devils e.V."]
["Ritter 33124",132524,33124,"Ritter","Marina","Sen B","F","BC Devils","BV Oberstedtener Devils e.V.",22,null,null,null,null,"Ritter 33124",132524,33124,"Ritter","Marina","Sen B","F","BC Devils","BV Oberstedtener Devils e.V."]
["Ruppel 33184",135954,33184,"Ruppel","Heinz-Georg","Sen B",null,"BC Devils","BV Oberstedtener Devils e.V.",22,null,null,null,null,"Ruppel 33184",135954,33184,"Ruppel","Heinz-Georg","Sen B",null,"BC Devils","BV Oberstedtener Devils e.V."]
["Schomaker 15140",145914,15140,"Schomaker","Ralf-Thomas","Sen B","E","BC Devils","BV Oberstedtener Devils e.V.",22,null,null,null,null,"Schomaker 15140",145914,15140,"Schomaker","Ralf-Thomas","Sen B","E","BC Devils","BV Oberstedtener Devils e.V."]
["Trebbien 15293",145913,15293,"Trebbien","Uwe","Sen A","","BC Devils","BV Oberstedtener Devils e.V.",22,null,null,null,null,"Trebbien 15293",145913,15293,"Trebbien","Uwe","Sen A","","BC Devils","BV Oberstedtener Devils e.V."]
["Wolf 8255",106937,8255,"Wolf","Christine","Sen A",0,"BC Devils","BV Oberstedtener Devils e.V.",22,null,null,null,null,"Wolf 8255",106937,8255,"Wolf","Christine","Sen A",0,"BC Devils","BV Oberstedtener Devils e.V."]
["Wolf 33034",106936,33034,"Wolf","Matthias","Sen A",0,"BC Devils","BV Oberstedtener Devils e.V.",22,null,null,null,null,"Wolf 33034",106936,33034,"Wolf","Matthias","Sen A",0,"BC Devils","BV Oberstedtener Devils e.V."]
["Belgar 8079",144478,8079,"Belgar","Renato","Sen B","D","BV Pinoy Frankfurt","BV Pinoy Frankfurt e.V.",22,null,null,null,null,"Belgar 8079",144478,8079,"Belgar","Renato","Sen B","D","BV Pinoy Frankfurt","BV Pinoy Frankfurt e.V."]
["Catibog-Krüger 33244",142994,33244,"Catibog-Krüger","Catherine","Damen","D","BV Pinoy Frankfurt","BV Pinoy Frankfurt e.V.",22,null,null,null,null,"Catibog-Krüger 33244",142994,33244,"Catibog-Krüger","Catherine","Damen","D","BV Pinoy Frankfurt","BV Pinoy Frankfurt e.V."]
["Clark 24949",null,24949,"Clark","Evangeline","Sen C",0,"BV Pinoy Frankfurt","BV Pinoy Frankfurt e.V.",22,null,null,null,null,"Clark 24949",null,24949,"Clark","Evangeline","Sen C",0,"BV Pinoy Frankfurt","BV Pinoy Frankfurt e.V."]
["Extra 10440",132473,10440,"Extra","Dan Oliver","Herren","D","BV Pinoy Frankfurt","BV Pinoy Frankfurt e.V.",22,null,null,null,null,"Extra 10440",132473,10440,"Extra","Dan Oliver","Herren","D","BV Pinoy Frankfurt","BV Pinoy Frankfurt e.V."]
["Hellersberg 15907",67242,15907,"Hellersberg","Dulce","Sen A","E","BV Pinoy Frankfurt","BV Pinoy Frankfurt e.V.",22,null,null,null,null,"Hellersberg 15907",67242,15907,"Hellersberg","Dulce","Sen A","E","BV Pinoy Frankfurt","BV Pinoy Frankfurt e.V."]
["Krämer 15768",100697,15768,"Krämer","Tobias","Herren","B","BV Pinoy Frankfurt","BV Pinoy Frankfurt e.V.",22,null,null,null,null,"Krämer 15768",100697,15768,"Krämer","Tobias","Herren","B","BV Pinoy Frankfurt","BV Pinoy Frankfurt e.V."]
[{"$f":"D515&\" \"&C515","v":"Linden 32231"},null,32231,"Linden","Marissa","Damen",0,"BV Pinoy Frankfurt","BV Pinoy Frankfurt e.V.",22,null,null,null,null,"Linden 32231",null,32231,"Linden","Marissa","Damen",0,"BV Pinoy Frankfurt","BV Pinoy Frankfurt e.V."]
["Manuel 33176",135911,33176,"Manuel","Arjay","Herren","D","BV Pinoy Frankfurt","BV Pinoy Frankfurt e.V.",22,null,null,null,null,"Manuel 33176",135911,33176,"Manuel","Arjay","Herren","D","BV Pinoy Frankfurt","BV Pinoy Frankfurt e.V."]
["Tesoro 10451",135818,10451,"Tesoro","Dan Wilfried","Herren",null,"BV Pinoy Frankfurt","BV Pinoy Frankfurt e.V.",22,null,null,null,null,"Tesoro 10451",135818,10451,"Tesoro","Dan Wilfried","Herren",null,"BV Pinoy Frankfurt","BV Pinoy Frankfurt e.V."]
["Verces 32230",null,32230,"Verces","Raquel","Sen A",0,"BV Pinoy Frankfurt","BV Pinoy Frankfurt e.V.",22,null,null,null,null,"Verces 32230",null,32230,"Verces","Raquel","Sen A",0,"BV Pinoy Frankfurt","BV Pinoy Frankfurt e.V."]
["Walther 30106",120228,30106,"Walther","Heike","Damen","E","BV Pinoy Frankfurt","BV Pinoy Frankfurt e.V.",22,null,null,null,null,"Walther 30106",120228,30106,"Walther","Heike","Damen","E","BV Pinoy Frankfurt","BV Pinoy Frankfurt e.V."]
["Zeller 33241",142997,33241,"Zeller","Isabell Marie","Jun","F","BV Pinoy Frankfurt","BV Pinoy Frankfurt e.V.",22,null,null,null,null,"Zeller 33241",142997,33241,"Zeller","Isabell Marie","Jun","F","BV Pinoy Frankfurt","BV Pinoy Frankfurt e.V."]
["Zeller 33242",142996,33242,"Zeller","Jörg","Sen A","C","BV Pinoy Frankfurt","BV Pinoy Frankfurt e.V.",22,null,null,null,null,"Zeller 33242",142996,33242,"Zeller","Jörg","Sen A","C","BV Pinoy Frankfurt","BV Pinoy Frankfurt e.V."]
["Zeller 33243",142995,33243,"Zeller","Patrick","Herren","B","BV Pinoy Frankfurt","BV Pinoy Frankfurt e.V.",22,null,null,null,null,"Zeller 33243",142995,33243,"Zeller","Patrick","Herren","B","BV Pinoy Frankfurt","BV Pinoy Frankfurt e.V."]
["Armbrüster 8026",100813,8026,"Armbrüster","Alfred","Sen B","C","BC Rebstock Ffm","BV Rebstock",22,null,null,null,null,"Armbrüster 8026",100813,8026,"Armbrüster","Alfred","Sen B","C","BC Rebstock Ffm","BV Rebstock"]
["Biersack 8097",151892,8097,"Biersack","Karl","Sen B","","BC Rebstock Ffm","BV Rebstock",22,null,null,null,null,"Biersack 8097",151892,8097,"Biersack","Karl","Sen B","","BC Rebstock Ffm","BV Rebstock"]
["Böhne 8124",146117,8124,"Böhne","Thomas","Sen A","C","BC Rebstock Ffm","BV Rebstock",22,null,null,null,null,"Böhne 8124",146117,8124,"Böhne","Thomas","Sen A","C","BC Rebstock Ffm","BV Rebstock"]
["Burger 8168",100814,8168,"Burger","Kurt","Sen B",0,"BC Rebstock Ffm","BV Rebstock",22,null,null,null,null,"Burger 8168",100814,8168,"Burger","Kurt","Sen B",0,"BC Rebstock Ffm","BV Rebstock"]
["Flemming 8324",100711,8324,"Flemming","Claus-Dieter","Sen C","","BC Rebstock Ffm","BV Rebstock",22,null,null,null,null,"Flemming 8324",100711,8324,"Flemming","Claus-Dieter","Sen C","","BC Rebstock Ffm","BV Rebstock"]
["Hartsch 33022",106854,33022,"Hartsch","David","Herren","C","BC Rebstock Ffm","BV Rebstock",22,null,null,null,null,"Hartsch 33022",106854,33022,"Hartsch","David","Herren","C","BC Rebstock Ffm","BV Rebstock"]
["Kumpf 8712",100816,8712,"Kumpf","Jürgen","Sen B","B","BC Rebstock Ffm","BV Rebstock",22,null,null,null,null,"Kumpf 8712",100816,8712,"Kumpf","Jürgen","Sen B","B","BC Rebstock Ffm","BV Rebstock"]
["Leipnitz 33326",147309,33326,"Leipnitz","Bernd","Sen B",0,"BC Rebstock Ffm","BV Rebstock",22,null,null,null,null,"Leipnitz 33326",147309,33326,"Leipnitz","Bernd","Sen B",0,"BC Rebstock Ffm","BV Rebstock"]
["Noss 8897",132530,8897,"Noss","Andreas","Sen A","","BC Rebstock Ffm","BV Rebstock",22,null,null,null,null,"Noss 8897",132530,8897,"Noss","Andreas","Sen A","","BC Rebstock Ffm","BV Rebstock"]
["Ress 15880",52059,15880,"Ress","Andreas","Sen A","","BC Rebstock Ffm","BV Rebstock",22,null,null,null,null,"Ress 15880",52059,15880,"Ress","Andreas","Sen A","","BC Rebstock Ffm","BV Rebstock"]
["Thierfelder 15274",153186,15274,"Thierfelder","Andreas","Sen B",0,"BC Rebstock Ffm","BV Rebstock",22,null,null,null,null,"Thierfelder 15274",153186,15274,"Thierfelder","Andreas","Sen B",0,"BC Rebstock Ffm","BV Rebstock"]
["Faull 685",144515,685,"Faull","Roland","Sen A","","Queer-Striker","Frankfurter Volleyball Verein e.V.",22,null,null,null,null,"Faull 685",144515,685,"Faull","Roland","Sen A","","Queer-Striker","Frankfurter Volleyball Verein e.V."]
["Hohmann 10518",132599,10518,"Hohmann","Alexander","Herren","D","Queer-Striker","Frankfurter Volleyball Verein e.V.",22,null,null,null,null,"Hohmann 10518",132599,10518,"Hohmann","Alexander","Herren","D","Queer-Striker","Frankfurter Volleyball Verein e.V."]
["Hohmann 33143",132600,33143,"Hohmann","Uwe","Sen A","D","Queer-Striker","Frankfurter Volleyball Verein e.V.",22,null,null,null,null,"Hohmann 33143",132600,33143,"Hohmann","Uwe","Sen A","D","Queer-Striker","Frankfurter Volleyball Verein e.V."]
["Kaplan 10496",147358,10496,"Kaplan","Emin","Herren","E","Queer-Striker","Frankfurter Volleyball Verein e.V.",22,null,null,null,null,"Kaplan 10496",147358,10496,"Kaplan","Emin","Herren","E","Queer-Striker","Frankfurter Volleyball Verein e.V."]
["Kohler 33146",135803,33146,"Kohler","William Glenn","Sen C","D","Queer-Striker","Frankfurter Volleyball Verein e.V.",22,null,null,null,null,"Kohler 33146",135803,33146,"Kohler","William Glenn","Sen C","D","Queer-Striker","Frankfurter Volleyball Verein e.V."]
["König 33117",140104,33117,"König","Justin","Herren","","Queer-Striker","Frankfurter Volleyball Verein e.V.",22,null,null,null,null,"König 33117",140104,33117,"König","Justin","Herren","","Queer-Striker","Frankfurter Volleyball Verein e.V."]
["Schmitt 33145",135802,33145,"Schmitt","Markus","Herren","E","Queer-Striker","Frankfurter Volleyball Verein e.V.",22,null,null,null,null,"Schmitt 33145",135802,33145,"Schmitt","Markus","Herren","E","Queer-Striker","Frankfurter Volleyball Verein e.V."]
["Wege 33177",135912,33177,"Wege","Gerhard","Sen B","","Queer-Striker","Frankfurter Volleyball Verein e.V.",22,null,null,null,null,"Wege 33177",135912,33177,"Wege","Gerhard","Sen B","","Queer-Striker","Frankfurter Volleyball Verein e.V."]
["Aufschläger 8030",135929,8030,"Aufschläger","Ulrike","Sen A","B","FSV Frankfurt","FSV Frankfurt",22,null,null,null,null,"Aufschläger 8030",135929,8030,"Aufschläger","Ulrike","Sen A","B","FSV Frankfurt","FSV Frankfurt"]
["Gutzwiller 15158",88634,15158,"Gutzwiller","Nicole","Damen","C","FSV Frankfurt","FSV Frankfurt",22,null,null,null,null,"Gutzwiller 15158",88634,15158,"Gutzwiller","Nicole","Damen","C","FSV Frankfurt","FSV Frankfurt"]
["Hospe 8568",88631,8568,"Hospe","Thilo","Sen A","B","FSV Frankfurt","FSV Frankfurt",22,null,null,null,null,"Hospe 8568",88631,8568,"Hospe","Thilo","Sen A","B","FSV Frankfurt","FSV Frankfurt"]
["Paparaphiou 8924",88633,8924,"Paparaphiou","Jessica","Damen","B","FSV Frankfurt","FSV Frankfurt",22,null,null,null,null,"Paparaphiou 8924",88633,8924,"Paparaphiou","Jessica","Damen","B","FSV Frankfurt","FSV Frankfurt"]
["Schmidt 8110",27438,8110,"Schmidt","Julia","Damen",0,"FSV Frankfurt","FSV Frankfurt",22,null,null,null,null,"Schmidt 8110",27438,8110,"Schmidt","Julia","Damen",0,"FSV Frankfurt","FSV Frankfurt"]
["Thomas 15278",88635,15278,"Thomas","Hans-Jürgen","Sen B","D","FSV Frankfurt","FSV Frankfurt",22,null,null,null,null,"Thomas 15278",88635,15278,"Thomas","Hans-Jürgen","Sen B","D","FSV Frankfurt","FSV Frankfurt"]
["Adjei 15947",99874,15947,"Adjei","Danilo","Herren","D","FTG-BC Frankfurt","FTG 1847 Frankfurt",23,null,null,null,null,"Adjei 15947",99874,15947,"Adjei","Danilo","Herren","D","FTG-BC Frankfurt","FTG 1847 Frankfurt"]
["Ammer 8018",88780,8018,"Ammer","Frank","Sen C","D","FTG-BC Frankfurt","FTG 1847 Frankfurt",23,null,null,null,null,"Ammer 8018",88780,8018,"Ammer","Frank","Sen C","D","FTG-BC Frankfurt","FTG 1847 Frankfurt"]
["Baumann 12996",153185,12996,"Baumann","Gabriele","Sen A","C","FTG-BC Frankfurt","FTG 1847 Frankfurt",23,null,null,null,null,"Baumann 12996",153185,12996,"Baumann","Gabriele","Sen A","C","FTG-BC Frankfurt","FTG 1847 Frankfurt"]
["Bott 15823",153227,15823,"Bott","Inge","Sen B",0,"FTG-BC Frankfurt","FTG 1847 Frankfurt",23,null,null,null,null,"Bott 15823",153227,15823,"Bott","Inge","Sen B",0,"FTG-BC Frankfurt","FTG 1847 Frankfurt"]
["Eylardi 8279",88781,8279,"Eylardi","Michaela","Sen B","D","FTG-BC Frankfurt","FTG 1847 Frankfurt",23,null,null,null,null,"Eylardi 8279",88781,8279,"Eylardi","Michaela","Sen B","D","FTG-BC Frankfurt","FTG 1847 Frankfurt"]
["Fastus 15962",100568,15962,"Fastus","Lars","Jun","B","FTG-BC Frankfurt","FTG 1847 Frankfurt",22,null,null,null,null,"Fastus 15962",100568,15962,"Fastus","Lars","Jun","B","FTG-BC Frankfurt","FTG 1847 Frankfurt"]
["Gabel 1447",154418,1447,"Gabel","Janine-Manuela","Damen","A","FTG-BC Frankfurt","FTG 1847 Frankfurt",23,null,null,null,null,"Gabel 1447",154418,1447,"Gabel","Janine-Manuela","Damen","A","FTG-BC Frankfurt","FTG 1847 Frankfurt"]
["Geißler 14633",149065,14633,"Geißler","Nadine","Damen","A","FTG-BC Frankfurt","FTG 1847 Frankfurt",23,null,null,null,null,"Geißler 14633",149065,14633,"Geißler","Nadine","Damen","A","FTG-BC Frankfurt","FTG 1847 Frankfurt"]
["Heine 8487",106595,8487,"Heine","Klaudija","Sen A",0,"FTG-BC Frankfurt","FTG 1847 Frankfurt",23,null,null,null,null,"Heine 8487",106595,8487,"Heine","Klaudija","Sen A",0,"FTG-BC Frankfurt","FTG 1847 Frankfurt"]
["Heine 10688",147301,10688,"Heine","Janine Leonie","Jug A",null,"FTG-BC Frankfurt","FTG 1847 Frankfurt",22,null,null,null,null,"Heine 10688",147301,10688,"Heine","Janine Leonie","Jug A",null,"FTG-BC Frankfurt","FTG 1847 Frankfurt"]
["Helfrich 8494",153228,8494,"Helfrich","Regina","Sen A","C","FTG-BC Frankfurt","FTG 1847 Frankfurt",23,null,null,null,null,"Helfrich 8494",153228,8494,"Helfrich","Regina","Sen A","C","FTG-BC Frankfurt","FTG 1847 Frankfurt"]
["Helfrich 33075",107024,33075,"Helfrich","Rainer","Sen A","C","FTG-BC Frankfurt","FTG 1847 Frankfurt",23,null,null,null,null,"Helfrich 33075",107024,33075,"Helfrich","Rainer","Sen A","C","FTG-BC Frankfurt","FTG 1847 Frankfurt"]
["Heuckeroth 15810",136000,15810,"Heuckeroth","Anna","Damen","B","FTG-BC Frankfurt","FTG 1847 Frankfurt",23,null,null,null,null,"Heuckeroth 15810",136000,15810,"Heuckeroth","Anna","Damen","B","FTG-BC Frankfurt","FTG 1847 Frankfurt"]
["Keitel 33328",149133,33328,"Keitel","Beate","Jug A",0,"FTG-BC Frankfurt","FTG 1847 Frankfurt",22,null,null,null,null,"Keitel 33328",149133,33328,"Keitel","Beate","Jug A",0,"FTG-BC Frankfurt","FTG 1847 Frankfurt"]
["Löschnig 15764",140052,15764,"Löschnig","Stephan","Herren","E","FTG-BC Frankfurt","FTG 1847 Frankfurt",23,null,null,null,null,"Löschnig 15764",140052,15764,"Löschnig","Stephan","Herren","E","FTG-BC Frankfurt","FTG 1847 Frankfurt"]
["Löw 33019",106848,33019,"Löw","Maximilian","Herren","D","FTG-BC Frankfurt","FTG 1847 Frankfurt",22,null,null,null,null,"Löw 33019",106848,33019,"Löw","Maximilian","Herren","D","FTG-BC Frankfurt","FTG 1847 Frankfurt"]
["Mader 15754",140072,15754,"Mader","Chantal","Damen","D","FTG-BC Frankfurt","FTG 1847 Frankfurt",23,null,null,null,null,"Mader 15754",140072,15754,"Mader","Chantal","Damen","D","FTG-BC Frankfurt","FTG 1847 Frankfurt"]
["Meurer 8805",151345,8805,"Meurer","Sylvia","Sen B",null,"FTG-BC Frankfurt","FTG 1847 Frankfurt",23,null,null,null,null,"Meurer 8805",151345,8805,"Meurer","Sylvia","Sen B",null,"FTG-BC Frankfurt","FTG 1847 Frankfurt"]
["Michajlow 12495",149953,12495,"Michajlow","Adile","Damen","B","FTG-BC Frankfurt","FTG 1847 Frankfurt",23,null,null,null,null,"Michajlow 12495",149953,12495,"Michajlow","Adile","Damen","B","FTG-BC Frankfurt","FTG 1847 Frankfurt"]
["Pietzsch 15824",153229,15824,"Pietzsch","Frank","Sen A","E","FTG-BC Frankfurt","FTG 1847 Frankfurt",23,null,null,null,null,"Pietzsch 15824",153229,15824,"Pietzsch","Frank","Sen A","E","FTG-BC Frankfurt","FTG 1847 Frankfurt"]
["Preis 33231",140138,33231,"Preis","Alexander","Sen A","C","FTG-BC Frankfurt","FTG 1847 Frankfurt",22,null,null,null,null,"Preis 33231",140138,33231,"Preis","Alexander","Sen A","C","FTG-BC Frankfurt","FTG 1847 Frankfurt"]
["Preis 33332",149147,33332,"Preis","Alina","Jug A","","FTG-BC Frankfurt","FTG 1847 Frankfurt",22,null,null,null,null,"Preis 33332",149147,33332,"Preis","Alina","Jug A","","FTG-BC Frankfurt","FTG 1847 Frankfurt"]
["Roth 33276",146049,33276,"Roth","Sebastian","Jun","D","FTG-BC Frankfurt","FTG 1847 Frankfurt",23,null,null,null,null,"Roth 33276",146049,33276,"Roth","Sebastian","Jun","D","FTG-BC Frankfurt","FTG 1847 Frankfurt"]
["Sand 33335",149855,33335,"Sand","Christopher","Herren",0,"FTG-BC Frankfurt","FTG 1847 Frankfurt",22,null,null,null,null,"Sand 33335",149855,33335,"Sand","Christopher","Herren",0,"FTG-BC Frankfurt","FTG 1847 Frankfurt"]
["Sawicki 31298",12281,31298,"Sawicki","Claudia","Damen","A","FTG-BC Frankfurt","FTG 1847 Frankfurt",23,null,null,null,null,"Sawicki 31298",12281,31298,"Sawicki","Claudia","Damen","A","FTG-BC Frankfurt","FTG 1847 Frankfurt"]
["Schrank 15251",149064,15251,"Schrank","Nicole","Sen A","D","FTG-BC Frankfurt","FTG 1847 Frankfurt",23,null,null,null,null,"Schrank 15251",149064,15251,"Schrank","Nicole","Sen A","D","FTG-BC Frankfurt","FTG 1847 Frankfurt"]
["Schütz 26117",151347,26117,"Schütz","Ulrike","Sen B","C","FTG-BC Frankfurt","FTG 1847 Frankfurt",23,null,null,null,null,"Schütz 26117",151347,26117,"Schütz","Ulrike","Sen B","C","FTG-BC Frankfurt","FTG 1847 Frankfurt"]
["Schwimmer 33131",132547,33131,"Schwimmer","Patrick","Herren","D","FTG-BC Frankfurt","FTG 1847 Frankfurt",22,null,null,null,null,"Schwimmer 33131",132547,33131,"Schwimmer","Patrick","Herren","D","FTG-BC Frankfurt","FTG 1847 Frankfurt"]
["Seitz 33134",132578,33134,"Seitz","Dieter","Sen A","E","FTG-BC Frankfurt","FTG 1847 Frankfurt",22,null,null,null,null,"Seitz 33134",132578,33134,"Seitz","Dieter","Sen A","E","FTG-BC Frankfurt","FTG 1847 Frankfurt"]
["Seitz 33181",135940,33181,"Seitz","Maximilian","Jug A","E","FTG-BC Frankfurt","FTG 1847 Frankfurt",22,null,null,null,null,"Seitz 33181",135940,33181,"Seitz","Maximilian","Jug A","E","FTG-BC Frankfurt","FTG 1847 Frankfurt"]
["Siemonsen-Caldwell 10366",106953,10366,"Siemonsen-Caldwell","Melanie","Damen","D","FTG-BC Frankfurt","FTG 1847 Frankfurt",23,null,null,null,null,"Siemonsen-Caldwell 10366",106953,10366,"Siemonsen-Caldwell","Melanie","Damen","D","FTG-BC Frankfurt","FTG 1847 Frankfurt"]
[{"$f":"D579&\" \"&C579","v":"Stapper 15976"},149131,15976,"Stapper","Tim","Jun","C","FTG-BC Frankfurt","FTG 1847 Frankfurt",23,null,null,null,null,"Stapper 15976",149131,15976,"Stapper","Tim","Jun","C","FTG-BC Frankfurt","FTG 1847 Frankfurt"]
["Stapper 33333",149245,33333,"Stapper","Finja","Jug A",0,"FTG-BC Frankfurt","FTG 1847 Frankfurt",22,null,null,null,null,"Stapper 33333",149245,33333,"Stapper","Finja","Jug A",0,"FTG-BC Frankfurt","FTG 1847 Frankfurt"]
["Tharra 15270",147202,15270,"Tharra","Marina","Sen B",null,"FTG-BC Frankfurt","FTG 1847 Frankfurt",23,null,null,null,null,"Tharra 15270",147202,15270,"Tharra","Marina","Sen B",null,"FTG-BC Frankfurt","FTG 1847 Frankfurt"]
["Then 15272",106624,15272,"Then","Manuela","Sen A","C","FTG-BC Frankfurt","FTG 1847 Frankfurt",23,null,null,null,null,"Then 15272",106624,15272,"Then","Manuela","Sen A","C","FTG-BC Frankfurt","FTG 1847 Frankfurt"]
["Then 15273",145919,15273,"Then","Oliver","Sen A",0,"FTG-BC Frankfurt","FTG 1847 Frankfurt",23,null,null,null,null,"Then 15273",145919,15273,"Then","Oliver","Sen A",0,"FTG-BC Frankfurt","FTG 1847 Frankfurt"]
["Timter 15284",151344,15284,"Timter","Vanessa","Damen","A","FTG-BC Frankfurt","FTG 1847 Frankfurt",23,null,null,null,null,"Timter 15284",151344,15284,"Timter","Vanessa","Damen","A","FTG-BC Frankfurt","FTG 1847 Frankfurt"]
["Tross 33323",147302,33323,"Tross","Marissa","Sen A",0,"FTG-BC Frankfurt","FTG 1847 Frankfurt",23,null,null,null,null,"Tross 33323",147302,33323,"Tross","Marissa","Sen A",0,"FTG-BC Frankfurt","FTG 1847 Frankfurt"]
["Beyertt 33331",149144,33331,"Beyertt","Mike","Jun",null,"BC 83 Kelsterbach","KBV Kelsterbach",22,null,null,null,null,"Beyertt 33331",149144,33331,"Beyertt","Mike","Jun",null,"BC 83 Kelsterbach","KBV Kelsterbach"]
["Cabrera Tudela 8176",106539,8176,"Cabrera Tudela","Antonio","Senioren C","D","BC 83 Kelsterbach","KBV Kelsterbach",22,null,null,null,null,"Cabrera Tudela 8176",106539,8176,"Cabrera Tudela","Antonio","Senioren C","D","BC 83 Kelsterbach","KBV Kelsterbach"]
["Cussler 15784",39634,15784,"Cussler","Karl","Sen C",null,"BC 83 Kelsterbach","KBV Kelsterbach",22,null,null,null,null,"Cussler 15784",39634,15784,"Cussler","Karl","Sen C",null,"BC 83 Kelsterbach","KBV Kelsterbach"]
["Da Silva Gomes 33255",143040,33255,"Da Silva Gomes","Joel","Jug B","F","BC 83 Kelsterbach","KBV Kelsterbach",22,null,null,null,null,"Da Silva Gomes 33255",143040,33255,"Da Silva Gomes","Joel","Jug B","F","BC 83 Kelsterbach","KBV Kelsterbach"]
["Da Silva Gomes 33293",147210,33293,"Da Silva Gomes","Patricia","Jun","E","BC 83 Kelsterbach","KBV Kelsterbach",22,null,null,null,null,"Da Silva Gomes 33293",147210,33293,"Da Silva Gomes","Patricia","Jun","E","BC 83 Kelsterbach","KBV Kelsterbach"]
["Denbrock 33337",149921,33337,"Denbrock","Stephen","Herren",0,"BC 83 Kelsterbach","KBV Kelsterbach",22,null,null,null,null,"Denbrock 33337",149921,33337,"Denbrock","Stephen","Herren",0,"BC 83 Kelsterbach","KBV Kelsterbach"]
["Derleth 33067",106996,33067,"Derleth","Michael","Herren","F","BC 83 Kelsterbach","KBV Kelsterbach",22,null,null,null,null,"Derleth 33067",106996,33067,"Derleth","Michael","Herren","F","BC 83 Kelsterbach","KBV Kelsterbach"]
["Desiderio 8225",149100,8225,"Desiderio","Giovanni","Sen B","B","BC 83 Kelsterbach","KBV Kelsterbach",22,null,null,null,null,"Desiderio 8225",149100,8225,"Desiderio","Giovanni","Sen B","B","BC 83 Kelsterbach","KBV Kelsterbach"]
["Doffin 33061",106989,33061,"Doffin","Rebecca","Damen","D","BC 83 Kelsterbach","KBV Kelsterbach",22,null,null,null,null,"Doffin 33061",106989,33061,"Doffin","Rebecca","Damen","D","BC 83 Kelsterbach","KBV Kelsterbach"]
["Engisch 8276",106540,8276,"Engisch","Erhard","Sen C","","BC 83 Kelsterbach","KBV Kelsterbach",22,null,null,null,null,"Engisch 8276",106540,8276,"Engisch","Erhard","Sen C","","BC 83 Kelsterbach","KBV Kelsterbach"]
["Fleischhacker 15935",67549,15935,"Fleischhacker","Michael","Herren","C","BC 83 Kelsterbach","KBV Kelsterbach",22,null,null,null,null,"Fleischhacker 15935",67549,15935,"Fleischhacker","Michael","Herren","C","BC 83 Kelsterbach","KBV Kelsterbach"]
["Ginting 8393",147207,8393,"Ginting","Bangun","Sen A","E","BC 83 Kelsterbach","KBV Kelsterbach",22,null,null,null,null,"Ginting 8393",147207,8393,"Ginting","Bangun","Sen A","E","BC 83 Kelsterbach","KBV Kelsterbach"]
["Held 8490",106542,8490,"Held","Ernst","Sen C","E","BC 83 Kelsterbach","KBV Kelsterbach",22,null,null,null,null,"Held 8490",106542,8490,"Held","Ernst","Sen C","E","BC 83 Kelsterbach","KBV Kelsterbach"]
["Hilger 8539",106544,8539,"Hilger","Detlef","Sen A","D","BC 83 Kelsterbach","KBV Kelsterbach",22,null,null,null,null,"Hilger 8539",106544,8539,"Hilger","Detlef","Sen A","D","BC 83 Kelsterbach","KBV Kelsterbach"]
["Hormann 8561",140051,8561,"Hormann","Bettina","Damen",0,"BC 83 Kelsterbach","KBV Kelsterbach",22,null,null,null,null,"Hormann 8561",140051,8561,"Hormann","Bettina","Damen",0,"BC 83 Kelsterbach","KBV Kelsterbach"]
["Jourdan 33032",106926,33032,"Jourdan","Frank","Sen A","D","BC 83 Kelsterbach","KBV Kelsterbach",22,null,null,null,null,"Jourdan 33032",106926,33032,"Jourdan","Frank","Sen A","D","BC 83 Kelsterbach","KBV Kelsterbach"]
["Kvocka 33256",143041,33256,"Kvocka","Jannik","Jug B","E","BC 83 Kelsterbach","KBV Kelsterbach",22,null,null,null,null,"Kvocka 33256",143041,33256,"Kvocka","Jannik","Jug B","E","BC 83 Kelsterbach","KBV Kelsterbach"]
["Lebkücher 26651",127817,26651,"Lebkücher","Christian","Herren","C","BC 83 Kelsterbach","KBV Kelsterbach",22,null,null,null,null,"Lebkücher 26651",127817,26651,"Lebkücher","Christian","Herren","C","BC 83 Kelsterbach","KBV Kelsterbach"]
["Lella 33048",106968,33048,"Lella","Michele Antonio","Herren","D","BC 83 Kelsterbach","KBV Kelsterbach",22,null,null,null,null,"Lella 33048",106968,33048,"Lella","Michele Antonio","Herren","D","BC 83 Kelsterbach","KBV Kelsterbach"]
["Lopez Rodrigues 8755",106545,8755,"Lopez Rodrigues","Raul","Sen B","D","BC 83 Kelsterbach","KBV Kelsterbach",22,null,null,null,null,"Lopez Rodrigues 8755",106545,8755,"Lopez Rodrigues","Raul","Sen B","D","BC 83 Kelsterbach","KBV Kelsterbach"]
["Lopez y Zuvita 10604",140142,10604,"Lopez y Zuvita","David","Herren","","BC 83 Kelsterbach","KBV Kelsterbach",22,null,null,null,null,"Lopez y Zuvita 10604",140142,10604,"Lopez y Zuvita","David","Herren","","BC 83 Kelsterbach","KBV Kelsterbach"]
["Mank 8778",88694,8778,"Mank","Siegfried","Sen B","E","BC 83 Kelsterbach","KBV Kelsterbach",22,null,null,null,null,"Mank 8778",88694,8778,"Mank","Siegfried","Sen B","E","BC 83 Kelsterbach","KBV Kelsterbach"]
["Nguyen 33233",140140,33233,"Nguyen","Boris","Jun","E","BC 83 Kelsterbach","KBV Kelsterbach",22,null,null,null,null,"Nguyen 33233",140140,33233,"Nguyen","Boris","Jun","E","BC 83 Kelsterbach","KBV Kelsterbach"]
["Rejzek 15929",107064,15929,"Rejzek","Alexander","Jun","A","BC 83 Kelsterbach","KBV Kelsterbach",22,null,null,null,null,"Rejzek 15929",107064,15929,"Rejzek","Alexander","Jun","A","BC 83 Kelsterbach","KBV Kelsterbach"]
["Rejzek 33330",149143,33330,"Rejzek","Manuel","Jug B","","BC 83 Kelsterbach","KBV Kelsterbach",22,null,null,null,null,"Rejzek 33330",149143,33330,"Rejzek","Manuel","Jug B","","BC 83 Kelsterbach","KBV Kelsterbach"]
["Rossel 15037",106546,15037,"Rossel","Reiner","Sen C","D","BC 83 Kelsterbach","KBV Kelsterbach",22,null,null,null,null,"Rossel 15037",106546,15037,"Rossel","Reiner","Sen C","D","BC 83 Kelsterbach","KBV Kelsterbach"]
["Schmitt 15120",106550,15120,"Schmitt","Hans-Werner","Sen B",0,"BC 83 Kelsterbach","KBV Kelsterbach",22,null,null,null,null,"Schmitt 15120",106550,15120,"Schmitt","Hans-Werner","Sen B",0,"BC 83 Kelsterbach","KBV Kelsterbach"]
["Spot 15213",147206,15213,"Spot","Heinz","Sen B","C","BC 83 Kelsterbach","KBV Kelsterbach",22,null,null,null,null,"Spot 15213",147206,15213,"Spot","Heinz","Sen B","C","BC 83 Kelsterbach","KBV Kelsterbach"]
["Thorun 33232",140139,33232,"Thorun","Connie Wai Fan","Damen","E","BC 83 Kelsterbach","KBV Kelsterbach",22,null,null,null,null,"Thorun 33232",140139,33232,"Thorun","Connie Wai Fan","Damen","E","BC 83 Kelsterbach","KBV Kelsterbach"]
["Umbach 10667",151916,10667,"Umbach","Armin","Sen B","C","BC 83 Kelsterbach","KBV Kelsterbach",22,null,null,null,null,"Umbach 10667",151916,10667,"Umbach","Armin","Sen B","C","BC 83 Kelsterbach","KBV Kelsterbach"]
["Umbach 33229",140128,33229,"Umbach","Christian","Herren","A","BC 83 Kelsterbach","KBV Kelsterbach",22,null,null,null,null,"Umbach 33229",140128,33229,"Umbach","Christian","Herren","A","BC 83 Kelsterbach","KBV Kelsterbach"]
["Vogt 15699",149099,15699,"Vogt","Matthias","Sen A","D","BC 83 Kelsterbach","KBV Kelsterbach",22,null,null,null,null,"Vogt 15699",149099,15699,"Vogt","Matthias","Sen A","D","BC 83 Kelsterbach","KBV Kelsterbach"]
["Vogt 33152",135820,33152,"Vogt","Kitiyalath","Damen","D","BC 83 Kelsterbach","KBV Kelsterbach",22,null,null,null,null,"Vogt 33152",135820,33152,"Vogt","Kitiyalath","Damen","D","BC 83 Kelsterbach","KBV Kelsterbach"]
["Weidinger 33130",132546,33130,"Weidinger","Siegbert","Sen B","D","BC 83 Kelsterbach","KBV Kelsterbach",22,null,null,null,null,"Weidinger 33130",132546,33130,"Weidinger","Siegbert","Sen B","D","BC 83 Kelsterbach","KBV Kelsterbach"]
["Winkelmann 33096",107137,33096,"Winkelmann","Marco","Herren","A","BC 83 Kelsterbach","KBV Kelsterbach",22,null,null,null,null,"Winkelmann 33096",107137,33096,"Winkelmann","Marco","Herren","A","BC 83 Kelsterbach","KBV Kelsterbach"]
["Winkelmann 33136",132586,33136,"Winkelmann","Nick","Jun","E","BC 83 Kelsterbach","KBV Kelsterbach",22,null,null,null,null,"Winkelmann 33136",132586,33136,"Winkelmann","Nick","Jun","E","BC 83 Kelsterbach","KBV Kelsterbach"]
["Zwegerl 33135",132585,33135,"Zwegerl","Andreas","Herren",null,"BC 83 Kelsterbach","KBV Kelsterbach",22,null,null,null,null,"Zwegerl 33135",132585,33135,"Zwegerl","Andreas","Herren",null,"BC 83 Kelsterbach","KBV Kelsterbach"]
["Albert 8013",67165,8013,"Albert","Stefan","Sen A","","Mainhattan Bowlers Frankfurt","Mainhattan Bowlers Frankfurt",22,null,null,null,null,"Albert 8013",67165,8013,"Albert","Stefan","Sen A","","Mainhattan Bowlers Frankfurt","Mainhattan Bowlers Frankfurt"]
["Baier 8037",151911,8037,"Baier","Michael","Sen A","C","Mainhattan Bowlers Frankfurt","Mainhattan Bowlers Frankfurt",22,null,null,null,null,"Baier 8037",151911,8037,"Baier","Michael","Sen A","C","Mainhattan Bowlers Frankfurt","Mainhattan Bowlers Frankfurt"]
["Barth 8044",88627,8044,"Barth","Dietmar","Sen B","D","Mainhattan Bowlers Frankfurt","Mainhattan Bowlers Frankfurt",22,null,null,null,null,"Barth 8044",88627,8044,"Barth","Dietmar","Sen B","D","Mainhattan Bowlers Frankfurt","Mainhattan Bowlers Frankfurt"]
["Caldwell 10193",153162,10193,"Caldwell","James","Sen A",0,"Mainhattan Bowlers Frankfurt","Mainhattan Bowlers Frankfurt",22,null,null,null,null,"Caldwell 10193",153162,10193,"Caldwell","James","Sen A",0,"Mainhattan Bowlers Frankfurt","Mainhattan Bowlers Frankfurt"]
["Diekmann 33265",144531,33265,"Diekmann","Sandra","Damen","","Mainhattan Bowlers Frankfurt","Mainhattan Bowlers Frankfurt",22,null,null,null,null,"Diekmann 33265",144531,33265,"Diekmann","Sandra","Damen","","Mainhattan Bowlers Frankfurt","Mainhattan Bowlers Frankfurt"]
["Greenaway 15647",144514,15647,"Greenaway","Jesse","Sen B","E","Mainhattan Bowlers Frankfurt","Mainhattan Bowlers Frankfurt",22,null,null,null,null,"Greenaway 15647",144514,15647,"Greenaway","Jesse","Sen B","E","Mainhattan Bowlers Frankfurt","Mainhattan Bowlers Frankfurt"]
["Grieb 15958",100558,15958,"Grieb","Waldemar","Sen B","E","Mainhattan Bowlers Frankfurt","Mainhattan Bowlers Frankfurt",22,null,null,null,null,"Grieb 15958",100558,15958,"Grieb","Waldemar","Sen B","E","Mainhattan Bowlers Frankfurt","Mainhattan Bowlers Frankfurt"]
["Hack 8441",89407,8441,"Hack","Dietmar","Sen C","D","Mainhattan Bowlers Frankfurt","Mainhattan Bowlers Frankfurt",22,null,null,null,null,"Hack 8441",89407,8441,"Hack","Dietmar","Sen C","D","Mainhattan Bowlers Frankfurt","Mainhattan Bowlers Frankfurt"]
["Hlavinka 8546",100129,8546,"Hlavinka","Pascal","Herren","D","Mainhattan Bowlers Frankfurt","Mainhattan Bowlers Frankfurt",22,null,null,null,null,"Hlavinka 8546",100129,8546,"Hlavinka","Pascal","Herren","D","Mainhattan Bowlers Frankfurt","Mainhattan Bowlers Frankfurt"]
["Hoyle 8569",144530,8569,"Hoyle","Keith","Sen B","D","Mainhattan Bowlers Frankfurt","Mainhattan Bowlers Frankfurt",22,null,null,null,null,"Hoyle 8569",144530,8569,"Hoyle","Keith","Sen B","D","Mainhattan Bowlers Frankfurt","Mainhattan Bowlers Frankfurt"]
["Ihrig 33324",147303,33324,"Ihrig","Petra","Sen A","","Mainhattan Bowlers Frankfurt","Mainhattan Bowlers Frankfurt",22,null,null,null,null,"Ihrig 33324",147303,33324,"Ihrig","Petra","Sen A","","Mainhattan Bowlers Frankfurt","Mainhattan Bowlers Frankfurt"]
["Kaiser 8618",88701,8618,"Kaiser","Michael","Sen A","D","Mainhattan Bowlers Frankfurt","Mainhattan Bowlers Frankfurt",22,null,null,null,null,"Kaiser 8618",88701,8618,"Kaiser","Michael","Sen A","D","Mainhattan Bowlers Frankfurt","Mainhattan Bowlers Frankfurt"]
["Lassiter 8728",153161,8728,"Lassiter","Wayne","Sen B","E","Mainhattan Bowlers Frankfurt","Mainhattan Bowlers Frankfurt",22,null,null,null,null,"Lassiter 8728",153161,8728,"Lassiter","Wayne","Sen B","E","Mainhattan Bowlers Frankfurt","Mainhattan Bowlers Frankfurt"]
["Marauhn 33345",153164,33345,"Marauhn","Burkhard","Herren",0,"Mainhattan Bowlers Frankfurt","Mainhattan Bowlers Frankfurt",22,null,null,null,null,"Marauhn 33345",153164,33345,"Marauhn","Burkhard","Herren",0,"Mainhattan Bowlers Frankfurt","Mainhattan Bowlers Frankfurt"]
["Meß 14604",135877,14604,"Meß","Manfred","Sen B","B","Mainhattan Bowlers Frankfurt","Mainhattan Bowlers Frankfurt",22,null,null,null,null,"Meß 14604",135877,14604,"Meß","Manfred","Sen B","B","Mainhattan Bowlers Frankfurt","Mainhattan Bowlers Frankfurt"]
["Micianova 8814",144463,8814,"Micianova","Jana","Damen","E","Mainhattan Bowlers Frankfurt","Mainhattan Bowlers Frankfurt",22,null,null,null,null,"Micianova 8814",144463,8814,"Micianova","Jana","Damen","E","Mainhattan Bowlers Frankfurt","Mainhattan Bowlers Frankfurt"]
["Pilo 8949",144465,8949,"Pilo","Salvatore","Sen B","D","Mainhattan Bowlers Frankfurt","Mainhattan Bowlers Frankfurt",22,null,null,null,null,"Pilo 8949",144465,8949,"Pilo","Salvatore","Sen B","D","Mainhattan Bowlers Frankfurt","Mainhattan Bowlers Frankfurt"]
["Pistara 33214",140070,33214,"Pistara","Marco","Herren","","Mainhattan Bowlers Frankfurt","Mainhattan Bowlers Frankfurt",22,null,null,null,null,"Pistara 33214",140070,33214,"Pistara","Marco","Herren","","Mainhattan Bowlers Frankfurt","Mainhattan Bowlers Frankfurt"]
["Reuter 15013",67611,15013,"Reuter","Winfried","Sen B","D","Mainhattan Bowlers Frankfurt","Mainhattan Bowlers Frankfurt",22,null,null,null,null,"Reuter 15013",67611,15013,"Reuter","Winfried","Sen B","D","Mainhattan Bowlers Frankfurt","Mainhattan Bowlers Frankfurt"]
["Reuter 33266",144464,33266,"Reuter","Sascha","Herren","E","Mainhattan Bowlers Frankfurt","Mainhattan Bowlers Frankfurt",22,null,null,null,null,"Reuter 33266",144464,33266,"Reuter","Sascha","Herren","E","Mainhattan Bowlers Frankfurt","Mainhattan Bowlers Frankfurt"]
[{"$f":"D643&\" \"&C643","v":"Riedel 10491"},144532,10491,"Riedel","Angelika","Sen C","","Mainhattan Bowlers Frankfurt","Mainhattan Bowlers Frankfurt",22,null,null,null,null,"Riedel 10491",144532,10491,"Riedel","Angelika","Sen C","","Mainhattan Bowlers Frankfurt","Mainhattan Bowlers Frankfurt"]
["Rott 15598",149069,15598,"Rott","Waltraud","Sen B","E","Mainhattan Bowlers Frankfurt","Mainhattan Bowlers Frankfurt",22,null,null,null,null,"Rott 15598",149069,15598,"Rott","Waltraud","Sen B","E","Mainhattan Bowlers Frankfurt","Mainhattan Bowlers Frankfurt"]
["Rüffer 33193",135979,33193,"Rüffer","Andreas","Sen A","D","Mainhattan Bowlers Frankfurt","Mainhattan Bowlers Frankfurt",22,null,null,null,null,"Rüffer 33193",135979,33193,"Rüffer","Andreas","Sen A","D","Mainhattan Bowlers Frankfurt","Mainhattan Bowlers Frankfurt"]
["Schäfer 15065",67166,15065,"Schäfer","Jürgen","Sen A","C","Mainhattan Bowlers Frankfurt","Mainhattan Bowlers Frankfurt",22,null,null,null,null,"Schäfer 15065",67166,15065,"Schäfer","Jürgen","Sen A","C","Mainhattan Bowlers Frankfurt","Mainhattan Bowlers Frankfurt"]
["Schlösser 15440",100132,15440,"Schlösser","Patrick","Herren","","Mainhattan Bowlers Frankfurt","Mainhattan Bowlers Frankfurt",22,null,null,null,null,"Schlösser 15440",100132,15440,"Schlösser","Patrick","Herren","","Mainhattan Bowlers Frankfurt","Mainhattan Bowlers Frankfurt"]
["Seemann 15575",140053,15575,"Seemann","Thomas","Sen A",0,"Mainhattan Bowlers Frankfurt","Mainhattan Bowlers Frankfurt",22,null,null,null,null,"Seemann 15575",140053,15575,"Seemann","Thomas","Sen A",0,"Mainhattan Bowlers Frankfurt","Mainhattan Bowlers Frankfurt"]
["Tambosi 15943",89301,15943,"Tambosi","Michael","Sen B","D","Mainhattan Bowlers Frankfurt","Mainhattan Bowlers Frankfurt",22,null,null,null,null,"Tambosi 15943",89301,15943,"Tambosi","Michael","Sen B","D","Mainhattan Bowlers Frankfurt","Mainhattan Bowlers Frankfurt"]
["Unger 15310",88559,15310,"Unger","Bernd","Sen C","","Mainhattan Bowlers Frankfurt","Mainhattan Bowlers Frankfurt",22,null,null,null,null,"Unger 15310",88559,15310,"Unger","Bernd","Sen C","","Mainhattan Bowlers Frankfurt","Mainhattan Bowlers Frankfurt"]
["Weigel 33325",147304,33325,"Weigel","Harald","Herren","D","Mainhattan Bowlers Frankfurt","Mainhattan Bowlers Frankfurt",22,null,null,null,null,"Weigel 33325",147304,33325,"Weigel","Harald","Herren","D","Mainhattan Bowlers Frankfurt","Mainhattan Bowlers Frankfurt"]
["Bämpfer 33195",135994,33195,"Bämpfer","Gerald","Sen A","D","Blau-Gelb Fulda Strikers","PSV BG Fulda 1934/61 e.V.",22,null,null,null,null,"Bämpfer 33195",135994,33195,"Bämpfer","Gerald","Sen A","D","Blau-Gelb Fulda Strikers","PSV BG Fulda 1934/61 e.V."]
["Belletz 33251",143032,33251,"Belletz","Antonia","Damen","E","Blau-Gelb Fulda Strikers","PSV BG Fulda 1934/61 e.V.",22,null,null,null,null,"Belletz 33251",143032,33251,"Belletz","Antonia","Damen","E","Blau-Gelb Fulda Strikers","PSV BG Fulda 1934/61 e.V."]
["Blaye 33284",146161,33284,"Blaye","Stephen","Herren","E","Blau-Gelb Fulda Strikers","PSV BG Fulda 1934/61 e.V.",22,null,null,null,null,"Blaye 33284",146161,33284,"Blaye","Stephen","Herren","E","Blau-Gelb Fulda Strikers","PSV BG Fulda 1934/61 e.V."]
["De Fries 33203",135985,33203,"De Fries","Frank","Sen A","D","Blau-Gelb Fulda Strikers","PSV BG Fulda 1934/61 e.V.",22,null,null,null,null,"De Fries 33203",135985,33203,"De Fries","Frank","Sen A","D","Blau-Gelb Fulda Strikers","PSV BG Fulda 1934/61 e.V."]
["Decher 33200",135988,33200,"Decher","Carsten","Herren","E","Blau-Gelb Fulda Strikers","PSV BG Fulda 1934/61 e.V.",22,null,null,null,null,"Decher 33200",135988,33200,"Decher","Carsten","Herren","E","Blau-Gelb Fulda Strikers","PSV BG Fulda 1934/61 e.V."]
["Duringer 33288",146193,33288,"Duringer","Karin","Sen A","E","Blau-Gelb Fulda Strikers","PSV BG Fulda 1934/61 e.V.",22,null,null,null,null,"Duringer 33288",146193,33288,"Duringer","Karin","Sen A","E","Blau-Gelb Fulda Strikers","PSV BG Fulda 1934/61 e.V."]
["Fehl 8290",143030,8290,"Fehl","Manuel","Herren","","Blau-Gelb Fulda Strikers","PSV BG Fulda 1934/61 e.V.",22,null,null,null,null,"Fehl 8290",143030,8290,"Fehl","Manuel","Herren","","Blau-Gelb Fulda Strikers","PSV BG Fulda 1934/61 e.V."]
["Geis 33206",135982,33206,"Geis","Dominik","Jun","D","Blau-Gelb Fulda Strikers","PSV BG Fulda 1934/61 e.V.",22,null,null,null,null,"Geis 33206",135982,33206,"Geis","Dominik","Jun","D","Blau-Gelb Fulda Strikers","PSV BG Fulda 1934/61 e.V."]
["Heil 33250",143031,33250,"Heil","Sven","Herren","E","Blau-Gelb Fulda Strikers","PSV BG Fulda 1934/61 e.V.",22,null,null,null,null,"Heil 33250",143031,33250,"Heil","Sven","Herren","E","Blau-Gelb Fulda Strikers","PSV BG Fulda 1934/61 e.V."]
["Heun 33249",143029,33249,"Heun","Susan","Damen","E","Blau-Gelb Fulda Strikers","PSV BG Fulda 1934/61 e.V.",22,null,null,null,null,"Heun 33249",143029,33249,"Heun","Susan","Damen","E","Blau-Gelb Fulda Strikers","PSV BG Fulda 1934/61 e.V."]
["Hofmann 33207",135981,33207,"Hofmann","Maximilian","Herren","C","Blau-Gelb Fulda Strikers","PSV BG Fulda 1934/61 e.V.",22,null,null,null,null,"Hofmann 33207",135981,33207,"Hofmann","Maximilian","Herren","C","Blau-Gelb Fulda Strikers","PSV BG Fulda 1934/61 e.V."]
["Kaiser 33173",135901,33173,"Kaiser","Oliver","Sen A","D","Blau-Gelb Fulda Strikers","PSV BG Fulda 1934/61 e.V.",22,null,null,null,null,"Kaiser 33173",135901,33173,"Kaiser","Oliver","Sen A","D","Blau-Gelb Fulda Strikers","PSV BG Fulda 1934/61 e.V."]
["Kaiser 33174",149885,33174,"Kaiser","Petra","Sen A","E","Blau-Gelb Fulda Strikers","PSV BG Fulda 1934/61 e.V.",22,null,null,null,null,"Kaiser 33174",149885,33174,"Kaiser","Petra","Sen A","E","Blau-Gelb Fulda Strikers","PSV BG Fulda 1934/61 e.V."]
["Kochanski 33252",143033,33252,"Kochanski","Louisa","Damen",null,"Blau-Gelb Fulda Strikers","PSV BG Fulda 1934/61 e.V.",22,null,null,null,null,"Kochanski 33252",143033,33252,"Kochanski","Louisa","Damen",null,"Blau-Gelb Fulda Strikers","PSV BG Fulda 1934/61 e.V."]
["Krönung 33196",135993,33196,"Krönung","Peter","Sen A","E","Blau-Gelb Fulda Strikers","PSV BG Fulda 1934/61 e.V.",22,null,null,null,null,"Krönung 33196",135993,33196,"Krönung","Peter","Sen A","E","Blau-Gelb Fulda Strikers","PSV BG Fulda 1934/61 e.V."]
["Lega 33287",146192,33287,"Lega","Rene","Herren","D","Blau-Gelb Fulda Strikers","PSV BG Fulda 1934/61 e.V.",22,null,null,null,null,"Lega 33287",146192,33287,"Lega","Rene","Herren","D","Blau-Gelb Fulda Strikers","PSV BG Fulda 1934/61 e.V."]
["Oezkan 33202",135986,33202,"Oezkan","Kaan","Herren","D","Blau-Gelb Fulda Strikers","PSV BG Fulda 1934/61 e.V.",22,null,null,null,null,"Oezkan 33202",135986,33202,"Oezkan","Kaan","Herren","D","Blau-Gelb Fulda Strikers","PSV BG Fulda 1934/61 e.V."]
["Otterbein 33226",140126,33226,"Otterbein","Jens","Herren","D","Blau-Gelb Fulda Strikers","PSV BG Fulda 1934/61 e.V.",22,null,null,null,null,"Otterbein 33226",140126,33226,"Otterbein","Jens","Herren","D","Blau-Gelb Fulda Strikers","PSV BG Fulda 1934/61 e.V."]
["Otterbein 33227",140124,33227,"Otterbein","Sandra","Damen","E","Blau-Gelb Fulda Strikers","PSV BG Fulda 1934/61 e.V.",22,null,null,null,null,"Otterbein 33227",140124,33227,"Otterbein","Sandra","Damen","E","Blau-Gelb Fulda Strikers","PSV BG Fulda 1934/61 e.V."]
["Otterbein 33228",140125,33228,"Otterbein","Andre","Herren",0,"Blau-Gelb Fulda Strikers","PSV BG Fulda 1934/61 e.V.",22,null,null,null,null,"Otterbein 33228",140125,33228,"Otterbein","Andre","Herren",0,"Blau-Gelb Fulda Strikers","PSV BG Fulda 1934/61 e.V."]
["Philipp 33201",135987,33201,"Philipp","Thomas","Sen A","D","Blau-Gelb Fulda Strikers","PSV BG Fulda 1934/61 e.V.",22,null,null,null,null,"Philipp 33201",135987,33201,"Philipp","Thomas","Sen A","D","Blau-Gelb Fulda Strikers","PSV BG Fulda 1934/61 e.V."]
["Pronk 33209",135998,33209,"Pronk","Antares","Herren","D","Blau-Gelb Fulda Strikers","PSV BG Fulda 1934/61 e.V.",22,null,null,null,null,"Pronk 33209",135998,33209,"Pronk","Antares","Herren","D","Blau-Gelb Fulda Strikers","PSV BG Fulda 1934/61 e.V."]
["Schmitt 15124",135989,15124,"Schmitt","Wolfgang","Sen A","C","Blau-Gelb Fulda Strikers","PSV BG Fulda 1934/61 e.V.",22,null,null,null,null,"Schmitt 15124",135989,15124,"Schmitt","Wolfgang","Sen A","C","Blau-Gelb Fulda Strikers","PSV BG Fulda 1934/61 e.V."]
["Schmitt 33289",146194,33289,"Schmitt","Markus","Sen A","F","Blau-Gelb Fulda Strikers","PSV BG Fulda 1934/61 e.V.",22,null,null,null,null,"Schmitt 33289",146194,33289,"Schmitt","Markus","Sen A","F","Blau-Gelb Fulda Strikers","PSV BG Fulda 1934/61 e.V."]
["Schröter 33204",135984,33204,"Schröter","Melanie","Damen","E","Blau-Gelb Fulda Strikers","PSV BG Fulda 1934/61 e.V.",22,null,null,null,null,"Schröter 33204",135984,33204,"Schröter","Melanie","Damen","E","Blau-Gelb Fulda Strikers","PSV BG Fulda 1934/61 e.V."]
["Seuring 33197",135992,33197,"Seuring","Harald","Sen A","D","Blau-Gelb Fulda Strikers","PSV BG Fulda 1934/61 e.V.",22,null,null,null,null,"Seuring 33197",135992,33197,"Seuring","Harald","Sen A","D","Blau-Gelb Fulda Strikers","PSV BG Fulda 1934/61 e.V."]
["Traber 33198",135991,33198,"Traber","Sandro","Sen A","C","Blau-Gelb Fulda Strikers","PSV BG Fulda 1934/61 e.V.",22,null,null,null,null,"Traber 33198",135991,33198,"Traber","Sandro","Sen A","C","Blau-Gelb Fulda Strikers","PSV BG Fulda 1934/61 e.V."]
["Traber 33199",135990,33199,"Traber","Anita","Sen B","E","Blau-Gelb Fulda Strikers","PSV BG Fulda 1934/61 e.V.",22,null,null,null,null,"Traber 33199",135990,33199,"Traber","Anita","Sen B","E","Blau-Gelb Fulda Strikers","PSV BG Fulda 1934/61 e.V."]
["Zaczyk 33320",147392,33320,"Zaczyk","Dustin","Jun","","Blau-Gelb Fulda Strikers","PSV BG Fulda 1934/61 e.V.",22,null,null,null,null,"Zaczyk 33320",147392,33320,"Zaczyk","Dustin","Jun","","Blau-Gelb Fulda Strikers","PSV BG Fulda 1934/61 e.V."]
["Zehentmaier 33194",135995,33194,"Zehentmaier","Lucas","Herren","D","Blau-Gelb Fulda Strikers","PSV BG Fulda 1934/61 e.V.",22,null,null,null,null,"Zehentmaier 33194",135995,33194,"Zehentmaier","Lucas","Herren","D","Blau-Gelb Fulda Strikers","PSV BG Fulda 1934/61 e.V."]
["Zimmermann 33205",135983,33205,"Zimmermann","Daniel","Herren","D","Blau-Gelb Fulda Strikers","PSV BG Fulda 1934/61 e.V.",22,null,null,null,null,"Zimmermann 33205",135983,33205,"Zimmermann","Daniel","Herren","D","Blau-Gelb Fulda Strikers","PSV BG Fulda 1934/61 e.V."]
["Blecher 33160",135843,33160,"Blecher","Lucas","Jun","D","SW Friedberg","Schwarz Weiss Friedberg",23,null,null,null,null,"Blecher 33160",135843,33160,"Blecher","Lucas","Jun","D","SW Friedberg","Schwarz Weiss Friedberg"]
["Blecher 33186",135971,33186,"Blecher","Anika","Damen",0,"SW Friedberg","Schwarz Weiss Friedberg",23,null,null,null,null,"Blecher 33186",135971,33186,"Blecher","Anika","Damen",0,"SW Friedberg","Schwarz Weiss Friedberg"]
["Buskowiak 8173",67019,8173,"Buskowiak","Thomas","Sen B","C","SW Friedberg","Schwarz Weiss Friedberg",23,null,null,null,null,"Buskowiak 8173",67019,8173,"Buskowiak","Thomas","Sen B","C","SW Friedberg","Schwarz Weiss Friedberg"]
["Ehrlich 10404",149130,10404,"Ehrlich","Oliver","Sen A",null,"SW Friedberg","Schwarz Weiss Friedberg",22,null,null,null,null,"Ehrlich 10404",149130,10404,"Ehrlich","Oliver","Sen A",null,"SW Friedberg","Schwarz Weiss Friedberg"]
["Eissrich 33361",154503,33361,"Eissrich","Nina","Damen",0,"SW Friedberg","Schwarz Weiss Friedberg",23,null,null,null,null,"Eissrich 33361",154503,33361,"Eissrich","Nina","Damen",0,"SW Friedberg","Schwarz Weiss Friedberg"]
["Faltin 33356",154423,33356,"Faltin","Uwe","Sen B",null,"SW Friedberg","Schwarz Weiss Friedberg",23,null,null,null,null,"Faltin 33356",154423,33356,"Faltin","Uwe","Sen B",null,"SW Friedberg","Schwarz Weiss Friedberg"]
["Fuhr 33317",147382,33317,"Fuhr","Liam","Jun","E","SW Friedberg","Schwarz Weiss Friedberg",23,null,null,null,null,"Fuhr 33317",147382,33317,"Fuhr","Liam","Jun","E","SW Friedberg","Schwarz Weiss Friedberg"]
["Hahn 8451",67441,8451,"Hahn","Dietmar","Sen B","C","SW Friedberg","Schwarz Weiss Friedberg",23,null,null,null,null,"Hahn 8451",67441,8451,"Hahn","Dietmar","Sen B","C","SW Friedberg","Schwarz Weiss Friedberg"]
["Hassenpflug 15881",52056,15881,"Hassenpflug","Marcel","Herren",0,"SW Friedberg","Schwarz Weiss Friedberg",23,null,null,null,null,"Hassenpflug 15881",52056,15881,"Hassenpflug","Marcel","Herren",0,"SW Friedberg","Schwarz Weiss Friedberg"]
["Hess 10416",147242,10416,"Hess","Hubert","Sen A","A","SW Friedberg","Schwarz Weiss Friedberg",23,null,null,null,null,"Hess 10416",147242,10416,"Hess","Hubert","Sen A","A","SW Friedberg","Schwarz Weiss Friedberg"]
["Hess 33311",147241,33311,"Hess","Elke","Sen A","D","SW Friedberg","Schwarz Weiss Friedberg",23,null,null,null,null,"Hess 33311",147241,33311,"Hess","Elke","Sen A","D","SW Friedberg","Schwarz Weiss Friedberg"]
["Merkel 15608",135920,15608,"Merkel","Ralf","Sen A","C","SW Friedberg","Schwarz Weiss Friedberg",23,null,null,null,null,"Merkel 15608",135920,15608,"Merkel","Ralf","Sen A","C","SW Friedberg","Schwarz Weiss Friedberg"]
["Pötzl 10438",147308,10438,"Pötzl","Stefan","Sen A","D","SW Friedberg","Schwarz Weiss Friedberg",23,null,null,null,null,"Pötzl 10438",147308,10438,"Pötzl","Stefan","Sen A","D","SW Friedberg","Schwarz Weiss Friedberg"]
["Rothenbacher 33029",106915,33029,"Rothenbacher","Ralph","Sen B","D","SW Friedberg","Schwarz Weiss Friedberg",23,null,null,null,null,"Rothenbacher 33029",106915,33029,"Rothenbacher","Ralph","Sen B","D","SW Friedberg","Schwarz Weiss Friedberg"]
["Schlier 10111",147297,10111,"Schlier","Elisabeth","Sen B","D","SW Friedberg","Schwarz Weiss Friedberg",23,null,null,null,null,"Schlier 10111",147297,10111,"Schlier","Elisabeth","Sen B","D","SW Friedberg","Schwarz Weiss Friedberg"]
["Schlier 10112",147243,10112,"Schlier","Uwe","Sen B","D","SW Friedberg","Schwarz Weiss Friedberg",23,null,null,null,null,"Schlier 10112",147243,10112,"Schlier","Uwe","Sen B","D","SW Friedberg","Schwarz Weiss Friedberg"]
["Schmidt 33282",146153,33282,"Schmidt","Thomas","Sen B","E","SW Friedberg","Schwarz Weiss Friedberg",23,null,null,null,null,"Schmidt 33282",146153,33282,"Schmidt","Thomas","Sen B","E","SW Friedberg","Schwarz Weiss Friedberg"]
["Trendel 15297",67511,15297,"Trendel","Richard","Sen B","D","SW Friedberg","Schwarz Weiss Friedberg",23,null,null,null,null,"Trendel 15297",67511,15297,"Trendel","Richard","Sen B","D","SW Friedberg","Schwarz Weiss Friedberg"]
["Trendel 15996",106750,15996,"Trendel","Marvin","Herren","E","SW Friedberg","Schwarz Weiss Friedberg",23,null,null,null,null,"Trendel 15996",106750,15996,"Trendel","Marvin","Herren","E","SW Friedberg","Schwarz Weiss Friedberg"]
["Walter 15337",67512,15337,"Walter","Gerhard","Sen B","D","SW Friedberg","Schwarz Weiss Friedberg",23,null,null,null,null,"Walter 15337",67512,15337,"Walter","Gerhard","Sen B","D","SW Friedberg","Schwarz Weiss Friedberg"]
["Wien 33185",135970,33185,"Wien","Stefan","Sen A","F","SW Friedberg","Schwarz Weiss Friedberg",23,null,null,null,null,"Wien 33185",135970,33185,"Wien","Stefan","Sen A","F","SW Friedberg","Schwarz Weiss Friedberg"]
["Wollmann 33275",146042,33275,"Wollmann","Martin","Herren","D","SW Friedberg","Schwarz Weiss Friedberg",23,null,null,null,null,"Wollmann 33275",146042,33275,"Wollmann","Martin","Herren","D","SW Friedberg","Schwarz Weiss Friedberg"]